Organisation Code,Organisation Label,Effective Date,Organisational Unit,Service Division Label,Category Internal Name,Purpose,Detailed Expenditure Code,Payment Date,Transaction Number,Irrecoverable VAT Amount,Amount,Capital Or Revenue,Beneficiary Name,Procurement Card
Http://opendatacommunities.org/id/metropolitan-district-council/leeds,Leeds City Council,30/06/2021,City Development,Economic Development,Supplies and Services,Grant Related Expenditure,290,14/06/2021,2106-00001 ,0.00,4250.00,R,REDACTED PERSONAL DATA,No
Http://opendatacommunities.org/id/metropolitan-district-council/leeds,Leeds City Council,30/06/2021,Resources and Housing,Strategic Housing Partnerships,Capital,CONSTRUCTION,3,07/06/2021,2106-00002,0.00,7487.50,C,A & C Galley,No
Http://opendatacommunities.org/id/metropolitan-district-council/leeds,Leeds City Council,30/06/2021,Adults and Health,Services For Older People Under 65 P/Dis,Agency Payments,Sheltered Accommodation,569,23/06/2021,2106-00003,0.00,5400.00,R,A & V TRANSITIONAL HOMES,No
Http://opendatacommunities.org/id/metropolitan-district-council/leeds,Leeds City Council,30/06/2021,City Development,Economic Development,Supplies and Services,Grant Related Expenditure,290,29/06/2021,2106-00004,0.00,250.00,R,REDACTED PERSONAL DATA,No
Http://opendatacommunities.org/id/metropolitan-district-council/leeds,Leeds City Council,30/06/2021,Resources and Housing,Leeds Building Services,Supplies and Services,Operational Materials,205,28/06/2021,2106-00005,0.00,24.80,R,A ANDREWS & SONS (MARBLES & TILES),No
Http://opendatacommunities.org/id/metropolitan-district-council/leeds,Leeds City Council,30/06/2021,Resources and Housing,Leeds Building Services,Supplies and Services,Operational Materials,205,28/06/2021,2106-00006,0.00,15.44,R,A ANDREWS & SONS (MARBLES & TILES),No
Http://opendatacommunities.org/id/metropolitan-district-council/leeds,Leeds City Council,30/06/2021,Resources and Housing,Leeds Building Services,Supplies and Services,Operational Materials,205,28/06/2021,2106-00007,0.00,20.80,R,A ANDREWS & SONS (MARBLES & TILES),No
Http://opendatacommunities.org/id/metropolitan-district-council/leeds,Leeds City Council,30/06/2021,Resources and Housing,Leeds Building Services,Supplies and Services,Operational Materials,205,28/06/2021,2106-00008,0.00,15.44,R,A ANDREWS & SONS (MARBLES & TILES),No
Http://opendatacommunities.org/id/metropolitan-district-council/leeds,Leeds City Council,30/06/2021,Resources and Housing,Leeds Building Services,Supplies and Services,Operational Materials,205,28/06/2021,2106-00009,0.00,103.73,R,A ANDREWS & SONS (MARBLES & TILES),No
Http://opendatacommunities.org/id/metropolitan-district-council/leeds,Leeds City Council,30/06/2021,Resources and Housing,Leeds Building Services,Supplies and Services,Operational Materials,205,28/06/2021,2106-00010,0.00,11.38,R,A ANDREWS & SONS (MARBLES & TILES),No
Http://opendatacommunities.org/id/metropolitan-district-council/leeds,Leeds City Council,30/06/2021,Resources and Housing,Leeds Building Services,Supplies and Services,Operational Materials,205,28/06/2021,2106-00011,0.00,15.74,R,A ANDREWS & SONS (MARBLES & TILES),No
Http://opendatacommunities.org/id/metropolitan-district-council/leeds,Leeds City Council,30/06/2021,Children and Families,Social Care,Agency Payments,Services Rendered By Other Organisations,511,04/06/2021,2106-00012,0.00,173.94,R,REDACTED PERSONAL DATA,No
Http://opendatacommunities.org/id/metropolitan-district-council/leeds,Leeds City Council,30/06/2021,City Development,Economic Development,Supplies and Services,Grant Related Expenditure,290,24/06/2021,2106-00013,0.00,250.00,R,A Beautiful Secret,No
Http://opendatacommunities.org/id/metropolitan-district-council/leeds,Leeds City Council,30/06/2021,Resources and Housing,HRA Housing Leeds,Capital,OTHER COSTS,7,21/06/2021,2106-00014,0.00,2500.00,C,REDACTED PERSONAL DATA,No
Http://opendatacommunities.org/id/metropolitan-district-council/leeds,Leeds City Council,30/06/2021,City Development,Economic Development,Supplies and Services,Grant Related Expenditure,290,22/06/2021,2106-00015,0.00,10000.00,R,A C Entertainment Technologies Ltd,No
Http://opendatacommunities.org/id/metropolitan-district-council/leeds,Leeds City Council,30/06/2021,City Development,Highways,Capital,OTHER COSTS,7,30/06/2021,2106-00016,0.00,1500.00,C,A C GILPIN,No
Http://opendatacommunities.org/id/metropolitan-district-council/leeds,Leeds City Council,30/06/2021,City Development,Economic Development,Supplies and Services,Grant Related Expenditure,290,21/06/2021,2106-00017,0.00,250.00,R,A C Peterson,No
Http://opendatacommunities.org/id/metropolitan-district-council/leeds,Leeds City Council,30/06/2021,Children and Families,Social Care,Agency Payments,Services Rendered By Other Organisations,511,04/06/2021,2106-00018,0.00,695.76,R,REDACTED PERSONAL DATA,No
Http://opendatacommunities.org/id/metropolitan-district-council/leeds,Leeds City Council,30/06/2021,Resources and Housing,Leeds Building Services,Supplies and Services,Other Hired And Contracted Services,265,16/06/2021,2106-00019,0.00,3095.00,R,A Coole Electrical Ltd,No
Http://opendatacommunities.org/id/metropolitan-district-council/leeds,Leeds City Council,30/06/2021,Resources and Housing,Leeds Building Services,Supplies and Services,Other Hired And Contracted Services,265,16/06/2021,2106-00020,0.00,2685.00,R,A Coole Electrical Ltd,No
Http://opendatacommunities.org/id/metropolitan-district-council/leeds,Leeds City Council,30/06/2021,Resources and Housing,Leeds Building Services,Supplies and Services,Other Hired And Contracted Services,265,16/06/2021,2106-00021,0.00,2590.00,R,A Coole Electrical Ltd,No
Http://opendatacommunities.org/id/metropolitan-district-council/leeds,Leeds City Council,30/06/2021,Resources and Housing,Leeds Building Services,Supplies and Services,Other Hired And Contracted Services,265,16/06/2021,2106-00022,0.00,2410.00,R,A Coole Electrical Ltd,No
Http://opendatacommunities.org/id/metropolitan-district-council/leeds,Leeds City Council,30/06/2021,Resources and Housing,Leeds Building Services,Supplies and Services,Other Hired And Contracted Services,265,16/06/2021,2106-00023,0.00,2390.00,R,A Coole Electrical Ltd,No
Http://opendatacommunities.org/id/metropolitan-district-council/leeds,Leeds City Council,30/06/2021,Resources and Housing,Leeds Building Services,Supplies and Services,Other Hired And Contracted Services,265,16/06/2021,2106-00024,0.00,945.00,R,A Coole Electrical Ltd,No
Http://opendatacommunities.org/id/metropolitan-district-council/leeds,Leeds City Council,30/06/2021,Resources and Housing,Leeds Building Services,Supplies and Services,Other Hired And Contracted Services,265,16/06/2021,2106-00025,0.00,1270.00,R,A Coole Electrical Ltd,No
Http://opendatacommunities.org/id/metropolitan-district-council/leeds,Leeds City Council,30/06/2021,Resources and Housing,Leeds Building Services,Supplies and Services,Other Hired And Contracted Services,265,16/06/2021,2106-00026,0.00,1335.00,R,A Coole Electrical Ltd,No
Http://opendatacommunities.org/id/metropolitan-district-council/leeds,Leeds City Council,30/06/2021,Resources and Housing,Leeds Building Services,Supplies and Services,Other Hired And Contracted Services,265,16/06/2021,2106-00027,0.00,1083.00,R,A Coole Electrical Ltd,No
Http://opendatacommunities.org/id/metropolitan-district-council/leeds,Leeds City Council,30/06/2021,Communities and Environment,Customer Access,Supplies and Services,Bought In Professional Services,277,07/06/2021,2106-00028,0.00,18.00,R,A D Dumitru,No
Http://opendatacommunities.org/id/metropolitan-district-council/leeds,Leeds City Council,30/06/2021,Communities and Environment,Customer Access,Supplies and Services,Bought In Professional Services,277,07/06/2021,2106-00029,0.00,9.00,R,A D Dumitru,No
Http://opendatacommunities.org/id/metropolitan-district-council/leeds,Leeds City Council,30/06/2021,Communities and Environment,Customer Access,Supplies and Services,Bought In Professional Services,277,07/06/2021,2106-00030,0.00,18.00,R,A D Dumitru,No
Http://opendatacommunities.org/id/metropolitan-district-council/leeds,Leeds City Council,30/06/2021,Communities and Environment,Customer Access,Supplies and Services,Bought In Professional Services,277,17/06/2021,2106-00031,0.00,18.00,R,A D Dumitru,No
Http://opendatacommunities.org/id/metropolitan-district-council/leeds,Leeds City Council,30/06/2021,Communities and Environment,Customer Access,Supplies and Services,Bought In Professional Services,277,24/06/2021,2106-00032,0.00,9.00,R,A D Dumitru,No
Http://opendatacommunities.org/id/metropolitan-district-council/leeds,Leeds City Council,30/06/2021,Communities and Environment,Customer Access,Supplies and Services,Bought In Professional Services,277,30/06/2021,2106-00033,0.00,18.00,R,A D Dumitru,No
Http://opendatacommunities.org/id/metropolitan-district-council/leeds,Leeds City Council,30/06/2021,Communities and Environment,Customer Access,Supplies and Services,Bought In Professional Services,277,30/06/2021,2106-00034,0.00,9.00,R,A D Dumitru,No
Http://opendatacommunities.org/id/metropolitan-district-council/leeds,Leeds City Council,30/06/2021,Communities and Environment,Customer Access,Supplies and Services,Bought In Professional Services,277,30/06/2021,2106-00035,0.00,72.00,R,A D Dumitru,No
Http://opendatacommunities.org/id/metropolitan-district-council/leeds,Leeds City Council,30/06/2021,Communities and Environment,Customer Access,Supplies and Services,Bought In Professional Services,277,30/06/2021,2106-00036,0.00,27.00,R,A D Dumitru,No
Http://opendatacommunities.org/id/metropolitan-district-council/leeds,Leeds City Council,30/06/2021,Communities and Environment,Customer Access,Supplies and Services,Bought In Professional Services,277,30/06/2021,2106-00037,0.00,18.00,R,A D Dumitru,No
Http://opendatacommunities.org/id/metropolitan-district-council/leeds,Leeds City Council,30/06/2021,Communities and Environment,Customer Access,Supplies and Services,Bought In Professional Services,277,30/06/2021,2106-00038,0.00,36.00,R,A D Dumitru,No
Http://opendatacommunities.org/id/metropolitan-district-council/leeds,Leeds City Council,30/06/2021,Communities and Environment,Customer Access,Supplies and Services,Bought In Professional Services,277,30/06/2021,2106-00039,0.00,9.00,R,A D Dumitru,No
Http://opendatacommunities.org/id/metropolitan-district-council/leeds,Leeds City Council,30/06/2021,Communities and Environment,Communities,Supplies and Services,Other Hired And Contracted Services,265,30/06/2021,2106-00040,0.00,225.00,R,A D Dumitru,No
Http://opendatacommunities.org/id/metropolitan-district-council/leeds,Leeds City Council,30/06/2021,City Development,Economic Development,Supplies and Services,Grant Related Expenditure,290,29/06/2021,2106-00041,0.00,500.00,R,REDACTED PERSONAL DATA,No
Http://opendatacommunities.org/id/metropolitan-district-council/leeds,Leeds City Council,30/06/2021,Children and Families,Social Care,Agency Payments,Services Rendered By Voluntary Sector,505,02/06/2021,2106-00042,0.00,627.12,R,REDACTED PERSONAL DATA,No
Http://opendatacommunities.org/id/metropolitan-district-council/leeds,Leeds City Council,30/06/2021,Children and Families,Social Care,Agency Payments,Services Rendered By Voluntary Sector,505,04/06/2021,2106-00043,0.00,6451.03,R,REDACTED PERSONAL DATA,No
Http://opendatacommunities.org/id/metropolitan-district-council/leeds,Leeds City Council,30/06/2021,Children and Families,Social Care,Agency Payments,Services Rendered By Other Organisations,511,02/06/2021,2106-00044,0.00,418.08,R,REDACTED PERSONAL DATA,No
Http://opendatacommunities.org/id/metropolitan-district-council/leeds,Leeds City Council,30/06/2021,Children and Families,Social Care,Agency Payments,Services Rendered By Other Organisations,511,04/06/2021,2106-00045,0.00,173.94,R,REDACTED PERSONAL DATA,No
Http://opendatacommunities.org/id/metropolitan-district-council/leeds,Leeds City Council,30/06/2021,City Development,Economic Development,Supplies and Services,Grant Related Expenditure,290,28/06/2021,2106-00046,0.00,500.00,R,REDACTED PERSONAL DATA,No
Http://opendatacommunities.org/id/metropolitan-district-council/leeds,Leeds City Council,30/06/2021,Children and Families,Social Care,Agency Payments,Services Rendered By Other Organisations,511,04/06/2021,2106-00047,0.00,347.88,R,REDACTED PERSONAL DATA,No
Http://opendatacommunities.org/id/metropolitan-district-council/leeds,Leeds City Council,30/06/2021,Children and Families,Social Care,Agency Payments,Services Rendered By Other Organisations,511,04/06/2021,2106-00048,0.00,774.03,R,REDACTED PERSONAL DATA,No
Http://opendatacommunities.org/id/metropolitan-district-council/leeds,Leeds City Council,30/06/2021,Resources and Housing,HRA Housing Leeds,Capital,OTHER COSTS,7,11/06/2021,2106-00049,0.00,50.00,C,REDACTED PERSONAL DATA,No
Http://opendatacommunities.org/id/metropolitan-district-council/leeds,Leeds City Council,30/06/2021,Adults and Health,Other Generic Services,Agency Payments,Fees To Carers,563,04/06/2021,2106-00050,0.00,163.80,R,REDACTED PERSONAL DATA,No
Http://opendatacommunities.org/id/metropolitan-district-council/leeds,Leeds City Council,30/06/2021,Adults and Health,Other Generic Services,Agency Payments,Fees To Carers,563,17/06/2021,2106-00051,0.00,402.36,R,REDACTED PERSONAL DATA,No
Http://opendatacommunities.org/id/metropolitan-district-council/leeds,Leeds City Council,30/06/2021,Adults and Health,Other Generic Services,Agency Payments,Fees To Carers,563,17/06/2021,2106-00052,0.00,50.40,R,REDACTED PERSONAL DATA,No
Http://opendatacommunities.org/id/metropolitan-district-council/leeds,Leeds City Council,30/06/2021,Adults and Health,Other Generic Services,Agency Payments,Fees To Carers,563,25/06/2021,2106-00053,0.00,401.20,R,REDACTED PERSONAL DATA,No
Http://opendatacommunities.org/id/metropolitan-district-council/leeds,Leeds City Council,30/06/2021,Adults and Health,Other Generic Services,Agency Payments,Fees To Carers,563,25/06/2021,2106-00054,0.00,40.95,R,REDACTED PERSONAL DATA,No
Http://opendatacommunities.org/id/metropolitan-district-council/leeds,Leeds City Council,30/06/2021,Communities and Environment,Benefits Welfare and Poverty ,Supplies and Services,Grant Related Expenditure,298,21/06/2021,2106-00055,0.00,500.00,R,REDACTED PERSONAL DATA,No
Http://opendatacommunities.org/id/metropolitan-district-council/leeds,Leeds City Council,30/06/2021,City Development,Economic Development,Supplies and Services,Grant Related Expenditure,290,21/06/2021,2106-00056,0.00,250.00,R,REDACTED PERSONAL DATA,No
Http://opendatacommunities.org/id/metropolitan-district-council/leeds,Leeds City Council,30/06/2021,Resources and Housing,Leeds Building Services,Supplies and Services,Operational Materials,205,03/06/2021,2106-00057,0.00,122.65,R,A J H  Pump Supply & Repair Ltd,No
Http://opendatacommunities.org/id/metropolitan-district-council/leeds,Leeds City Council,30/06/2021,Resources and Housing,Leeds Building Services,Supplies and Services,Operational Materials,205,03/06/2021,2106-00058,0.00,123.29,R,A J H  Pump Supply & Repair Ltd,No
Http://opendatacommunities.org/id/metropolitan-district-council/leeds,Leeds City Council,30/06/2021,Resources and Housing,Leeds Building Services,Supplies and Services,Operational Materials,205,03/06/2021,2106-00059,0.00,28.50,R,A J H  Pump Supply & Repair Ltd,No
Http://opendatacommunities.org/id/metropolitan-district-council/leeds,Leeds City Council,30/06/2021,Resources and Housing,Leeds Building Services,Supplies and Services,Operational Materials,205,04/06/2021,2106-00060,0.00,193.00,R,A J H  Pump Supply & Repair Ltd,No
Http://opendatacommunities.org/id/metropolitan-district-council/leeds,Leeds City Council,30/06/2021,Resources and Housing,Leeds Building Services,Supplies and Services,Operational Materials,205,04/06/2021,2106-00061,0.00,23.25,R,A J H  Pump Supply & Repair Ltd,No
Http://opendatacommunities.org/id/metropolitan-district-council/leeds,Leeds City Council,30/06/2021,Resources and Housing,Leeds Building Services,Supplies and Services,Operational Materials,205,04/06/2021,2106-00062,0.00,266.35,R,A J H  Pump Supply & Repair Ltd,No
Http://opendatacommunities.org/id/metropolitan-district-council/leeds,Leeds City Council,30/06/2021,Resources and Housing,Leeds Building Services,Supplies and Services,Operational Materials,205,04/06/2021,2106-00063,0.00,23.32,R,A J H  Pump Supply & Repair Ltd,No
Http://opendatacommunities.org/id/metropolitan-district-council/leeds,Leeds City Council,30/06/2021,Resources and Housing,Leeds Building Services,Supplies and Services,Operational Materials,205,08/06/2021,2106-00064,0.00,69.95,R,A J H  Pump Supply & Repair Ltd,No
Http://opendatacommunities.org/id/metropolitan-district-council/leeds,Leeds City Council,30/06/2021,Resources and Housing,Leeds Building Services,Supplies and Services,Operational Materials,205,11/06/2021,2106-00065,0.00,605.00,R,A J H  Pump Supply & Repair Ltd,No
Http://opendatacommunities.org/id/metropolitan-district-council/leeds,Leeds City Council,30/06/2021,Resources and Housing,Leeds Building Services,Supplies and Services,Operational Materials,205,11/06/2021,2106-00066,0.00,60.35,R,A J H  Pump Supply & Repair Ltd,No
Http://opendatacommunities.org/id/metropolitan-district-council/leeds,Leeds City Council,30/06/2021,Resources and Housing,Leeds Building Services,Supplies and Services,Operational Materials,205,11/06/2021,2106-00067,0.00,70.00,R,A J H  Pump Supply & Repair Ltd,No
Http://opendatacommunities.org/id/metropolitan-district-council/leeds,Leeds City Council,30/06/2021,Resources and Housing,Leeds Building Services,Supplies and Services,Operational Materials,205,11/06/2021,2106-00068,0.00,169.54,R,A J H  Pump Supply & Repair Ltd,No
Http://opendatacommunities.org/id/metropolitan-district-council/leeds,Leeds City Council,30/06/2021,Resources and Housing,Leeds Building Services,Supplies and Services,Operational Materials,205,11/06/2021,2106-00069,0.00,39.50,R,A J H  Pump Supply & Repair Ltd,No
Http://opendatacommunities.org/id/metropolitan-district-council/leeds,Leeds City Council,30/06/2021,Resources and Housing,Leeds Building Services,Supplies and Services,Operational Materials,205,11/06/2021,2106-00070,0.00,85.89,R,A J H  Pump Supply & Repair Ltd,No
Http://opendatacommunities.org/id/metropolitan-district-council/leeds,Leeds City Council,30/06/2021,Resources and Housing,Leeds Building Services,Supplies and Services,Operational Materials,205,11/06/2021,2106-00071,0.00,82.90,R,A J H  Pump Supply & Repair Ltd,No
Http://opendatacommunities.org/id/metropolitan-district-council/leeds,Leeds City Council,30/06/2021,Resources and Housing,Leeds Building Services,Supplies and Services,Operational Materials,205,16/06/2021,2106-00072,0.00,560.43,R,A J H  Pump Supply & Repair Ltd,No
Http://opendatacommunities.org/id/metropolitan-district-council/leeds,Leeds City Council,30/06/2021,Resources and Housing,Leeds Building Services,Supplies and Services,Operational Materials,205,18/06/2021,2106-00073,0.00,191.34,R,A J H  Pump Supply & Repair Ltd,No
Http://opendatacommunities.org/id/metropolitan-district-council/leeds,Leeds City Council,30/06/2021,Resources and Housing,Leeds Building Services,Supplies and Services,Operational Materials,205,18/06/2021,2106-00074,0.00,335.80,R,A J H  Pump Supply & Repair Ltd,No
Http://opendatacommunities.org/id/metropolitan-district-council/leeds,Leeds City Council,30/06/2021,Resources and Housing,Leeds Building Services,Supplies and Services,Operational Materials,205,18/06/2021,2106-00075,0.00,178.45,R,A J H  Pump Supply & Repair Ltd,No
Http://opendatacommunities.org/id/metropolitan-district-council/leeds,Leeds City Council,30/06/2021,Resources and Housing,Leeds Building Services,Supplies and Services,Operational Materials,205,18/06/2021,2106-00076,0.00,291.00,R,A J H  Pump Supply & Repair Ltd,No
Http://opendatacommunities.org/id/metropolitan-district-council/leeds,Leeds City Council,30/06/2021,Resources and Housing,Leeds Building Services,Supplies and Services,Operational Materials,205,18/06/2021,2106-00077,0.00,118.44,R,A J H  Pump Supply & Repair Ltd,No
Http://opendatacommunities.org/id/metropolitan-district-council/leeds,Leeds City Council,30/06/2021,Resources and Housing,Leeds Building Services,Supplies and Services,Operational Materials,205,18/06/2021,2106-00078,0.00,28.00,R,A J H  Pump Supply & Repair Ltd,No
Http://opendatacommunities.org/id/metropolitan-district-council/leeds,Leeds City Council,30/06/2021,Resources and Housing,Leeds Building Services,Supplies and Services,Operational Materials,205,18/06/2021,2106-00079,0.00,87.87,R,A J H  Pump Supply & Repair Ltd,No
Http://opendatacommunities.org/id/metropolitan-district-council/leeds,Leeds City Council,30/06/2021,Resources and Housing,Leeds Building Services,Supplies and Services,Operational Materials,205,18/06/2021,2106-00080,0.00,37.65,R,A J H  Pump Supply & Repair Ltd,No
Http://opendatacommunities.org/id/metropolitan-district-council/leeds,Leeds City Council,30/06/2021,Resources and Housing,Leeds Building Services,Supplies and Services,Operational Materials,205,18/06/2021,2106-00081,0.00,53.90,R,A J H  Pump Supply & Repair Ltd,No
Http://opendatacommunities.org/id/metropolitan-district-council/leeds,Leeds City Council,30/06/2021,Resources and Housing,Leeds Building Services,Supplies and Services,Operational Materials,205,18/06/2021,2106-00082,0.00,145.50,R,A J H  Pump Supply & Repair Ltd,No
Http://opendatacommunities.org/id/metropolitan-district-council/leeds,Leeds City Council,30/06/2021,Resources and Housing,Leeds Building Services,Supplies and Services,Operational Materials,205,18/06/2021,2106-00083,0.00,296.95,R,A J H  Pump Supply & Repair Ltd,No
Http://opendatacommunities.org/id/metropolitan-district-council/leeds,Leeds City Council,30/06/2021,Resources and Housing,Leeds Building Services,Supplies and Services,Operational Materials,205,18/06/2021,2106-00084,0.00,111.27,R,A J H  Pump Supply & Repair Ltd,No
Http://opendatacommunities.org/id/metropolitan-district-council/leeds,Leeds City Council,30/06/2021,Resources and Housing,Leeds Building Services,Supplies and Services,Operational Materials,205,18/06/2021,2106-00085,0.00,299.85,R,A J H  Pump Supply & Repair Ltd,No
Http://opendatacommunities.org/id/metropolitan-district-council/leeds,Leeds City Council,30/06/2021,Resources and Housing,Leeds Building Services,Supplies and Services,Operational Materials,205,18/06/2021,2106-00086,0.00,195.00,R,A J H  Pump Supply & Repair Ltd,No
Http://opendatacommunities.org/id/metropolitan-district-council/leeds,Leeds City Council,30/06/2021,Resources and Housing,Leeds Building Services,Supplies and Services,Operational Materials,205,18/06/2021,2106-00087,0.00,479.50,R,A J H  Pump Supply & Repair Ltd,No
Http://opendatacommunities.org/id/metropolitan-district-council/leeds,Leeds City Council,30/06/2021,Resources and Housing,Leeds Building Services,Supplies and Services,Operational Materials,205,18/06/2021,2106-00088,0.00,259.00,R,A J H  Pump Supply & Repair Ltd,No
Http://opendatacommunities.org/id/metropolitan-district-council/leeds,Leeds City Council,30/06/2021,Resources and Housing,Leeds Building Services,Supplies and Services,Operational Materials,205,18/06/2021,2106-00089,0.00,118.44,R,A J H  Pump Supply & Repair Ltd,No
Http://opendatacommunities.org/id/metropolitan-district-council/leeds,Leeds City Council,30/06/2021,Resources and Housing,Leeds Building Services,Supplies and Services,Operational Materials,205,18/06/2021,2106-00090,0.00,34.24,R,A J H  Pump Supply & Repair Ltd,No
Http://opendatacommunities.org/id/metropolitan-district-council/leeds,Leeds City Council,30/06/2021,Resources and Housing,Leeds Building Services,Supplies and Services,Operational Materials,205,18/06/2021,2106-00091,0.00,70.00,R,A J H  Pump Supply & Repair Ltd,No
Http://opendatacommunities.org/id/metropolitan-district-council/leeds,Leeds City Council,30/06/2021,Resources and Housing,Leeds Building Services,Supplies and Services,Operational Materials,205,18/06/2021,2106-00092,0.00,70.00,R,A J H  Pump Supply & Repair Ltd,No
Http://opendatacommunities.org/id/metropolitan-district-council/leeds,Leeds City Council,30/06/2021,Resources and Housing,Leeds Building Services,Supplies and Services,Operational Materials,205,18/06/2021,2106-00093,0.00,60.70,R,A J H  Pump Supply & Repair Ltd,No
Http://opendatacommunities.org/id/metropolitan-district-council/leeds,Leeds City Council,30/06/2021,Resources and Housing,Leeds Building Services,Supplies and Services,Operational Materials,205,21/06/2021,2106-00094,0.00,750.00,R,A J H  Pump Supply & Repair Ltd,No
Http://opendatacommunities.org/id/metropolitan-district-council/leeds,Leeds City Council,30/06/2021,Resources and Housing,Leeds Building Services,Supplies and Services,Operational Materials,205,22/06/2021,2106-00095,0.00,1400.00,R,A J H  Pump Supply & Repair Ltd,No
Http://opendatacommunities.org/id/metropolitan-district-council/leeds,Leeds City Council,30/06/2021,Resources and Housing,Leeds Building Services,Supplies and Services,Operational Materials,205,22/06/2021,2106-00096,0.00,470.12,R,A J H  Pump Supply & Repair Ltd,No
Http://opendatacommunities.org/id/metropolitan-district-council/leeds,Leeds City Council,30/06/2021,Resources and Housing,Leeds Building Services,Supplies and Services,Operational Materials,205,22/06/2021,2106-00097,0.00,145.00,R,A J H  Pump Supply & Repair Ltd,No
Http://opendatacommunities.org/id/metropolitan-district-council/leeds,Leeds City Council,30/06/2021,Resources and Housing,Leeds Building Services,Supplies and Services,Operational Materials,205,22/06/2021,2106-00098,0.00,312.00,R,A J H  Pump Supply & Repair Ltd,No
Http://opendatacommunities.org/id/metropolitan-district-council/leeds,Leeds City Council,30/06/2021,Resources and Housing,Leeds Building Services,Supplies and Services,Operational Materials,205,22/06/2021,2106-00099,0.00,89.00,R,A J H  Pump Supply & Repair Ltd,No
Http://opendatacommunities.org/id/metropolitan-district-council/leeds,Leeds City Council,30/06/2021,Resources and Housing,Leeds Building Services,Supplies and Services,Operational Materials,205,22/06/2021,2106-00100,0.00,330.00,R,A J H  Pump Supply & Repair Ltd,No
Http://opendatacommunities.org/id/metropolitan-district-council/leeds,Leeds City Council,30/06/2021,Resources and Housing,Leeds Building Services,Supplies and Services,Operational Materials,205,22/06/2021,2106-00101,0.00,840.00,R,A J H  Pump Supply & Repair Ltd,No
Http://opendatacommunities.org/id/metropolitan-district-council/leeds,Leeds City Council,30/06/2021,Resources and Housing,Leeds Building Services,Supplies and Services,Operational Materials,205,22/06/2021,2106-00102,0.00,168.27,R,A J H  Pump Supply & Repair Ltd,No
Http://opendatacommunities.org/id/metropolitan-district-council/leeds,Leeds City Council,30/06/2021,Resources and Housing,Leeds Building Services,Supplies and Services,Operational Materials,205,22/06/2021,2106-00103,0.00,105.55,R,A J H  Pump Supply & Repair Ltd,No
Http://opendatacommunities.org/id/metropolitan-district-council/leeds,Leeds City Council,30/06/2021,Resources and Housing,Leeds Building Services,Supplies and Services,Operational Materials,205,22/06/2021,2106-00104,0.00,35.00,R,A J H  Pump Supply & Repair Ltd,No
Http://opendatacommunities.org/id/metropolitan-district-council/leeds,Leeds City Council,30/06/2021,Resources and Housing,Leeds Building Services,Supplies and Services,Operational Materials,205,22/06/2021,2106-00105,0.00,85.38,R,A J H  Pump Supply & Repair Ltd,No
Http://opendatacommunities.org/id/metropolitan-district-council/leeds,Leeds City Council,30/06/2021,Resources and Housing,Leeds Building Services,Supplies and Services,Operational Materials,205,22/06/2021,2106-00106,0.00,57.45,R,A J H  Pump Supply & Repair Ltd,No
Http://opendatacommunities.org/id/metropolitan-district-council/leeds,Leeds City Council,30/06/2021,Resources and Housing,Leeds Building Services,Supplies and Services,Operational Materials,205,29/06/2021,2106-00107,0.00,302.49,R,A J H  Pump Supply & Repair Ltd,No
Http://opendatacommunities.org/id/metropolitan-district-council/leeds,Leeds City Council,30/06/2021,City Development,Markets & City Centre Management,Supplies and Services,City Centre Enhancement,295,18/06/2021,2106-00108,0.00,560.00,R,A J Wells & Sons,No
Http://opendatacommunities.org/id/metropolitan-district-council/leeds,Leeds City Council,30/06/2021,City Development,Economic Development,Supplies and Services,Grant Related Expenditure,290,01/06/2021,2106-00109,0.00,3450.00,R,A J Yeadon,No
Http://opendatacommunities.org/id/metropolitan-district-council/leeds,Leeds City Council,30/06/2021,Children and Families,Social Care,Agency Payments,Services Rendered By Other Organisations,511,02/06/2021,2106-00110,0.00,209.04,R,REDACTED PERSONAL DATA,No
Http://opendatacommunities.org/id/metropolitan-district-council/leeds,Leeds City Council,30/06/2021,Children and Families,Social Care,Agency Payments,Services Rendered By Other Organisations,511,04/06/2021,2106-00111,0.00,2609.10,R,REDACTED PERSONAL DATA,No
Http://opendatacommunities.org/id/metropolitan-district-council/leeds,Leeds City Council,30/06/2021,City Development,Economic Development,Supplies and Services,Grant Related Expenditure,290,09/06/2021,2106-00112,0.00,500.00,R,REDACTED PERSONAL DATA,No
Http://opendatacommunities.org/id/metropolitan-district-council/leeds,Leeds City Council,30/06/2021,Resources and Housing,HRA Housing Leeds,Capital,OTHER COSTS,7,21/06/2021,2106-00113,0.00,249.22,C,REDACTED PERSONAL DATA,No
Http://opendatacommunities.org/id/metropolitan-district-council/leeds,Leeds City Council,30/06/2021,City Development,Economic Development,Supplies and Services,Grant Related Expenditure,290,24/06/2021,2106-00114,0.00,750.00,R,A M T Tattoo Studio,No
Http://opendatacommunities.org/id/metropolitan-district-council/leeds,Leeds City Council,30/06/2021,Communities and Environment,Customer Access,Supplies and Services,Bought In Professional Services,277,07/06/2021,2106-00115,0.00,18.00,R,A MOHAMMED,No
Http://opendatacommunities.org/id/metropolitan-district-council/leeds,Leeds City Council,30/06/2021,Communities and Environment,Customer Access,Supplies and Services,Bought In Professional Services,277,07/06/2021,2106-00116,0.00,18.00,R,A MOHAMMED,No
Http://opendatacommunities.org/id/metropolitan-district-council/leeds,Leeds City Council,30/06/2021,Communities and Environment,Customer Access,Supplies and Services,Bought In Professional Services,277,07/06/2021,2106-00117,0.00,18.00,R,A MOHAMMED,No
Http://opendatacommunities.org/id/metropolitan-district-council/leeds,Leeds City Council,30/06/2021,Communities and Environment,Customer Access,Supplies and Services,Bought In Professional Services,277,07/06/2021,2106-00118,0.00,18.00,R,A MOHAMMED,No
Http://opendatacommunities.org/id/metropolitan-district-council/leeds,Leeds City Council,30/06/2021,Communities and Environment,Customer Access,Supplies and Services,Bought In Professional Services,277,07/06/2021,2106-00119,0.00,27.00,R,A MOHAMMED,No
Http://opendatacommunities.org/id/metropolitan-district-council/leeds,Leeds City Council,30/06/2021,Communities and Environment,Customer Access,Supplies and Services,Bought In Professional Services,277,07/06/2021,2106-00120,0.00,18.00,R,A MOHAMMED,No
Http://opendatacommunities.org/id/metropolitan-district-council/leeds,Leeds City Council,30/06/2021,Communities and Environment,Customer Access,Supplies and Services,Bought In Professional Services,277,07/06/2021,2106-00121,0.00,22.50,R,A MOHAMMED,No
Http://opendatacommunities.org/id/metropolitan-district-council/leeds,Leeds City Council,30/06/2021,Communities and Environment,Customer Access,Supplies and Services,Bought In Professional Services,277,17/06/2021,2106-00122,0.00,18.00,R,A MOHAMMED,No
Http://opendatacommunities.org/id/metropolitan-district-council/leeds,Leeds City Council,30/06/2021,Communities and Environment,Customer Access,Supplies and Services,Bought In Professional Services,277,17/06/2021,2106-00123,0.00,36.00,R,A MOHAMMED,No
Http://opendatacommunities.org/id/metropolitan-district-council/leeds,Leeds City Council,30/06/2021,Communities and Environment,Customer Access,Supplies and Services,Bought In Professional Services,277,17/06/2021,2106-00124,0.00,18.00,R,A MOHAMMED,No
Http://opendatacommunities.org/id/metropolitan-district-council/leeds,Leeds City Council,30/06/2021,Communities and Environment,Customer Access,Supplies and Services,Bought In Professional Services,277,17/06/2021,2106-00125,0.00,18.00,R,A MOHAMMED,No
Http://opendatacommunities.org/id/metropolitan-district-council/leeds,Leeds City Council,30/06/2021,Communities and Environment,Customer Access,Supplies and Services,Bought In Professional Services,277,17/06/2021,2106-00126,0.00,22.50,R,A MOHAMMED,No
Http://opendatacommunities.org/id/metropolitan-district-council/leeds,Leeds City Council,30/06/2021,Communities and Environment,Customer Access,Supplies and Services,Bought In Professional Services,277,17/06/2021,2106-00127,0.00,45.00,R,A MOHAMMED,No
Http://opendatacommunities.org/id/metropolitan-district-council/leeds,Leeds City Council,30/06/2021,Communities and Environment,Customer Access,Supplies and Services,Bought In Professional Services,277,17/06/2021,2106-00128,0.00,18.00,R,A MOHAMMED,No
Http://opendatacommunities.org/id/metropolitan-district-council/leeds,Leeds City Council,30/06/2021,Communities and Environment,Customer Access,Supplies and Services,Bought In Professional Services,277,24/06/2021,2106-00129,0.00,9.00,R,A MOHAMMED,No
Http://opendatacommunities.org/id/metropolitan-district-council/leeds,Leeds City Council,30/06/2021,Communities and Environment,Customer Access,Supplies and Services,Bought In Professional Services,277,24/06/2021,2106-00130,0.00,18.00,R,A MOHAMMED,No
Http://opendatacommunities.org/id/metropolitan-district-council/leeds,Leeds City Council,30/06/2021,Communities and Environment,Customer Access,Supplies and Services,Bought In Professional Services,277,24/06/2021,2106-00131,0.00,9.00,R,A MOHAMMED,No
Http://opendatacommunities.org/id/metropolitan-district-council/leeds,Leeds City Council,30/06/2021,Communities and Environment,Customer Access,Supplies and Services,Bought In Professional Services,277,24/06/2021,2106-00132,0.00,18.00,R,A MOHAMMED,No
Http://opendatacommunities.org/id/metropolitan-district-council/leeds,Leeds City Council,30/06/2021,Communities and Environment,Customer Access,Supplies and Services,Bought In Professional Services,277,24/06/2021,2106-00133,0.00,18.00,R,A MOHAMMED,No
Http://opendatacommunities.org/id/metropolitan-district-council/leeds,Leeds City Council,30/06/2021,Communities and Environment,Customer Access,Supplies and Services,Bought In Professional Services,277,24/06/2021,2106-00134,0.00,13.50,R,A MOHAMMED,No
Http://opendatacommunities.org/id/metropolitan-district-council/leeds,Leeds City Council,30/06/2021,Communities and Environment,Customer Access,Supplies and Services,Bought In Professional Services,277,24/06/2021,2106-00135,0.00,18.00,R,A MOHAMMED,No
Http://opendatacommunities.org/id/metropolitan-district-council/leeds,Leeds City Council,30/06/2021,Communities and Environment,Customer Access,Supplies and Services,Bought In Professional Services,277,24/06/2021,2106-00136,0.00,18.00,R,A MOHAMMED,No
Http://opendatacommunities.org/id/metropolitan-district-council/leeds,Leeds City Council,30/06/2021,Communities and Environment,Customer Access,Supplies and Services,Bought In Professional Services,277,24/06/2021,2106-00137,0.00,9.00,R,A MOHAMMED,No
Http://opendatacommunities.org/id/metropolitan-district-council/leeds,Leeds City Council,30/06/2021,Communities and Environment,Customer Access,Supplies and Services,Bought In Professional Services,277,30/06/2021,2106-00138,0.00,18.00,R,A MOHAMMED,No
Http://opendatacommunities.org/id/metropolitan-district-council/leeds,Leeds City Council,30/06/2021,Communities and Environment,Customer Access,Supplies and Services,Bought In Professional Services,277,30/06/2021,2106-00139,0.00,18.00,R,A MOHAMMED,No
Http://opendatacommunities.org/id/metropolitan-district-council/leeds,Leeds City Council,30/06/2021,Communities and Environment,Customer Access,Supplies and Services,Bought In Professional Services,277,30/06/2021,2106-00140,0.00,18.00,R,A MOHAMMED,No
Http://opendatacommunities.org/id/metropolitan-district-council/leeds,Leeds City Council,30/06/2021,Communities and Environment,Customer Access,Supplies and Services,Bought In Professional Services,277,30/06/2021,2106-00141,0.00,18.00,R,A MOHAMMED,No
Http://opendatacommunities.org/id/metropolitan-district-council/leeds,Leeds City Council,30/06/2021,Communities and Environment,Customer Access,Supplies and Services,Bought In Professional Services,277,30/06/2021,2106-00142,0.00,18.00,R,A MOHAMMED,No
Http://opendatacommunities.org/id/metropolitan-district-council/leeds,Leeds City Council,30/06/2021,Communities and Environment,Customer Access,Supplies and Services,Bought In Professional Services,277,30/06/2021,2106-00143,0.00,18.00,R,A MOHAMMED,No
Http://opendatacommunities.org/id/metropolitan-district-council/leeds,Leeds City Council,30/06/2021,Children and Families,Social Care,Agency Payments,Services Rendered By Other Organisations,511,02/06/2021,2106-00144,0.00,1254.24,R,REDACTED PERSONAL DATA,No
Http://opendatacommunities.org/id/metropolitan-district-council/leeds,Leeds City Council,30/06/2021,Children and Families,Social Care,Agency Payments,Services Rendered By Other Organisations,511,04/06/2021,2106-00145,0.00,1913.34,R,REDACTED PERSONAL DATA,No
Http://opendatacommunities.org/id/metropolitan-district-council/leeds,Leeds City Council,30/06/2021,City Development,Recreation,External Income,Sporting & Other Recreational Fees,928,16/06/2021,2106-00146,0.00,60.25,R,REDACTED PERSONAL DATA,No
Http://opendatacommunities.org/id/metropolitan-district-council/leeds,Leeds City Council,30/06/2021,Communities and Environment,Customer Access,Supplies and Services,Bought In Professional Services,277,07/06/2021,2106-00147,0.00,27.00,R,A NAMAKI,No
Http://opendatacommunities.org/id/metropolitan-district-council/leeds,Leeds City Council,30/06/2021,Communities and Environment,Customer Access,Supplies and Services,Bought In Professional Services,277,07/06/2021,2106-00148,0.00,18.00,R,A NAMAKI,No
Http://opendatacommunities.org/id/metropolitan-district-council/leeds,Leeds City Council,30/06/2021,Communities and Environment,Customer Access,Supplies and Services,Bought In Professional Services,277,17/06/2021,2106-00149,0.00,27.00,R,A NAMAKI,No
Http://opendatacommunities.org/id/metropolitan-district-council/leeds,Leeds City Council,30/06/2021,Communities and Environment,Customer Access,Supplies and Services,Bought In Professional Services,277,17/06/2021,2106-00150,0.00,36.00,R,A NAMAKI,No
Http://opendatacommunities.org/id/metropolitan-district-council/leeds,Leeds City Council,30/06/2021,Communities and Environment,Customer Access,Supplies and Services,Bought In Professional Services,277,17/06/2021,2106-00151,0.00,9.00,R,A NAMAKI,No
Http://opendatacommunities.org/id/metropolitan-district-council/leeds,Leeds City Council,30/06/2021,Communities and Environment,Customer Access,Supplies and Services,Bought In Professional Services,277,17/06/2021,2106-00152,0.00,18.00,R,A NAMAKI,No
Http://opendatacommunities.org/id/metropolitan-district-council/leeds,Leeds City Council,30/06/2021,Communities and Environment,Customer Access,Supplies and Services,Bought In Professional Services,277,17/06/2021,2106-00153,0.00,9.00,R,A NAMAKI,No
Http://opendatacommunities.org/id/metropolitan-district-council/leeds,Leeds City Council,30/06/2021,Communities and Environment,Customer Access,Supplies and Services,Bought In Professional Services,277,17/06/2021,2106-00154,0.00,18.00,R,A NAMAKI,No
Http://opendatacommunities.org/id/metropolitan-district-council/leeds,Leeds City Council,30/06/2021,Communities and Environment,Customer Access,Supplies and Services,Bought In Professional Services,277,24/06/2021,2106-00155,0.00,27.00,R,A NAMAKI,No
Http://opendatacommunities.org/id/metropolitan-district-council/leeds,Leeds City Council,30/06/2021,Communities and Environment,Customer Access,Supplies and Services,Bought In Professional Services,277,24/06/2021,2106-00156,0.00,18.00,R,A NAMAKI,No
Http://opendatacommunities.org/id/metropolitan-district-council/leeds,Leeds City Council,30/06/2021,Communities and Environment,Customer Access,Supplies and Services,Bought In Professional Services,277,30/06/2021,2106-00157,0.00,18.00,R,A NAMAKI,No
Http://opendatacommunities.org/id/metropolitan-district-council/leeds,Leeds City Council,30/06/2021,Communities and Environment,Customer Access,Supplies and Services,Bought In Professional Services,277,30/06/2021,2106-00158,0.00,18.00,R,A NAMAKI,No
Http://opendatacommunities.org/id/metropolitan-district-council/leeds,Leeds City Council,30/06/2021,Communities and Environment,Customer Access,Supplies and Services,Bought In Professional Services,277,30/06/2021,2106-00159,0.00,18.00,R,A NAMAKI,No
Http://opendatacommunities.org/id/metropolitan-district-council/leeds,Leeds City Council,30/06/2021,Children and Families,Social Care,Agency Payments,Services Rendered By Other Organisations,511,04/06/2021,2106-00160,0.00,173.94,R,REDACTED PERSONAL DATA,No
Http://opendatacommunities.org/id/metropolitan-district-council/leeds,Leeds City Council,30/06/2021,City Development,Libraries Arts & Heritage,Supplies and Services,Other Hired And Contracted Services,265,03/06/2021,2106-00161,0.00,5000.00,R,A P Holden,No
Http://opendatacommunities.org/id/metropolitan-district-council/leeds,Leeds City Council,30/06/2021,City Development,Economic Development,Supplies and Services,Grant Related Expenditure,290,29/06/2021,2106-00162,0.00,500.00,R,REDACTED PERSONAL DATA,No
Http://opendatacommunities.org/id/metropolitan-district-council/leeds,Leeds City Council,30/06/2021,City Development,Economic Development,Supplies and Services,Grant Related Expenditure,290,22/06/2021,2106-00163,0.00,500.00,R,REDACTED PERSONAL DATA,No
Http://opendatacommunities.org/id/metropolitan-district-council/leeds,Leeds City Council,30/06/2021,City Development,Economic Development,Supplies and Services,Grant Related Expenditure,290,18/06/2021,2106-00164,0.00,500.00,R,REDACTED PERSONAL DATA,No
Http://opendatacommunities.org/id/metropolitan-district-council/leeds,Leeds City Council,30/06/2021,Children and Families,Social Care,Agency Payments,Services Rendered By Other Organisations,511,04/06/2021,2106-00165,0.00,521.82,R,REDACTED PERSONAL DATA,No
Http://opendatacommunities.org/id/metropolitan-district-council/leeds,Leeds City Council,30/06/2021,City Development,Economic Development,Supplies and Services,Grant Related Expenditure,290,18/06/2021,2106-00166,0.00,250.00,R,A Star Driving School,No
Http://opendatacommunities.org/id/metropolitan-district-council/leeds,Leeds City Council,30/06/2021,City Development,Economic Development,Supplies and Services,Grant Related Expenditure,290,29/06/2021,2106-00167,0.00,250.00,R,REDACTED PERSONAL DATA,No
Http://opendatacommunities.org/id/metropolitan-district-council/leeds,Leeds City Council,30/06/2021,Children and Families,Social Care,Agency Payments,Independent Fostering Agencies,509,11/06/2021,2106-00168,0.00,792.00,R,A Taxis,No
Http://opendatacommunities.org/id/metropolitan-district-council/leeds,Leeds City Council,30/06/2021,Children and Families,Social Care,Agency Payments,Independent Fostering Agencies,509,22/06/2021,2106-00169,0.00,1368.00,R,A Taxis,No
Http://opendatacommunities.org/id/metropolitan-district-council/leeds,Leeds City Council,30/06/2021,City Development,Economic Development,Supplies and Services,Grant Related Expenditure,290,25/06/2021,2106-00170,0.00,250.00,R,A Tidy Mind (Franchising) Limited,No
Http://opendatacommunities.org/id/metropolitan-district-council/leeds,Leeds City Council,30/06/2021,City Development,Economic Development,Supplies and Services,Grant Related Expenditure,290,18/06/2021,2106-00171,0.00,250.00,R,A Van About Town,No
Http://opendatacommunities.org/id/metropolitan-district-council/leeds,Leeds City Council,30/06/2021,City Development,Economic Development,Supplies and Services,Grant Related Expenditure,290,29/06/2021,2106-00172,0.00,250.00,R,A Walk In The Bark,No
Http://opendatacommunities.org/id/metropolitan-district-council/leeds,Leeds City Council,30/06/2021,Children and Families,Social Care,Agency Payments,Services Rendered By Other Organisations,511,02/06/2021,2106-00173,0.00,209.04,R,REDACTED PERSONAL DATA,No
Http://opendatacommunities.org/id/metropolitan-district-council/leeds,Leeds City Council,30/06/2021,Children and Families,Social Care,Agency Payments,Services Rendered By Other Organisations,511,04/06/2021,2106-00174,0.00,347.88,R,REDACTED PERSONAL DATA,No
Http://opendatacommunities.org/id/metropolitan-district-council/leeds,Leeds City Council,30/06/2021,Children and Families,Social Care,Agency Payments,General External Residential Placements,507,03/06/2021,2106-00175,0.00,30114.33,R,A Wilderness Way Ltd,No
Http://opendatacommunities.org/id/metropolitan-district-council/leeds,Leeds City Council,30/06/2021,Children and Families,Social Care,Agency Payments,General External Residential Placements,507,03/06/2021,2106-00176,0.00,2660.00,R,A Wilderness Way Ltd,No
Http://opendatacommunities.org/id/metropolitan-district-council/leeds,Leeds City Council,30/06/2021,Children and Families,Social Care,Agency Payments,Independent Fostering Agencies,509,03/06/2021,2106-00177,0.00,46500.00,R,A Wilderness Way Ltd,No
Http://opendatacommunities.org/id/metropolitan-district-council/leeds,Leeds City Council,30/06/2021,City Development,Economic Development,Supplies and Services,Grant Related Expenditure,290,02/06/2021,2106-00178,0.00,6000.00,R,A&C Design Shop Fitting And Maintenance,No
Http://opendatacommunities.org/id/metropolitan-district-council/leeds,Leeds City Council,30/06/2021,Communities and Environment,Customer Access,Supplies and Services,Bought In Professional Services,277,24/06/2021,2106-00179,0.00,980.00,R,AA Global Language Services Ltd,No
Http://opendatacommunities.org/id/metropolitan-district-council/leeds,Leeds City Council,30/06/2021,Communities and Environment,Parks and Countryside ,Supplies and Services,Resaleable Materials,204,19/05/2021,2106-00180,0.00,64.46,R,Aagrah Foods,Yes
Http://opendatacommunities.org/id/metropolitan-district-council/leeds,Leeds City Council,30/06/2021,Adults and Health,Services For Older People - 65 And Over,Agency Payments,Residential Care Dementia,571,23/06/2021,2106-00181,0.00,1245.20,R,Aaron Court Care Home,No
Http://opendatacommunities.org/id/metropolitan-district-council/leeds,Leeds City Council,30/06/2021,City Development,Economic Development,Supplies and Services,Grant Related Expenditure,290,24/06/2021,2106-00182,0.00,250.00,R,REDACTED PERSONAL DATA,No
Http://opendatacommunities.org/id/metropolitan-district-council/leeds,Leeds City Council,30/06/2021,Communities and Environment,Benefits Welfare and Poverty ,Supplies and Services,Grant Related Expenditure,298,02/06/2021,2106-00183,0.00,500.00,R,REDACTED PERSONAL DATA,No
Http://opendatacommunities.org/id/metropolitan-district-council/leeds,Leeds City Council,30/06/2021,City Development,Libraries Arts & Heritage ,Supplies and Services,Books & Audio-Visual Materials,206,04/05/2021,2106-00184,0.00,9.49,R,Ab* Abebooks.Uk Ipczif,Yes
Http://opendatacommunities.org/id/metropolitan-district-council/leeds,Leeds City Council,30/06/2021,City Development,Economic Development,Supplies and Services,Grant Related Expenditure,290,18/06/2021,2106-00185,0.00,500.00,R,REDACTED PERSONAL DATA,No
Http://opendatacommunities.org/id/metropolitan-district-council/leeds,Leeds City Council,30/06/2021,Communities and Environment,Customer Access,Supplies and Services,Bought In Professional Services,277,07/06/2021,2106-00186,0.00,18.00,R,Abadit Kiros,No
Http://opendatacommunities.org/id/metropolitan-district-council/leeds,Leeds City Council,30/06/2021,Communities and Environment,Customer Access,Supplies and Services,Bought In Professional Services,277,09/06/2021,2106-00187,0.00,9.00,R,Abadit Kiros,No
Http://opendatacommunities.org/id/metropolitan-district-council/leeds,Leeds City Council,30/06/2021,Communities and Environment,Customer Access,Supplies and Services,Bought In Professional Services,277,17/06/2021,2106-00188,0.00,18.00,R,Abadit Kiros,No
Http://opendatacommunities.org/id/metropolitan-district-council/leeds,Leeds City Council,30/06/2021,Communities and Environment,Benefits Welfare and Poverty ,Supplies and Services,Schools related grant expenditure,299,04/06/2021,2106-00189,0.00,1350.00,R,Abbey Multi Academy Trust,No
Http://opendatacommunities.org/id/metropolitan-district-council/leeds,Leeds City Council,30/06/2021,Communities and Environment,Benefits Welfare and Poverty ,Supplies and Services,Schools related grant expenditure,299,07/06/2021,2106-00190,0.00,750.00,R,Abbey Multi Academy Trust,No
Http://opendatacommunities.org/id/metropolitan-district-council/leeds,Leeds City Council,30/06/2021,Communities and Environment,Benefits Welfare and Poverty ,Supplies and Services,Schools related grant expenditure,299,08/06/2021,2106-00191,0.00,5655.00,R,Abbey Multi Academy Trust,No
Http://opendatacommunities.org/id/metropolitan-district-council/leeds,Leeds City Council,30/06/2021,Communities and Environment,Benefits Welfare and Poverty ,Supplies and Services,Schools related grant expenditure,299,08/06/2021,2106-00192,0.00,255.00,R,Abbey Multi Academy Trust,No
Http://opendatacommunities.org/id/metropolitan-district-council/leeds,Leeds City Council,30/06/2021,Communities and Environment,Benefits Welfare and Poverty ,Supplies and Services,Schools related grant expenditure,299,08/06/2021,2106-00193,0.00,3690.00,R,Abbey Multi Academy Trust,No
Http://opendatacommunities.org/id/metropolitan-district-council/leeds,Leeds City Council,30/06/2021,Children and Families,Learning,Supplies and Services,Other Hired And Contracted Services,265,23/06/2021,2106-00194,0.00,390.00,R,Abbey Multi Academy Trust,No
Http://opendatacommunities.org/id/metropolitan-district-council/leeds,Leeds City Council,30/06/2021,Children and Families,Social Care,Agency Payments,Section 17,551,02/06/2021,2106-00195,0.00,90.58,R,REDACTED PERSONAL DATA,No
Http://opendatacommunities.org/id/metropolitan-district-council/leeds,Leeds City Council,30/06/2021,Children and Families,Social Care,Agency Payments,Services Rendered By Other Organisations,511,04/06/2021,2106-00196,0.00,217.42,R,REDACTED PERSONAL DATA,No
Http://opendatacommunities.org/id/metropolitan-district-council/leeds,Leeds City Council,30/06/2021,Communities and Environment,Parks and Countryside,Supplies and Services,Other Hired And Contracted Services,265,25/06/2021,2106-00197,0.00,550.00,R,Abbotts Memorials,No
Http://opendatacommunities.org/id/metropolitan-district-council/leeds,Leeds City Council,30/06/2021,Communities and Environment,Benefits Welfare and Poverty ,Supplies and Services,Grant Related Expenditure,290,18/06/2021,2106-00198,0.00,500.00,R,REDACTED PERSONAL DATA,No
Http://opendatacommunities.org/id/metropolitan-district-council/leeds,Leeds City Council,30/06/2021,Children and Families,Social Care,Agency Payments,Services Rendered By Other Organisations,511,02/06/2021,2106-00199,0.00,2299.44,R,Abc Daycare And Ozone Out Of School,No
Http://opendatacommunities.org/id/metropolitan-district-council/leeds,Leeds City Council,30/06/2021,Children and Families,Social Care,Agency Payments,Services Rendered By Other Organisations,511,04/06/2021,2106-00200,0.00,4870.32,R,Abc Daycare And Ozone Out Of School,No
Http://opendatacommunities.org/id/metropolitan-district-council/leeds,Leeds City Council,30/06/2021,Children and Families,Social Care,Agency Payments,Services Rendered By Other Organisations,511,02/06/2021,2106-00201,0.00,2508.48,R,ABC NURSERY AT LUFC,No
Http://opendatacommunities.org/id/metropolitan-district-council/leeds,Leeds City Council,30/06/2021,Children and Families,Social Care,Agency Payments,Services Rendered By Other Organisations,511,04/06/2021,2106-00202,0.00,6957.60,R,ABC NURSERY AT LUFC,No
Http://opendatacommunities.org/id/metropolitan-district-council/leeds,Leeds City Council,30/06/2021,Children and Families,Social Care,Agency Payments,Services Rendered By Voluntary Sector,505,18/06/2021,2106-00203,0.00,615.81,R,ABC NURSERY AT LUFC,No
Http://opendatacommunities.org/id/metropolitan-district-council/leeds,Leeds City Council,30/06/2021,Children and Families,Social Care,Agency Payments,Services Rendered By Other Organisations,511,02/06/2021,2106-00204,0.00,1672.32,R,Abc@D'S Childcare,No
Http://opendatacommunities.org/id/metropolitan-district-council/leeds,Leeds City Council,30/06/2021,Children and Families,Social Care,Agency Payments,Services Rendered By Other Organisations,511,04/06/2021,2106-00205,0.00,6261.84,R,Abc@D'S Childcare,No
Http://opendatacommunities.org/id/metropolitan-district-council/leeds,Leeds City Council,30/06/2021,City Development,Economic Development,Supplies and Services,Grant Related Expenditure,290,23/06/2021,2106-00206,0.00,250.00,R,ABCD Services Ltd,No
Http://opendatacommunities.org/id/metropolitan-district-council/leeds,Leeds City Council,30/06/2021,City Development,Economic Development,Supplies and Services,Grant Related Expenditure,290,14/06/2021,2106-00207,0.00,500.00,R,REDACTED PERSONAL DATA,No
Http://opendatacommunities.org/id/metropolitan-district-council/leeds,Leeds City Council,30/06/2021,Communities and Environment,Benefits Welfare and Poverty ,Supplies and Services,Grant Related Expenditure,290,09/06/2021,2106-00208,0.00,500.00,R,REDACTED PERSONAL DATA,No
Http://opendatacommunities.org/id/metropolitan-district-council/leeds,Leeds City Council,30/06/2021,City Development,Economic Development,Supplies and Services,Grant Related Expenditure,290,21/06/2021,2106-00209,0.00,500.00,R,REDACTED PERSONAL DATA,No
Http://opendatacommunities.org/id/metropolitan-district-council/leeds,Leeds City Council,30/06/2021,Resources and Housing,Sustainable Energy & Climate Change,Capital,OTHER COSTS,7,23/06/2021,2106-00210,0.00,2100.00,C,REDACTED COMMERCIAL CONFIDENTIALITY,No
Http://opendatacommunities.org/id/metropolitan-district-council/leeds,Leeds City Council,30/06/2021,Resources and Housing,Sustainable Energy & Climate Change,Capital,OTHER COSTS,7,07/06/2021,2106-00211,0.00,2100.00,C,REDACTED COMMERCIAL CONFIDENTIALITY,No
Http://opendatacommunities.org/id/metropolitan-district-council/leeds,Leeds City Council,30/06/2021,City Development,Economic Development,Supplies and Services,Grant Related Expenditure,290,21/06/2021,2106-00212,0.00,250.00,R,REDACTED PERSONAL DATA,No
Http://opendatacommunities.org/id/metropolitan-district-council/leeds,Leeds City Council,30/06/2021,City Development,Economic Development,Supplies and Services,Grant Related Expenditure,290,25/06/2021,2106-00213,0.00,500.00,R,Abdul Jabbar Sattar,No
Http://opendatacommunities.org/id/metropolitan-district-council/leeds,Leeds City Council,30/06/2021,Communities and Environment,Customer Access,Supplies and Services,Bought In Professional Services,277,17/06/2021,2106-00214,0.00,27.00,R,Abdul Kalam,No
Http://opendatacommunities.org/id/metropolitan-district-council/leeds,Leeds City Council,30/06/2021,Communities and Environment,Customer Access,Supplies and Services,Bought In Professional Services,277,17/06/2021,2106-00215,0.00,18.00,R,Abdul Kalam,No
Http://opendatacommunities.org/id/metropolitan-district-council/leeds,Leeds City Council,30/06/2021,Communities and Environment,Customer Access,Supplies and Services,Bought In Professional Services,277,30/06/2021,2106-00216,0.00,9.00,R,Abdul Kalam,No
Http://opendatacommunities.org/id/metropolitan-district-council/leeds,Leeds City Council,30/06/2021,City Development,Economic Development,Supplies and Services,Grant Related Expenditure,290,18/06/2021,2106-00217,0.00,250.00,R,Abdul Khalam,No
Http://opendatacommunities.org/id/metropolitan-district-council/leeds,Leeds City Council,30/06/2021,Insurance,Insurance,Supplies and Services,Insurance Claims,248,23/06/2021,2106-00218,0.00,700.00,R,Abdul Khalam,No
Http://opendatacommunities.org/id/metropolitan-district-council/leeds,Leeds City Council,30/06/2021,Resources and Housing,Sustainable Energy & Climate Change,Capital,OTHER COSTS,7,03/06/2021,2106-00219,0.00,2100.00,C,REDACTED COMMERCIAL CONFIDENTIALITY,No
Http://opendatacommunities.org/id/metropolitan-district-council/leeds,Leeds City Council,30/06/2021,City Development,Economic Development,Supplies and Services,Grant Related Expenditure,290,14/06/2021,2106-00220,0.00,500.00,R,Abdul Non Sattar,No
Http://opendatacommunities.org/id/metropolitan-district-council/leeds,Leeds City Council,30/06/2021,City Development,Economic Development,Supplies and Services,Grant Related Expenditure,290,09/06/2021,2106-00221,0.00,500.00,R,REDACTED PERSONAL DATA,No
Http://opendatacommunities.org/id/metropolitan-district-council/leeds,Leeds City Council,30/06/2021,City Development,Economic Development,Supplies and Services,Grant Related Expenditure,290,25/06/2021,2106-00222,0.00,500.00,R,REDACTED PERSONAL DATA,No
Http://opendatacommunities.org/id/metropolitan-district-council/leeds,Leeds City Council,30/06/2021,City Development,Economic Development,Supplies and Services,Grant Related Expenditure,290,14/06/2021,2106-00223,0.00,500.00,R,REDACTED PERSONAL DATA,No
Http://opendatacommunities.org/id/metropolitan-district-council/leeds,Leeds City Council,30/06/2021,City Development,Economic Development,Supplies and Services,Grant Related Expenditure,290,14/06/2021,2106-00224,0.00,500.00,R,REDACTED PERSONAL DATA,No
Http://opendatacommunities.org/id/metropolitan-district-council/leeds,Leeds City Council,30/06/2021,City Development,Economic Development,Supplies and Services,Grant Related Expenditure,290,21/06/2021,2106-00225,0.00,500.00,R,Abdul Sattar,No
Http://opendatacommunities.org/id/metropolitan-district-council/leeds,Leeds City Council,30/06/2021,Resources and Housing,Sustainable Energy & Climate Change,Capital,OTHER COSTS,7,07/06/2021,2106-00226,0.00,2100.00,C,REDACTED COMMERCIAL CONFIDENTIALITY,No
Http://opendatacommunities.org/id/metropolitan-district-council/leeds,Leeds City Council,30/06/2021,Communities and Environment,Customer Access,Supplies and Services,Bought In Professional Services,277,07/06/2021,2106-00227,0.00,18.00,R,Abdulahad Denha,No
Http://opendatacommunities.org/id/metropolitan-district-council/leeds,Leeds City Council,30/06/2021,Communities and Environment,Customer Access,Supplies and Services,Bought In Professional Services,277,07/06/2021,2106-00228,0.00,13.50,R,Abdulahad Denha,No
Http://opendatacommunities.org/id/metropolitan-district-council/leeds,Leeds City Council,30/06/2021,Communities and Environment,Customer Access,Supplies and Services,Bought In Professional Services,277,09/06/2021,2106-00229,0.00,9.00,R,Abdulahad Denha,No
Http://opendatacommunities.org/id/metropolitan-district-council/leeds,Leeds City Council,30/06/2021,Communities and Environment,Customer Access,Supplies and Services,Bought In Professional Services,277,17/06/2021,2106-00230,0.00,18.00,R,Abdulahad Denha,No
Http://opendatacommunities.org/id/metropolitan-district-council/leeds,Leeds City Council,30/06/2021,Communities and Environment,Customer Access,Supplies and Services,Bought In Professional Services,277,24/06/2021,2106-00231,0.00,18.00,R,Abdulahad Denha,No
Http://opendatacommunities.org/id/metropolitan-district-council/leeds,Leeds City Council,30/06/2021,Communities and Environment,Customer Access,Supplies and Services,Bought In Professional Services,277,24/06/2021,2106-00232,0.00,13.50,R,Abdulahad Denha,No
Http://opendatacommunities.org/id/metropolitan-district-council/leeds,Leeds City Council,30/06/2021,Communities and Environment,Customer Access,Supplies and Services,Bought In Professional Services,277,30/06/2021,2106-00233,0.00,18.00,R,Abdulahad Denha,No
Http://opendatacommunities.org/id/metropolitan-district-council/leeds,Leeds City Council,30/06/2021,Communities and Environment,Customer Access,Supplies and Services,Bought In Professional Services,277,30/06/2021,2106-00234,0.00,28.50,R,Abdulahad Denha,No
Http://opendatacommunities.org/id/metropolitan-district-council/leeds,Leeds City Council,30/06/2021,Communities and Environment,Customer Access,Supplies and Services,Bought In Professional Services,277,07/06/2021,2106-00235,0.00,13.50,R,Abdulrahim Dastyar,No
Http://opendatacommunities.org/id/metropolitan-district-council/leeds,Leeds City Council,30/06/2021,Communities and Environment,Customer Access,Supplies and Services,Bought In Professional Services,277,07/06/2021,2106-00236,0.00,9.00,R,Abdulrahim Dastyar,No
Http://opendatacommunities.org/id/metropolitan-district-council/leeds,Leeds City Council,30/06/2021,Communities and Environment,Customer Access,Supplies and Services,Bought In Professional Services,277,09/06/2021,2106-00237,0.00,27.00,R,Abdulrahim Dastyar,No
Http://opendatacommunities.org/id/metropolitan-district-council/leeds,Leeds City Council,30/06/2021,Communities and Environment,Customer Access,Supplies and Services,Bought In Professional Services,277,17/06/2021,2106-00238,0.00,18.00,R,Abdulrahim Dastyar,No
Http://opendatacommunities.org/id/metropolitan-district-council/leeds,Leeds City Council,30/06/2021,Communities and Environment,Customer Access,Supplies and Services,Bought In Professional Services,277,17/06/2021,2106-00239,0.00,9.00,R,Abdulrahim Dastyar,No
Http://opendatacommunities.org/id/metropolitan-district-council/leeds,Leeds City Council,30/06/2021,Communities and Environment,Customer Access,Supplies and Services,Bought In Professional Services,277,24/06/2021,2106-00240,0.00,18.00,R,Abdulrahim Dastyar,No
Http://opendatacommunities.org/id/metropolitan-district-council/leeds,Leeds City Council,30/06/2021,Communities and Environment,Customer Access,Supplies and Services,Bought In Professional Services,277,24/06/2021,2106-00241,0.00,27.00,R,Abdulrahim Dastyar,No
Http://opendatacommunities.org/id/metropolitan-district-council/leeds,Leeds City Council,30/06/2021,Communities and Environment,Customer Access,Supplies and Services,Bought In Professional Services,277,24/06/2021,2106-00242,0.00,18.00,R,Abdulrahim Dastyar,No
Http://opendatacommunities.org/id/metropolitan-district-council/leeds,Leeds City Council,30/06/2021,Communities and Environment,Customer Access,Supplies and Services,Bought In Professional Services,277,24/06/2021,2106-00243,0.00,18.00,R,Abdulrahim Dastyar,No
Http://opendatacommunities.org/id/metropolitan-district-council/leeds,Leeds City Council,30/06/2021,Communities and Environment,Customer Access,Supplies and Services,Bought In Professional Services,277,24/06/2021,2106-00244,0.00,18.00,R,Abdulrahim Dastyar,No
Http://opendatacommunities.org/id/metropolitan-district-council/leeds,Leeds City Council,30/06/2021,Communities and Environment,Customer Access,Supplies and Services,Bought In Professional Services,277,24/06/2021,2106-00245,0.00,18.00,R,Abdulrahim Dastyar,No
Http://opendatacommunities.org/id/metropolitan-district-council/leeds,Leeds City Council,30/06/2021,Communities and Environment,Customer Access,Supplies and Services,Bought In Professional Services,277,24/06/2021,2106-00246,0.00,18.00,R,Abdulrahim Dastyar,No
Http://opendatacommunities.org/id/metropolitan-district-council/leeds,Leeds City Council,30/06/2021,Communities and Environment,Customer Access,Supplies and Services,Bought In Professional Services,277,24/06/2021,2106-00247,0.00,63.00,R,Abdulrahim Dastyar,No
Http://opendatacommunities.org/id/metropolitan-district-council/leeds,Leeds City Council,30/06/2021,Communities and Environment,Customer Access,Supplies and Services,Bought In Professional Services,277,30/06/2021,2106-00248,0.00,18.00,R,Abdulrahim Dastyar,No
Http://opendatacommunities.org/id/metropolitan-district-council/leeds,Leeds City Council,30/06/2021,Communities and Environment,Customer Access,Supplies and Services,Bought In Professional Services,277,30/06/2021,2106-00249,0.00,27.00,R,Abdulrahim Dastyar,No
Http://opendatacommunities.org/id/metropolitan-district-council/leeds,Leeds City Council,30/06/2021,Communities and Environment,Customer Access,Supplies and Services,Bought In Professional Services,277,30/06/2021,2106-00250,0.00,18.00,R,Abdulrahim Dastyar,No
Http://opendatacommunities.org/id/metropolitan-district-council/leeds,Leeds City Council,30/06/2021,Communities and Environment,Customer Access,Supplies and Services,Bought In Professional Services,277,30/06/2021,2106-00251,0.00,18.00,R,Abdulrahim Dastyar,No
Http://opendatacommunities.org/id/metropolitan-district-council/leeds,Leeds City Council,30/06/2021,Communities and Environment,Customer Access,Supplies and Services,Bought In Professional Services,277,30/06/2021,2106-00252,0.00,27.00,R,Abdulrahim Dastyar,No
Http://opendatacommunities.org/id/metropolitan-district-council/leeds,Leeds City Council,30/06/2021,City Development,Economic Development,Supplies and Services,Grant Related Expenditure,290,21/06/2021,2106-00253,0.00,250.00,R,REDACTED PERSONAL DATA,No
Http://opendatacommunities.org/id/metropolitan-district-council/leeds,Leeds City Council,30/06/2021,Adults and Health,Services For Older People - 65 And Over,Agency Payments,Nursing Home,570,23/06/2021,2106-00254,0.00,20628.35,R,Aberford Hall,No
Http://opendatacommunities.org/id/metropolitan-district-council/leeds,Leeds City Council,30/06/2021,Adults and Health,Services For Older People - 65 And Over,Agency Payments,Residential,580,23/06/2021,2106-00255,0.00,1171.86,R,Aberford Hall,No
Http://opendatacommunities.org/id/metropolitan-district-council/leeds,Leeds City Council,30/06/2021,City Development,Economic Development,Supplies and Services,Grant Related Expenditure,290,29/06/2021,2106-00256,0.00,500.00,R,REDACTED PERSONAL DATA,No
Http://opendatacommunities.org/id/metropolitan-district-council/leeds,Leeds City Council,30/06/2021,Communities and Environment,Customer Access,Supplies and Services,Bought In Professional Services,277,07/06/2021,2106-00257,0.00,13.50,R,Abida Begum,No
Http://opendatacommunities.org/id/metropolitan-district-council/leeds,Leeds City Council,30/06/2021,Communities and Environment,Customer Access,Supplies and Services,Bought In Professional Services,277,17/06/2021,2106-00258,0.00,9.00,R,Abida Begum,No
Http://opendatacommunities.org/id/metropolitan-district-council/leeds,Leeds City Council,30/06/2021,Communities and Environment,Customer Access,Supplies and Services,Bought In Professional Services,277,24/06/2021,2106-00259,0.00,9.00,R,Abida Begum,No
Http://opendatacommunities.org/id/metropolitan-district-council/leeds,Leeds City Council,30/06/2021,Communities and Environment,Customer Access,Supplies and Services,Bought In Professional Services,277,24/06/2021,2106-00260,0.00,9.00,R,Abida Begum,No
Http://opendatacommunities.org/id/metropolitan-district-council/leeds,Leeds City Council,30/06/2021,Communities and Environment,Customer Access,Supplies and Services,Bought In Professional Services,277,30/06/2021,2106-00261,0.00,9.60,R,Abida Begum,No
Http://opendatacommunities.org/id/metropolitan-district-council/leeds,Leeds City Council,30/06/2021,Children and Families,Social Care,Agency Payments,Section 17,551,07/06/2021,2106-00262,0.00,100.00,R,REDACTED PERSONAL DATA,No
Http://opendatacommunities.org/id/metropolitan-district-council/leeds,Leeds City Council,30/06/2021,Children and Families,Social Care,Agency Payments, Direct Work,549,23/06/2021,2106-00263,0.00,14.28,R,REDACTED PERSONAL DATA,No
Http://opendatacommunities.org/id/metropolitan-district-council/leeds,Leeds City Council,30/06/2021,Children and Families,Social Care,Agency Payments,Placement Support,550,29/06/2021,2106-00264,0.00,13.91,R,REDACTED PERSONAL DATA,No
Http://opendatacommunities.org/id/metropolitan-district-council/leeds,Leeds City Council,30/06/2021,Adults and Health,Public Health ,Employees,Training & Development,70,13/05/2021,2106-00265,0.00,82.50,R,Abilitynet,Yes
Http://opendatacommunities.org/id/metropolitan-district-council/leeds,Leeds City Council,30/06/2021,City Development,Economic Development,Supplies and Services,Grant Related Expenditure,290,01/06/2021,2106-00266,0.00,1417.00,R,Abisher Ltd,No
Http://opendatacommunities.org/id/metropolitan-district-council/leeds,Leeds City Council,30/06/2021,City Development,Economic Development,Supplies and Services,Grant Related Expenditure,290,24/06/2021,2106-00267,0.00,7717.00,R,Able 2 Help Mobility Ltd,No
Http://opendatacommunities.org/id/metropolitan-district-council/leeds,Leeds City Council,30/06/2021,City Development,Economic Development,Supplies and Services,Grant Related Expenditure,290,04/06/2021,2106-00268,0.00,6000.00,R,Abraham Moon & Sons,No
Http://opendatacommunities.org/id/metropolitan-district-council/leeds,Leeds City Council,30/06/2021,City Development,Economic Development,Supplies and Services,Grant Related Expenditure,290,21/06/2021,2106-00269,0.00,250.00,R,REDACTED PERSONAL DATA,No
Http://opendatacommunities.org/id/metropolitan-district-council/leeds,Leeds City Council,30/06/2021,City Development,Economic Development,Supplies and Services,Grant Related Expenditure,290,18/06/2021,2106-00270,0.00,250.00,R,REDACTED PERSONAL DATA,No
Http://opendatacommunities.org/id/metropolitan-district-council/leeds,Leeds City Council,30/06/2021,Communities and Environment,Benefits Welfare and Poverty ,Supplies and Services,Grant Related Expenditure,298,17/06/2021,2106-00271,0.00,500.00,R,REDACTED PERSONAL DATA,No
Http://opendatacommunities.org/id/metropolitan-district-council/leeds,Leeds City Council,30/06/2021,City Development,Economic Development,Supplies and Services,Grant Related Expenditure,290,21/06/2021,2106-00272,0.00,250.00,R,REDACTED PERSONAL DATA,No
Http://opendatacommunities.org/id/metropolitan-district-council/leeds,Leeds City Council,30/06/2021,Adults and Health,Services For Adults Under 65 Mental/Dis,Agency Payments,Fees - Level 4,520,17/06/2021,2106-00273,0.00,175.00,R,Abubaker Denja Mohammed,No
Http://opendatacommunities.org/id/metropolitan-district-council/leeds,Leeds City Council,30/06/2021,Adults and Health,Services For Adults Under 65 Mental/Dis,Agency Payments,Fees - Level 4,520,25/06/2021,2106-00274,0.00,175.00,R,Abubaker Denja Mohammed,No
Http://opendatacommunities.org/id/metropolitan-district-council/leeds,Leeds City Council,30/06/2021,Adults and Health,Services For Adults Under 65 Mental/Dis,Agency Payments,Fees - Level 4,520,25/06/2021,2106-00275,0.00,175.00,R,Abubaker Denja Mohammed,No
Http://opendatacommunities.org/id/metropolitan-district-council/leeds,Leeds City Council,30/06/2021,Communities and Environment,Benefits Welfare and Poverty ,Supplies and Services,Schools related grant expenditure,299,08/06/2021,2106-00276,0.00,2280.00,R,Academies Enterprise Trust (AET),No
Http://opendatacommunities.org/id/metropolitan-district-council/leeds,Leeds City Council,30/06/2021,Resources and Housing,Finance ,Employees,Training & Development,70,20/05/2021,2106-00277,0.00,110.00,R,Acas,Yes
Http://opendatacommunities.org/id/metropolitan-district-council/leeds,Leeds City Council,30/06/2021,City Development,Economic Development,Supplies and Services,Grant Related Expenditure,290,25/06/2021,2106-00278,0.00,250.00,R,Access Agents Ltd,No
Http://opendatacommunities.org/id/metropolitan-district-council/leeds,Leeds City Council,30/06/2021,Insurance,Insurance,Supplies and Services,Insurance Claims,248,02/06/2021,2106-00279,0.00,84.96,R,Access Hire,No
Http://opendatacommunities.org/id/metropolitan-district-council/leeds,Leeds City Council,30/06/2021,Strategic Landlord,Property and Contracts,Premises,General Maintenance,104,02/06/2021,2106-00280,0.00,248.00,R,ACCESS LOCKSMITHS (LEEDS) LIMITED,No
Http://opendatacommunities.org/id/metropolitan-district-council/leeds,Leeds City Council,30/06/2021,Resources and Housing,HRA Housing Leeds,Capital,OTHER COSTS,7,11/06/2021,2106-00281,0.00,10.80,C,ACCESS LOCKSMITHS (LEEDS) LIMITED,No
Http://opendatacommunities.org/id/metropolitan-district-council/leeds,Leeds City Council,30/06/2021,Strategic Landlord,Housing Management,Supplies and Services,Resaleable Materials,204,11/06/2021,2106-00282,0.00,24.80,R,ACCESS LOCKSMITHS (LEEDS) LIMITED,No
Http://opendatacommunities.org/id/metropolitan-district-council/leeds,Leeds City Council,30/06/2021,Strategic Landlord,Housing Management,Supplies and Services,Resaleable Materials,204,11/06/2021,2106-00283,0.00,74.40,R,ACCESS LOCKSMITHS (LEEDS) LIMITED,No
Http://opendatacommunities.org/id/metropolitan-district-council/leeds,Leeds City Council,30/06/2021,Strategic Landlord,Housing Management,Supplies and Services,Resaleable Materials,204,11/06/2021,2106-00284,0.00,24.80,R,ACCESS LOCKSMITHS (LEEDS) LIMITED,No
Http://opendatacommunities.org/id/metropolitan-district-council/leeds,Leeds City Council,30/06/2021,Resources and Housing,Leeds Building Services,Supplies and Services,Operational Materials,205,17/06/2021,2106-00285,0.00,11.90,R,ACCESS LOCKSMITHS (LEEDS) LIMITED,No
Http://opendatacommunities.org/id/metropolitan-district-council/leeds,Leeds City Council,30/06/2021,Resources and Housing,Leeds Building Services,Supplies and Services,Operational Materials,205,17/06/2021,2106-00286,0.00,23.47,R,ACCESS LOCKSMITHS (LEEDS) LIMITED,No
Http://opendatacommunities.org/id/metropolitan-district-council/leeds,Leeds City Council,30/06/2021,Resources and Housing,Leeds Building Services,Supplies and Services,Operational Materials,205,17/06/2021,2106-00287,0.00,16.00,R,ACCESS LOCKSMITHS (LEEDS) LIMITED,No
Http://opendatacommunities.org/id/metropolitan-district-council/leeds,Leeds City Council,30/06/2021,Resources and Housing,Leeds Building Services,Supplies and Services,Operational Materials,205,17/06/2021,2106-00288,0.00,25.80,R,ACCESS LOCKSMITHS (LEEDS) LIMITED,No
Http://opendatacommunities.org/id/metropolitan-district-council/leeds,Leeds City Council,30/06/2021,Strategic Landlord,Housing Management,Supplies and Services,Resaleable Materials,204,18/06/2021,2106-00289,0.00,496.00,R,ACCESS LOCKSMITHS (LEEDS) LIMITED,No
Http://opendatacommunities.org/id/metropolitan-district-council/leeds,Leeds City Council,30/06/2021,Strategic Landlord,Housing Management,Supplies and Services,Resaleable Materials,204,18/06/2021,2106-00290,0.00,18.60,R,ACCESS LOCKSMITHS (LEEDS) LIMITED,No
Http://opendatacommunities.org/id/metropolitan-district-council/leeds,Leeds City Council,30/06/2021,Strategic Landlord,Housing Management,Supplies and Services,Resaleable Materials,204,28/06/2021,2106-00291,0.00,752.00,R,ACCESS LOCKSMITHS (LEEDS) LIMITED,No
Http://opendatacommunities.org/id/metropolitan-district-council/leeds,Leeds City Council,30/06/2021,Strategic Landlord,Housing Management,Supplies and Services,Resaleable Materials,204,30/06/2021,2106-00292,0.00,11.55,R,ACCESS LOCKSMITHS (LEEDS) LIMITED,No
Http://opendatacommunities.org/id/metropolitan-district-council/leeds,Leeds City Council,30/06/2021,Communities and Environment,Waste Management,Supplies and Services,Operational Furniture And Equipment,203,30/06/2021,2106-00293,0.00,572.50,R,ACCESS LOCKSMITHS (LEEDS) LIMITED,No
Http://opendatacommunities.org/id/metropolitan-district-council/leeds,Leeds City Council as Accountable Body,30/06/2021,Social Services Pooled Budgets,Leeds Community Equip Store Pooled Budgt,Supplies and Services,Other Equipment,203,18/06/2021,2106-00294,0.00,2258.00,R,Accora,No
Http://opendatacommunities.org/id/metropolitan-district-council/leeds,Leeds City Council,30/06/2021,City Development,Libraries Arts & Heritage,Transport,Hire Of Movable Plant & Machinery,315,16/06/2021,2106-00295,0.00,120.00,R,ACE CONTAINER SERVICES LIMITED,No
Http://opendatacommunities.org/id/metropolitan-district-council/leeds,Leeds City Council,30/06/2021,City Development,Economic Development,Supplies and Services,Grant Related Expenditure,298,18/06/2021,2106-00296,0.00,350.00,R,ACE CONTAINER SERVICES LIMITED,No
Http://opendatacommunities.org/id/metropolitan-district-council/leeds,Leeds City Council,30/06/2021,City Development,Recreation,Transport,External Hire -Occasional,304,30/06/2021,2106-00297,0.00,124.50,R,ACE CONTAINER SERVICES LIMITED,No
Http://opendatacommunities.org/id/metropolitan-district-council/leeds,Leeds City Council,30/06/2021,City Development,Economic Development,Supplies and Services,Grant Related Expenditure,290,02/06/2021,2106-00298,0.00,6000.00,R,Ace Leaflet Distribution & Print Ltd,No
Http://opendatacommunities.org/id/metropolitan-district-council/leeds,Leeds City Council,30/06/2021,Children and Families,Social Care,Supplies and Services,Bought In Professional Services,277,22/06/2021,2106-00299,0.00,250.00,R,ACET UK,No
Http://opendatacommunities.org/id/metropolitan-district-council/leeds,Leeds City Council,30/06/2021,Children and Families,Social Care,Supplies and Services,Bought In Professional Services,277,22/06/2021,2106-00300,0.00,250.00,R,ACET UK,No
Http://opendatacommunities.org/id/metropolitan-district-council/leeds,Leeds City Council,30/06/2021,City Development,Economic Development,Supplies and Services,Grant Related Expenditure,290,24/06/2021,2106-00301,0.00,500.00,R,REDACTED PERSONAL DATA,No
Http://opendatacommunities.org/id/metropolitan-district-council/leeds,Leeds City Council,30/06/2021,Adults and Health,Services For Older People - 65 And Over,Agency Payments,Residential Care Dementia,571,23/06/2021,2106-00302,0.00,1640.48,R,Acorn Nursing Home,No
Http://opendatacommunities.org/id/metropolitan-district-council/leeds,Leeds City Council,30/06/2021,Children and Families,Social Care,Agency Payments,Services Rendered By Other Organisations,511,02/06/2021,2106-00303,0.00,94.80,R,ACORNS NURSERY,No
Http://opendatacommunities.org/id/metropolitan-district-council/leeds,Leeds City Council,30/06/2021,Children and Families,Social Care,Agency Payments,Services Rendered By Other Organisations,511,04/06/2021,2106-00304,0.00,9044.88,R,ACORNS NURSERY,No
Http://opendatacommunities.org/id/metropolitan-district-council/leeds,Leeds City Council,30/06/2021,Adults and Health,Services For Older People - 65 And Over,Agency Payments,Nursing Home,570,23/06/2021,2106-00305,0.00,16965.05,R,Acre Green,No
Http://opendatacommunities.org/id/metropolitan-district-council/leeds,Leeds City Council,30/06/2021,Adults and Health,Services For Older People - 65 And Over,Agency Payments,Residential,580,23/06/2021,2106-00306,0.00,7781.91,R,Acre Green,No
Http://opendatacommunities.org/id/metropolitan-district-council/leeds,Leeds City Council,30/06/2021,Adults and Health,Services For Older People Under 65 P/Dis,Agency Payments,Nursing Home,570,23/06/2021,2106-00307,0.00,1970.40,R,Acre Green,No
Http://opendatacommunities.org/id/metropolitan-district-council/leeds,Leeds City Council,30/06/2021,Adults and Health,Services For Older People Under 65 P/Dis,Agency Payments,Residential,580,23/06/2021,2106-00308,0.00,-3422.90,R,Acre Green,No
Http://opendatacommunities.org/id/metropolitan-district-council/leeds,Leeds City Council,30/06/2021,Children and Families,Social Care,Agency Payments,Services Rendered By Other Organisations,511,02/06/2021,2106-00309,0.00,1463.20,R,Acre Wood Day Nursery,No
Http://opendatacommunities.org/id/metropolitan-district-council/leeds,Leeds City Council,30/06/2021,Children and Families,Social Care,Agency Payments,Services Rendered By Voluntary Sector,505,02/06/2021,2106-00310,0.00,1482.46,R,Acre Wood Day Nursery,No
Http://opendatacommunities.org/id/metropolitan-district-council/leeds,Leeds City Council,30/06/2021,Children and Families,Social Care,Agency Payments,Services Rendered By Other Organisations,511,04/06/2021,2106-00311,0.00,12523.68,R,Acre Wood Day Nursery,No
Http://opendatacommunities.org/id/metropolitan-district-council/leeds,Leeds City Council,30/06/2021,Resources and Housing,Leeds Building Services,Supplies and Services,Operational Materials,205,25/06/2021,2106-00312,0.00,35.82,R,Actavo Hire And Sales Uk Limited,No
Http://opendatacommunities.org/id/metropolitan-district-council/leeds,Leeds City Council,30/06/2021,Resources and Housing,Leeds Building Services,Supplies and Services,Operational Materials,205,30/06/2021,2106-00313,0.00,37.02,R,Actavo Hire And Sales Uk Limited,No
Http://opendatacommunities.org/id/metropolitan-district-council/leeds,Leeds City Council,30/06/2021,Children and Families,Social Care,Agency Payments,Services Rendered By Other Organisations,511,02/06/2021,2106-00314,0.00,627.12,R,ACTIVE KIDS YEADON LLP,No
Http://opendatacommunities.org/id/metropolitan-district-council/leeds,Leeds City Council,30/06/2021,Children and Families,Social Care,Agency Payments,Services Rendered By Other Organisations,511,04/06/2021,2106-00315,0.00,7421.44,R,ACTIVE KIDS YEADON LLP,No
Http://opendatacommunities.org/id/metropolitan-district-council/leeds,Leeds City Council,30/06/2021,City Development,Economic Development,Supplies and Services,Grant Related Expenditure,290,04/06/2021,2106-00316,0.00,9003.00,R,ACTIVE KIDS YEADON LLP,No
Http://opendatacommunities.org/id/metropolitan-district-council/leeds,Leeds City Council,30/06/2021,Adults and Health,Services For Adults Under 65 Mental/Dis,Agency Payments,Sheltered Accommodation,569,23/06/2021,2106-00317,0.00,12867.56,R,Active Pathways,No
Http://opendatacommunities.org/id/metropolitan-district-council/leeds,Leeds City Council,30/06/2021,Adults and Health,Services For Adults Under 65 Mental/Dis,Agency Payments,Residential,580,23/06/2021,2106-00318,0.00,-4150.84,R,Active Pathways,No
Http://opendatacommunities.org/id/metropolitan-district-council/leeds,Leeds City Council as Accountable Body,30/06/2021,Social Services Pooled Budgets,Jcs For People With Learning Disabilitie,Agency Payments,Sheltered Accommodation,569,23/06/2021,2106-00319,0.00,12452.52,R,Active Pathways,No
Http://opendatacommunities.org/id/metropolitan-district-council/leeds,Leeds City Council,30/06/2021,Adults and Health,Other Adult Services,Agency Payments,Residential,580,10/06/2021,2106-00320,0.00,4029.60,R,Active Pathways Supported Living Ltd,No
Http://opendatacommunities.org/id/metropolitan-district-council/leeds,Leeds City Council,30/06/2021,City Development,Economic Development,Supplies and Services,Grant Related Expenditure,290,01/06/2021,2106-00321,0.00,4650.00,R,Acume UK LImited,No
Http://opendatacommunities.org/id/metropolitan-district-council/leeds,Leeds City Council,30/06/2021,Communities and Environment,Waste Management,Supplies and Services,Recycling & Reuse Charges,234,09/06/2021,2106-00322,0.00,5062.32,R,Acumen Waste Services Ltd,No
Http://opendatacommunities.org/id/metropolitan-district-council/leeds,Leeds City Council,30/06/2021,Communities and Environment,Waste Management,Supplies and Services,Recycling & Reuse Charges,234,09/06/2021,2106-00323,0.00,998.64,R,Acumen Waste Services Ltd,No
Http://opendatacommunities.org/id/metropolitan-district-council/leeds,Leeds City Council,30/06/2021,Communities and Environment,Waste Management,Supplies and Services,Recycling & Reuse Charges,234,09/06/2021,2106-00324,0.00,997.92,R,Acumen Waste Services Ltd,No
Http://opendatacommunities.org/id/metropolitan-district-council/leeds,Leeds City Council,30/06/2021,Communities and Environment,Waste Management,Supplies and Services,Recycling & Reuse Charges,234,10/06/2021,2106-00325,0.00,982.80,R,Acumen Waste Services Ltd,No
Http://opendatacommunities.org/id/metropolitan-district-council/leeds,Leeds City Council,30/06/2021,Communities and Environment,Waste Management,Supplies and Services,Recycling & Reuse Charges,234,10/06/2021,2106-00326,0.00,1006.56,R,Acumen Waste Services Ltd,No
Http://opendatacommunities.org/id/metropolitan-district-council/leeds,Leeds City Council,30/06/2021,Communities and Environment,Waste Management,Supplies and Services,Recycling & Reuse Charges,234,10/06/2021,2106-00327,0.00,1004.40,R,Acumen Waste Services Ltd,No
Http://opendatacommunities.org/id/metropolitan-district-council/leeds,Leeds City Council,30/06/2021,Communities and Environment,Waste Management,Supplies and Services,Recycling & Reuse Charges,234,10/06/2021,2106-00328,0.00,978.48,R,Acumen Waste Services Ltd,No
Http://opendatacommunities.org/id/metropolitan-district-council/leeds,Leeds City Council,30/06/2021,Communities and Environment,Waste Management,Supplies and Services,Recycling & Reuse Charges,234,11/06/2021,2106-00329,0.00,990.72,R,Acumen Waste Services Ltd,No
Http://opendatacommunities.org/id/metropolitan-district-council/leeds,Leeds City Council,30/06/2021,Communities and Environment,Waste Management,Supplies and Services,Recycling & Reuse Charges,234,17/06/2021,2106-00330,0.00,993.60,R,Acumen Waste Services Ltd,No
Http://opendatacommunities.org/id/metropolitan-district-council/leeds,Leeds City Council,30/06/2021,Communities and Environment,Waste Management,Supplies and Services,Recycling & Reuse Charges,234,17/06/2021,2106-00331,0.00,998.64,R,Acumen Waste Services Ltd,No
Http://opendatacommunities.org/id/metropolitan-district-council/leeds,Leeds City Council,30/06/2021,Communities and Environment,Waste Management,Supplies and Services,Recycling & Reuse Charges,234,17/06/2021,2106-00332,0.00,1013.04,R,Acumen Waste Services Ltd,No
Http://opendatacommunities.org/id/metropolitan-district-council/leeds,Leeds City Council,30/06/2021,Communities and Environment,Waste Management,Supplies and Services,Recycling & Reuse Charges,234,18/06/2021,2106-00333,0.00,1025.28,R,Acumen Waste Services Ltd,No
Http://opendatacommunities.org/id/metropolitan-district-council/leeds,Leeds City Council,30/06/2021,Communities and Environment,Waste Management,Supplies and Services,Recycling & Reuse Charges,234,23/06/2021,2106-00334,0.00,1013.04,R,Acumen Waste Services Ltd,No
Http://opendatacommunities.org/id/metropolitan-district-council/leeds,Leeds City Council,30/06/2021,Communities and Environment,Waste Management,Supplies and Services,Recycling & Reuse Charges,234,23/06/2021,2106-00335,0.00,1011.60,R,Acumen Waste Services Ltd,No
Http://opendatacommunities.org/id/metropolitan-district-council/leeds,Leeds City Council,30/06/2021,Communities and Environment,Waste Management,Supplies and Services,Recycling & Reuse Charges,234,23/06/2021,2106-00336,0.00,995.76,R,Acumen Waste Services Ltd,No
Http://opendatacommunities.org/id/metropolitan-district-council/leeds,Leeds City Council,30/06/2021,Communities and Environment,Waste Management,Supplies and Services,Recycling & Reuse Charges,234,24/06/2021,2106-00337,0.00,954.00,R,Acumen Waste Services Ltd,No
Http://opendatacommunities.org/id/metropolitan-district-council/leeds,Leeds City Council,30/06/2021,Communities and Environment,Waste Management,Supplies and Services,Recycling & Reuse Charges,234,24/06/2021,2106-00338,0.00,1041.12,R,Acumen Waste Services Ltd,No
Http://opendatacommunities.org/id/metropolitan-district-council/leeds,Leeds City Council,30/06/2021,Communities and Environment,Waste Management,Supplies and Services,Recycling & Reuse Charges,234,25/06/2021,2106-00339,0.00,1001.52,R,Acumen Waste Services Ltd,No
Http://opendatacommunities.org/id/metropolitan-district-council/leeds,Leeds City Council,30/06/2021,Communities and Environment,Waste Management,Supplies and Services,Recycling & Reuse Charges,234,25/06/2021,2106-00340,0.00,1005.84,R,Acumen Waste Services Ltd,No
Http://opendatacommunities.org/id/metropolitan-district-council/leeds,Leeds City Council,30/06/2021,Communities and Environment,Waste Management,Supplies and Services,Recycling & Reuse Charges,234,25/06/2021,2106-00341,0.00,1009.44,R,Acumen Waste Services Ltd,No
Http://opendatacommunities.org/id/metropolitan-district-council/leeds,Leeds City Council,30/06/2021,Communities and Environment,Waste Management,Supplies and Services,Recycling & Reuse Charges,234,28/06/2021,2106-00342,0.00,978.48,R,Acumen Waste Services Ltd,No
Http://opendatacommunities.org/id/metropolitan-district-council/leeds,Leeds City Council,30/06/2021,Communities and Environment,Cleaner Neighbourhood Teams,Supplies and Services,Operational Furniture And Equipment,203,29/06/2021,2106-00343,0.00,116.60,R,Acumen Waste Services Ltd,No
Http://opendatacommunities.org/id/metropolitan-district-council/leeds,Leeds City Council,30/06/2021,Communities and Environment,Cleaner Neighbourhood Teams,Supplies and Services,Operational Furniture And Equipment,203,30/06/2021,2106-00344,0.00,116.60,R,Acumen Waste Services Ltd,No
Http://opendatacommunities.org/id/metropolitan-district-council/leeds,Leeds City Council,30/06/2021,Communities and Environment,Parks and Countryside,Supplies and Services,Resaleable Materials,204,01/06/2021,2106-00345,0.00,457.50,R,ACUSHNET EUROPE LIMITED,No
Http://opendatacommunities.org/id/metropolitan-district-council/leeds,Leeds City Council,30/06/2021,Communities and Environment,Parks and Countryside,Supplies and Services,Resaleable Materials,204,15/06/2021,2106-00346,0.00,333.00,R,ACUSHNET EUROPE LIMITED,No
Http://opendatacommunities.org/id/metropolitan-district-council/leeds,Leeds City Council,30/06/2021,City Development,Economic Development,Supplies and Services,Grant Related Expenditure,290,04/06/2021,2106-00347,0.00,6000.00,R,Acute Care Chiropractic Clinic Ltd,No
Http://opendatacommunities.org/id/metropolitan-district-council/leeds,Leeds City Council,30/06/2021,City Development,Economic Development,Supplies and Services,Grant Related Expenditure,290,22/06/2021,2106-00348,0.00,250.00,R,Acute Gym Services,No
Http://opendatacommunities.org/id/metropolitan-district-council/leeds,Leeds City Council,30/06/2021,Resources and Housing,Shared Services,Supplies and Services,Operational Materials,205,04/06/2021,2106-00349,0.00,1131.75,R,AD3 Envelope Printers Limited,No
Http://opendatacommunities.org/id/metropolitan-district-council/leeds,Leeds City Council,30/06/2021,Resources and Housing,Shared Services,Supplies and Services,Other Hired And Contracted Services,265,28/06/2021,2106-00350,0.00,318.50,R,AD3 Envelope Printers Limited,No
Http://opendatacommunities.org/id/metropolitan-district-council/leeds,Leeds City Council,30/06/2021,Resources and Housing,Shared Services,Supplies and Services,Operational Materials,205,28/06/2021,2106-00351,0.00,211.30,R,AD3 Envelope Printers Limited,No
Http://opendatacommunities.org/id/metropolitan-district-council/leeds,Leeds City Council,30/06/2021,Resources and Housing,Shared Services,Supplies and Services,Other Hired And Contracted Services,265,30/06/2021,2106-00352,0.00,96.96,R,AD3 Envelope Printers Limited,No
Http://opendatacommunities.org/id/metropolitan-district-council/leeds,Leeds City Council,30/06/2021,Resources and Housing,Strategic Housing Partnership & Support,Supplies and Services,Other Hired And Contracted Services,265,30/06/2021,2106-00353,0.00,1130.10,R,Adair Paxton LLP,No
Http://opendatacommunities.org/id/metropolitan-district-council/leeds,Leeds City Council,30/06/2021,Communities and Environment,Benefits Welfare and Poverty ,Supplies and Services,Grant Related Expenditure,290,01/06/2021,2106-00354,0.00,15.00,R,REDACTED PERSONAL DATA,No
Http://opendatacommunities.org/id/metropolitan-district-council/leeds,Leeds City Council,30/06/2021,Children and Families,Social Care,Appropriations,Leaving Care Allowances,634,04/06/2021,2106-00355,0.00,70.00,R,REDACTED PERSONAL DATA,No
Http://opendatacommunities.org/id/metropolitan-district-council/leeds,Leeds City Council,30/06/2021,Children and Families,Social Care,Appropriations,Leaving Care Allowances,634,11/06/2021,2106-00356,0.00,70.00,R,REDACTED PERSONAL DATA,No
Http://opendatacommunities.org/id/metropolitan-district-council/leeds,Leeds City Council,30/06/2021,Children and Families,Social Care,Appropriations,Leaving Care Allowances,634,14/06/2021,2106-00357,0.00,70.00,R,REDACTED PERSONAL DATA,No
Http://opendatacommunities.org/id/metropolitan-district-council/leeds,Leeds City Council,30/06/2021,Children and Families,Social Care,Appropriations,Leaving Care Allowances,634,18/06/2021,2106-00358,0.00,35.50,R,REDACTED PERSONAL DATA,No
Http://opendatacommunities.org/id/metropolitan-district-council/leeds,Leeds City Council,30/06/2021,Children and Families,Social Care,Appropriations,Leaving Care Allowances,634,18/06/2021,2106-00359,0.00,70.00,R,REDACTED PERSONAL DATA,No
Http://opendatacommunities.org/id/metropolitan-district-council/leeds,Leeds City Council,30/06/2021,Children and Families,Social Care,Appropriations,Leaving Care Allowances,634,25/06/2021,2106-00360,0.00,70.00,R,REDACTED PERSONAL DATA,No
Http://opendatacommunities.org/id/metropolitan-district-council/leeds,Leeds City Council,30/06/2021,Children and Families,Social Care,Appropriations,Leaving Care Grants,635,28/06/2021,2106-00361,0.00,73.85,R,REDACTED PERSONAL DATA,No
Http://opendatacommunities.org/id/metropolitan-district-council/leeds,Leeds City Council,30/06/2021,Communities and Environment,Benefits Welfare and Poverty ,Supplies and Services,Grant Related Expenditure,298,23/06/2021,2106-00362,0.00,500.00,R,REDACTED PERSONAL DATA,No
Http://opendatacommunities.org/id/metropolitan-district-council/leeds,Leeds City Council,30/06/2021,City Development,Economic Development,Supplies and Services,Grant Related Expenditure,290,28/06/2021,2106-00363,0.00,500.00,R,REDACTED PERSONAL DATA,No
Http://opendatacommunities.org/id/metropolitan-district-council/leeds,Leeds City Council,30/06/2021,City Development,Economic Development,Supplies and Services,Grant Related Expenditure,290,29/06/2021,2106-00364,0.00,250.00,R,REDACTED PERSONAL DATA,No
Http://opendatacommunities.org/id/metropolitan-district-council/leeds,Leeds City Council,30/06/2021,City Development,Economic Development,Supplies and Services,Grant Related Expenditure,290,28/06/2021,2106-00365,0.00,250.00,R,Adam Trunks,No
Http://opendatacommunities.org/id/metropolitan-district-council/leeds,Leeds City Council,30/06/2021,Communities and Environment,Benefits Welfare and Poverty ,Supplies and Services,Grant Related Expenditure,298,30/06/2021,2106-00366,0.00,500.00,R,REDACTED PERSONAL DATA,No
Http://opendatacommunities.org/id/metropolitan-district-council/leeds,Leeds City Council,30/06/2021,City Development,Economic Development,Supplies and Services,Grant Related Expenditure,290,18/06/2021,2106-00367,0.00,250.00,R,REDACTED PERSONAL DATA,No
Http://opendatacommunities.org/id/metropolitan-district-council/leeds,Leeds City Council,30/06/2021,City Development,Economic Development,Supplies and Services,Grant Related Expenditure,290,18/06/2021,2106-00368,0.00,500.00,R,Adarak Ltd,No
Http://opendatacommunities.org/id/metropolitan-district-council/leeds,Leeds City Council,30/06/2021,Adults and Health,Services For Older People - 65 And Over,Agency Payments,Nursing Home,570,23/06/2021,2106-00369,0.00,2584.00,R,Adbolton Hall,No
Http://opendatacommunities.org/id/metropolitan-district-council/leeds,Leeds City Council,30/06/2021,City Development,Economic Development,Supplies and Services,Grant Related Expenditure,290,03/06/2021,2106-00370,0.00,1620.00,R,Additive Design Ltd,No
Http://opendatacommunities.org/id/metropolitan-district-council/leeds,Leeds City Council,30/06/2021,City Development,Highways,Capital,OTHER COSTS,7,29/06/2021,2106-00371,0.00,12442.40,C,Addleshaw Goddard Client Account,No
Http://opendatacommunities.org/id/metropolitan-district-council/leeds,Leeds City Council,30/06/2021,City Development,Asset Management Services,Internal Recharges,Legal Disbursements,411,24/06/2021,2106-00372,0.00,6772.73,R,Addleshaw Goddard LLP,No
Http://opendatacommunities.org/id/metropolitan-district-council/leeds,Leeds City Council,30/06/2021,Resources and Housing,HRA Housing Leeds,Capital,OTHER COSTS,7,24/06/2021,2106-00373,0.00,2691.70,C,Addleshaw Goddard LLP,No
Http://opendatacommunities.org/id/metropolitan-district-council/leeds,Leeds City Council,30/06/2021,Resources and Housing,Technology ,Employees,Agency Staff,8,04/05/2021,2106-00374,0.00,24656.67,R,Adecco Alfred Marks,Yes
Http://opendatacommunities.org/id/metropolitan-district-council/leeds,Leeds City Council,30/06/2021,Resources and Housing,Technology ,Employees,Agency Staff,8,18/05/2021,2106-00375,0.00,21855.08,R,Adecco Alfred Marks,Yes
Http://opendatacommunities.org/id/metropolitan-district-council/leeds,Leeds City Council,30/06/2021,Resources and Housing,Technology ,Employees,Agency Staff,8,26/05/2021,2106-00376,0.00,14541.23,R,Adecco Alfred Marks,Yes
Http://opendatacommunities.org/id/metropolitan-district-council/leeds,Leeds City Council,30/06/2021,Communities and Environment,Communities,Supplies and Services,Operational Materials,205,25/06/2021,2106-00377,0.00,235.58,R,REDACTED PERSONAL DATA,No
Http://opendatacommunities.org/id/metropolitan-district-council/leeds,Leeds City Council,30/06/2021,City Development,Economic Development,Supplies and Services,Grant Related Expenditure,290,29/06/2021,2106-00378,0.00,250.00,R,REDACTED PERSONAL DATA,No
Http://opendatacommunities.org/id/metropolitan-district-council/leeds,Leeds City Council,30/06/2021,Children and Families,Social Care,Agency Payments,Services Rendered By Voluntary Sector,505,02/06/2021,2106-00379,0.00,836.16,R,ADEL PRE SCHOOL,No
Http://opendatacommunities.org/id/metropolitan-district-council/leeds,Leeds City Council,30/06/2021,Children and Families,Social Care,Agency Payments,Services Rendered By Voluntary Sector,505,04/06/2021,2106-00380,0.00,7582.00,R,ADEL PRE SCHOOL,No
Http://opendatacommunities.org/id/metropolitan-district-council/leeds,Leeds City Council,30/06/2021,City Development,Economic Development,Supplies and Services,Grant Related Expenditure,290,01/06/2021,2106-00381,0.00,3270.00,R,Adel Sports And Social Club,No
Http://opendatacommunities.org/id/metropolitan-district-council/leeds,Leeds City Council,30/06/2021,City Development,Recreation,Supplies and Services,Bought In Professional Services,277,17/06/2021,2106-00382,0.00,196.00,R,Adele Battersby,No
Http://opendatacommunities.org/id/metropolitan-district-council/leeds,Leeds City Council,30/06/2021,City Development,Recreation,Supplies and Services,Bought In Professional Services,277,30/06/2021,2106-00383,0.00,60.00,R,Adele Battersby,No
Http://opendatacommunities.org/id/metropolitan-district-council/leeds,Leeds City Council,30/06/2021,Children and Families,Social Care,Agency Payments,Services Rendered By Other Organisations,511,02/06/2021,2106-00384,0.00,209.04,R,REDACTED PERSONAL DATA,No
Http://opendatacommunities.org/id/metropolitan-district-council/leeds,Leeds City Council,30/06/2021,Children and Families,Social Care,Agency Payments,Services Rendered By Other Organisations,511,04/06/2021,2106-00385,0.00,1391.52,R,REDACTED PERSONAL DATA,No
Http://opendatacommunities.org/id/metropolitan-district-council/leeds,Leeds City Council,30/06/2021,Children and Families,Social Care,Agency Payments,Contact,548,25/06/2021,2106-00386,0.00,16.00,R,REDACTED PERSONAL DATA,No
Http://opendatacommunities.org/id/metropolitan-district-council/leeds,Leeds City Council,30/06/2021,Communities and Environment,Parks and Countryside ,Supplies and Services,Operational Furniture And Equipment,203,23/05/2021,2106-00387,0.00,99.00,R,Adexa.Co.Uk,Yes
Http://opendatacommunities.org/id/metropolitan-district-council/leeds,Leeds City Council,30/06/2021,Communities and Environment,Community Safety,Supplies and Services,Other Hired And Contracted Services,265,02/06/2021,2106-00388,0.00,2335.32,R,ADI Global,No
Http://opendatacommunities.org/id/metropolitan-district-council/leeds,Leeds City Council,30/06/2021,Communities and Environment,Community Safety,Supplies and Services,Other Hired And Contracted Services,265,02/06/2021,2106-00389,0.00,-535.32,R,ADI Global,No
Http://opendatacommunities.org/id/metropolitan-district-council/leeds,Leeds City Council,30/06/2021,Resources and Housing,Leeds Building Services,Supplies and Services,Operational Materials,205,28/06/2021,2106-00390,0.00,238.83,R,ADI Global,No
Http://opendatacommunities.org/id/metropolitan-district-council/leeds,Leeds City Council,30/06/2021,Resources and Housing,Leeds Building Services,Supplies and Services,Operational Materials,205,28/06/2021,2106-00391,0.00,145.66,R,ADI Global,No
Http://opendatacommunities.org/id/metropolitan-district-council/leeds,Leeds City Council,30/06/2021,Resources and Housing,Leeds Building Services,Supplies and Services,Operational Materials,205,29/06/2021,2106-00392,0.00,118.54,R,ADI Global,No
Http://opendatacommunities.org/id/metropolitan-district-council/leeds,Leeds City Council,30/06/2021,Insurance,Insurance,Supplies and Services,Insurance Claims,248,10/06/2021,2106-00393,0.00,360.00,R,Admiral Law,No
Http://opendatacommunities.org/id/metropolitan-district-council/leeds,Leeds City Council,30/06/2021,Insurance,Insurance,Supplies and Services,Insurance Claims,248,10/06/2021,2106-00394,0.00,3200.00,R,Admiral Law,No
Http://opendatacommunities.org/id/metropolitan-district-council/leeds,Leeds City Council,30/06/2021,Resources and Housing,Sustainable Energy & Climate Change,Capital,OTHER COSTS,7,03/06/2021,2106-00395,0.00,2100.00,C,REDACTED COMMERCIAL CONFIDENTIALITY,No
Http://opendatacommunities.org/id/metropolitan-district-council/leeds,Leeds City Council,30/06/2021,City Development,Libraries Arts & Heritage ,Supplies and Services,Computer Software & Equipment,214,02/05/2021,2106-00396,0.00,25.28,R,Adobe Creative Cloud,Yes
Http://opendatacommunities.org/id/metropolitan-district-council/leeds,Leeds City Council,30/06/2021,Children and Families,Social Care,Agency Payments,Independent Fostering Agencies,509,10/06/2021,2106-00397,0.00,1452.00,R,Adolescent And Childrens Trust,No
Http://opendatacommunities.org/id/metropolitan-district-council/leeds,Leeds City Council,30/06/2021,Children and Families,Social Care,Agency Payments,Independent Fostering Agencies,509,10/06/2021,2106-00398,0.00,3450.00,R,Adolescent And Childrens Trust,No
Http://opendatacommunities.org/id/metropolitan-district-council/leeds,Leeds City Council,30/06/2021,Children and Families,Social Care,Agency Payments,Independent Fostering Agencies,509,10/06/2021,2106-00399,0.00,3450.00,R,Adolescent And Childrens Trust,No
Http://opendatacommunities.org/id/metropolitan-district-council/leeds,Leeds City Council,30/06/2021,Children and Families,Social Care,Agency Payments,Independent Fostering Agencies,509,10/06/2021,2106-00400,0.00,3450.00,R,Adolescent And Childrens Trust,No
Http://opendatacommunities.org/id/metropolitan-district-council/leeds,Leeds City Council,30/06/2021,Children and Families,Social Care,Agency Payments,Independent Fostering Agencies,509,10/06/2021,2106-00401,0.00,3630.00,R,Adolescent And Childrens Trust,No
Http://opendatacommunities.org/id/metropolitan-district-council/leeds,Leeds City Council,30/06/2021,Children and Families,Social Care,Agency Payments,Independent Fostering Agencies,509,10/06/2021,2106-00402,0.00,3630.00,R,Adolescent And Childrens Trust,No
Http://opendatacommunities.org/id/metropolitan-district-council/leeds,Leeds City Council,30/06/2021,Children and Families,Social Care,Agency Payments,Independent Fostering Agencies,509,10/06/2021,2106-00403,0.00,3450.00,R,Adolescent And Childrens Trust,No
Http://opendatacommunities.org/id/metropolitan-district-council/leeds,Leeds City Council,30/06/2021,Children and Families,Social Care,Agency Payments,Independent Fostering Agencies,509,10/06/2021,2106-00404,0.00,4440.00,R,Adolescent And Childrens Trust,No
Http://opendatacommunities.org/id/metropolitan-district-council/leeds,Leeds City Council,30/06/2021,Children and Families,Social Care,Agency Payments,Independent Fostering Agencies,509,10/06/2021,2106-00405,0.00,3630.00,R,Adolescent And Childrens Trust,No
Http://opendatacommunities.org/id/metropolitan-district-council/leeds,Leeds City Council,30/06/2021,Children and Families,Social Care,Agency Payments,Independent Fostering Agencies,509,10/06/2021,2106-00406,0.00,3630.00,R,Adolescent And Childrens Trust,No
Http://opendatacommunities.org/id/metropolitan-district-council/leeds,Leeds City Council,30/06/2021,Children and Families,Social Care,Agency Payments,Independent Fostering Agencies,509,30/06/2021,2106-00407,0.00,4588.00,R,Adolescent And Childrens Trust,No
Http://opendatacommunities.org/id/metropolitan-district-council/leeds,Leeds City Council,30/06/2021,Adults and Health,Services For Adults Under 65 Mental/Dis,Agency Payments,Home Care,568,03/06/2021,2106-00408,0.00,181.50,R,Adopt Healthcare,No
Http://opendatacommunities.org/id/metropolitan-district-council/leeds,Leeds City Council,30/06/2021,Adults and Health,Services For Adults Under 65 Mental/Dis,Agency Payments,Home Care,568,09/06/2021,2106-00409,0.00,204.00,R,Adopt Healthcare,No
Http://opendatacommunities.org/id/metropolitan-district-council/leeds,Leeds City Council,30/06/2021,Adults and Health,Other Adult Services,Agency Payments,Residential,580,10/06/2021,2106-00410,0.00,71.80,R,Adopt Healthcare,No
Http://opendatacommunities.org/id/metropolitan-district-council/leeds,Leeds City Council,30/06/2021,Adults and Health,Services For Adults Under 65 Mental/Dis,Agency Payments,Home Care,568,15/06/2021,2106-00411,0.00,165.00,R,Adopt Healthcare,No
Http://opendatacommunities.org/id/metropolitan-district-council/leeds,Leeds City Council,30/06/2021,Adults and Health,Other Adult Services,Agency Payments,Residential,580,15/06/2021,2106-00412,0.00,30.89,R,Adopt Healthcare,No
Http://opendatacommunities.org/id/metropolitan-district-council/leeds,Leeds City Council,30/06/2021,Adults and Health,Services For Adults Under 65 Mental/Dis,Agency Payments,Home Care,568,23/06/2021,2106-00413,0.00,165.00,R,Adopt Healthcare,No
Http://opendatacommunities.org/id/metropolitan-district-council/leeds,Leeds City Council,30/06/2021,Children and Families,Social Care,Agency Payments,Placement Support,550,04/06/2021,2106-00414,0.00,21.15,R,REDACTED PERSONAL DATA,No
Http://opendatacommunities.org/id/metropolitan-district-council/leeds,Leeds City Council,30/06/2021,Children and Families,Social Care,Agency Payments,Placement Support,550,11/06/2021,2106-00415,0.00,21.15,R,REDACTED PERSONAL DATA,No
Http://opendatacommunities.org/id/metropolitan-district-council/leeds,Leeds City Council,30/06/2021,Children and Families,Social Care,Agency Payments,Placement Support,550,18/06/2021,2106-00416,0.00,21.15,R,REDACTED PERSONAL DATA,No
Http://opendatacommunities.org/id/metropolitan-district-council/leeds,Leeds City Council,30/06/2021,Children and Families,Social Care,Agency Payments,Placement Support,550,25/06/2021,2106-00417,0.00,21.15,R,REDACTED PERSONAL DATA,No
Http://opendatacommunities.org/id/metropolitan-district-council/leeds,Leeds City Council as Accountable Body,30/06/2021,Social Services Pooled Budgets,Jcs For People With Learning Disabilitie,Agency Payments,Residential,580,30/06/2021,2106-00418,0.00,2609.36,R,ADRIAN HOUSE,No
Http://opendatacommunities.org/id/metropolitan-district-council/leeds,Leeds City Council,30/06/2021,Children and Families,Social Care,Agency Payments,Placement Support,550,29/06/2021,2106-00419,0.00,200.00,R,REDACTED PERSONAL DATA,No
Http://opendatacommunities.org/id/metropolitan-district-council/leeds,Leeds City Council,30/06/2021,City Development,Economic Development,Supplies and Services,Grant Related Expenditure,290,16/06/2021,2106-00420,0.00,500.00,R,REDACTED PERSONAL DATA,No
Http://opendatacommunities.org/id/metropolitan-district-council/leeds,Leeds City Council,30/06/2021,Strategic Landlord,Property and Contracts,Premises,General Maintenance,104,28/06/2021,2106-00421,0.00,508.00,R,ADT Fire And Security Plc,No
Http://opendatacommunities.org/id/metropolitan-district-council/leeds,Leeds City Council,30/06/2021,City Development,Economic Development,Supplies and Services,Grant Related Expenditure,290,16/06/2021,2106-00422,0.00,500.00,R,Advanced Power Care Ltd,No
Http://opendatacommunities.org/id/metropolitan-district-council/leeds,Leeds City Council as Accountable Body,30/06/2021,Social Services Pooled Budgets,Jcs For People With Learning Disabilitie,Agency Payments,Home Care,568,01/06/2021,2106-00423,0.00,1294.30,R,Advantage Healthcare Ltd,No
Http://opendatacommunities.org/id/metropolitan-district-council/leeds,Leeds City Council as Accountable Body,30/06/2021,Social Services Pooled Budgets,Jcs For People With Learning Disabilitie,Agency Payments,Home Care,568,01/06/2021,2106-00424,0.00,2760.00,R,Advantage Healthcare Ltd,No
Http://opendatacommunities.org/id/metropolitan-district-council/leeds,Leeds City Council as Accountable Body,30/06/2021,Social Services Pooled Budgets,Jcs For People With Learning Disabilitie,Agency Payments,Home Care,568,04/06/2021,2106-00425,0.00,1273.58,R,Advantage Healthcare Ltd,No
Http://opendatacommunities.org/id/metropolitan-district-council/leeds,Leeds City Council as Accountable Body,30/06/2021,Social Services Pooled Budgets,Jcs For People With Learning Disabilitie,Agency Payments,Home Care,568,04/06/2021,2106-00426,0.00,2328.75,R,Advantage Healthcare Ltd,No
Http://opendatacommunities.org/id/metropolitan-district-council/leeds,Leeds City Council as Accountable Body,30/06/2021,Social Services Pooled Budgets,Jcs For People With Learning Disabilitie,Agency Payments,Home Care,568,11/06/2021,2106-00427,0.00,5203.10,R,Advantage Healthcare Ltd,No
Http://opendatacommunities.org/id/metropolitan-district-council/leeds,Leeds City Council as Accountable Body,30/06/2021,Social Services Pooled Budgets,Jcs For People With Learning Disabilitie,Agency Payments,Home Care,568,11/06/2021,2106-00428,0.00,1983.75,R,Advantage Healthcare Ltd,No
Http://opendatacommunities.org/id/metropolitan-district-council/leeds,Leeds City Council as Accountable Body,30/06/2021,Social Services Pooled Budgets,Jcs For People With Learning Disabilitie,Agency Payments,Home Care,568,16/06/2021,2106-00429,0.00,639.38,R,Advantage Healthcare Ltd,No
Http://opendatacommunities.org/id/metropolitan-district-council/leeds,Leeds City Council as Accountable Body,30/06/2021,Social Services Pooled Budgets,Jcs For People With Learning Disabilitie,Agency Payments,Home Care,568,16/06/2021,2106-00430,0.00,2328.75,R,Advantage Healthcare Ltd,No
Http://opendatacommunities.org/id/metropolitan-district-council/leeds,Leeds City Council as Accountable Body,30/06/2021,Social Services Pooled Budgets,Jcs For People With Learning Disabilitie,Agency Payments,Home Care,568,24/06/2021,2106-00431,0.00,2138.60,R,Advantage Healthcare Ltd,No
Http://opendatacommunities.org/id/metropolitan-district-council/leeds,Leeds City Council as Accountable Body,30/06/2021,Social Services Pooled Budgets,Jcs For People With Learning Disabilitie,Agency Payments,Home Care,568,30/06/2021,2106-00432,0.00,1637.30,R,Advantage Healthcare Ltd,No
Http://opendatacommunities.org/id/metropolitan-district-council/leeds,Leeds City Council as Accountable Body,30/06/2021,Social Services Pooled Budgets,Jcs For People With Learning Disabilitie,Agency Payments,Home Care,568,30/06/2021,2106-00433,0.00,2501.25,R,Advantage Healthcare Ltd,No
Http://opendatacommunities.org/id/metropolitan-district-council/leeds,Leeds City Council,30/06/2021,Adults and Health,Services For Older People - 65 And Over,Agency Payments,Home Care,568,04/06/2021,2106-00434,0.00,6264.00,R,Advinia Care Homes Ltd,No
Http://opendatacommunities.org/id/metropolitan-district-council/leeds,Leeds City Council as Accountable Body,30/06/2021,Social Services Pooled Budgets,Jcs For People With Learning Disabilitie,Agency Payments,Residential,580,23/06/2021,2106-00435,0.00,17103.16,R,ADVITAM LTD,No
Http://opendatacommunities.org/id/metropolitan-district-council/leeds,Leeds City Council,30/06/2021,Adults and Health,Services For Adults Under 65 Mental/Dis,Agency Payments,Home Care,568,11/06/2021,2106-00436,0.00,207.60,R,Advonet,No
Http://opendatacommunities.org/id/metropolitan-district-council/leeds,Leeds City Council as Accountable Body,30/06/2021,Social Services Pooled Budgets,Jcs For People With Learning Disabilitie,Supplies and Services,Other Hired And Contracted Services,265,11/06/2021,2106-00437,0.00,139.80,R,Advonet,No
Http://opendatacommunities.org/id/metropolitan-district-council/leeds,Leeds City Council,30/06/2021,Adults and Health,Social Services Support Services,Employees,Training & Development,70,24/06/2021,2106-00438,0.00,1080.00,R,Advonet,No
Http://opendatacommunities.org/id/metropolitan-district-council/leeds,Leeds City Council,30/06/2021,Adults and Health,Services For Older People - 65 And Over,Agency Payments,Payments To Voluntary Organisations,561,29/06/2021,2106-00439,0.00,103916.67,R,Advonet,No
Http://opendatacommunities.org/id/metropolitan-district-council/leeds,Leeds City Council,30/06/2021,Adults and Health,Services For Older People - 65 And Over,Agency Payments,Payments To Voluntary Organisations,561,29/06/2021,2106-00440,0.00,103916.67,R,Advonet,No
Http://opendatacommunities.org/id/metropolitan-district-council/leeds,Leeds City Council,30/06/2021,Adults and Health,Services For Adults Under 65 Mental/Dis,Agency Payments,Fees - Level 4,520,03/06/2021,2106-00441,0.00,198.00,R,AE BIA Assessments Limited,No
Http://opendatacommunities.org/id/metropolitan-district-council/leeds,Leeds City Council,30/06/2021,Adults and Health,Services For Adults Under 65 Mental/Dis,Agency Payments,Fees - Level 4,520,04/06/2021,2106-00442,0.00,198.00,R,AE BIA Assessments Limited,No
Http://opendatacommunities.org/id/metropolitan-district-council/leeds,Leeds City Council,30/06/2021,Adults and Health,Services For Adults Under 65 Mental/Dis,Agency Payments,Fees - Level 4,520,11/06/2021,2106-00443,0.00,198.00,R,AE BIA Assessments Limited,No
Http://opendatacommunities.org/id/metropolitan-district-council/leeds,Leeds City Council,30/06/2021,Adults and Health,Services For Adults Under 65 Mental/Dis,Agency Payments,Fees - Level 4,520,11/06/2021,2106-00444,0.00,198.00,R,AE BIA Assessments Limited,No
Http://opendatacommunities.org/id/metropolitan-district-council/leeds,Leeds City Council,30/06/2021,Adults and Health,Services For Adults Under 65 Mental/Dis,Agency Payments,Fees - Level 4,520,18/06/2021,2106-00445,0.00,198.00,R,AE BIA Assessments Limited,No
Http://opendatacommunities.org/id/metropolitan-district-council/leeds,Leeds City Council,30/06/2021,Adults and Health,Services For Adults Under 65 Mental/Dis,Agency Payments,Fees - Level 4,520,18/06/2021,2106-00446,0.00,198.00,R,AE BIA Assessments Limited,No
Http://opendatacommunities.org/id/metropolitan-district-council/leeds,Leeds City Council,30/06/2021,Adults and Health,Services For Adults Under 65 Mental/Dis,Agency Payments,Fees - Level 4,520,24/06/2021,2106-00447,0.00,198.00,R,AE BIA Assessments Limited,No
Http://opendatacommunities.org/id/metropolitan-district-council/leeds,Leeds City Council,30/06/2021,Adults and Health,Services For Adults Under 65 Mental/Dis,Agency Payments,Fees - Level 4,520,25/06/2021,2106-00448,0.00,198.00,R,AE BIA Assessments Limited,No
Http://opendatacommunities.org/id/metropolitan-district-council/leeds,Leeds City Council,30/06/2021,Adults and Health,Services For Adults Under 65 Mental/Dis,Agency Payments,Fees - Level 4,520,25/06/2021,2106-00449,0.00,198.00,R,AE BIA Assessments Limited,No
Http://opendatacommunities.org/id/metropolitan-district-council/leeds,Leeds City Council,30/06/2021,Adults and Health,Services For Adults Under 65 Mental/Dis,Agency Payments,Fees - Level 4,520,25/06/2021,2106-00450,0.00,198.00,R,AE BIA Assessments Limited,No
Http://opendatacommunities.org/id/metropolitan-district-council/leeds,Leeds City Council,30/06/2021,City Development,Highways,Capital,OTHER COSTS,7,01/06/2021,2106-00451,0.00,3853.03,C,Aecom Limited,No
Http://opendatacommunities.org/id/metropolitan-district-council/leeds,Leeds City Council,30/06/2021,City Development,Highways,Capital,OTHER COSTS,7,04/06/2021,2106-00452,0.00,40641.00,C,Aecom Limited,No
Http://opendatacommunities.org/id/metropolitan-district-council/leeds,Leeds City Council,30/06/2021,City Development,Highways,Capital,OTHER COSTS,7,09/06/2021,2106-00453,0.00,17357.56,C,Aecom Limited,No
Http://opendatacommunities.org/id/metropolitan-district-council/leeds,Leeds City Council,30/06/2021,City Development,Highways,Supplies and Services,Bought In Professional Services,277,15/06/2021,2106-00454,0.00,6413.13,R,Aecom Limited,No
Http://opendatacommunities.org/id/metropolitan-district-council/leeds,Leeds City Council,30/06/2021,City Development,Highways,Capital,OTHER COSTS,7,29/06/2021,2106-00455,0.00,25093.74,C,Aecom Limited,No
Http://opendatacommunities.org/id/metropolitan-district-council/leeds,Leeds City Council,30/06/2021,City Development,Highways,Capital,OTHER COSTS,7,29/06/2021,2106-00456,0.00,52750.14,C,Aecom Limited,No
Http://opendatacommunities.org/id/metropolitan-district-council/leeds,Leeds City Council,30/06/2021,Adults and Health,Services For Adults Under 65 Mental/Dis,Agency Payments,Home Care,568,02/06/2021,2106-00457,0.00,1275.00,R,Aegis Care Solutions Ltd,No
Http://opendatacommunities.org/id/metropolitan-district-council/leeds,Leeds City Council,30/06/2021,Adults and Health,Services For Adults Under 65 Mental/Dis,Agency Payments,Home Care,568,02/06/2021,2106-00458,0.00,1252.00,R,Aegis Care Solutions Ltd,No
Http://opendatacommunities.org/id/metropolitan-district-council/leeds,Leeds City Council,30/06/2021,Adults and Health,Services For Adults Under 65 Mental/Dis,Agency Payments,Home Care,568,02/06/2021,2106-00459,0.00,4112.00,R,Aegis Care Solutions Ltd,No
Http://opendatacommunities.org/id/metropolitan-district-council/leeds,Leeds City Council,30/06/2021,Adults and Health,Services For Adults Under 65 Mental/Dis,Agency Payments,Home Care,568,02/06/2021,2106-00460,0.00,1275.00,R,Aegis Care Solutions Ltd,No
Http://opendatacommunities.org/id/metropolitan-district-council/leeds,Leeds City Council,30/06/2021,Adults and Health,Services For Adults Under 65 Mental/Dis,Agency Payments,Home Care,568,02/06/2021,2106-00461,0.00,596.50,R,Aegis Care Solutions Ltd,No
Http://opendatacommunities.org/id/metropolitan-district-council/leeds,Leeds City Council,30/06/2021,Adults and Health,Services For Adults Under 65 Mental/Dis,Agency Payments,Home Care,568,02/06/2021,2106-00462,0.00,1546.40,R,Aegis Care Solutions Ltd,No
Http://opendatacommunities.org/id/metropolitan-district-council/leeds,Leeds City Council,30/06/2021,Adults and Health,Services For Adults Under 65 Mental/Dis,Agency Payments,Home Care,568,02/06/2021,2106-00463,0.00,364.00,R,Aegis Care Solutions Ltd,No
Http://opendatacommunities.org/id/metropolitan-district-council/leeds,Leeds City Council,30/06/2021,Adults and Health,Services For Older People - 65 And Over,Agency Payments,Home Care,568,03/06/2021,2106-00464,0.00,23124.27,R,Aegis Care Solutions Ltd,No
Http://opendatacommunities.org/id/metropolitan-district-council/leeds,Leeds City Council,30/06/2021,Adults and Health,Services For Older People - 65 And Over,Agency Payments,HCAIT Other,577,03/06/2021,2106-00465,0.00,63.18,R,Aegis Care Solutions Ltd,No
Http://opendatacommunities.org/id/metropolitan-district-council/leeds,Leeds City Council,30/06/2021,Adults and Health,Services For Older People Under 65 P/Dis,Agency Payments,Home Care,568,03/06/2021,2106-00466,0.00,9029.16,R,Aegis Care Solutions Ltd,No
Http://opendatacommunities.org/id/metropolitan-district-council/leeds,Leeds City Council,30/06/2021,Adults and Health,Services For Older People Under 65 P/Dis,Agency Payments,HCAIT Community Support,575,03/06/2021,2106-00467,0.00,77.76,R,Aegis Care Solutions Ltd,No
Http://opendatacommunities.org/id/metropolitan-district-council/leeds,Leeds City Council as Accountable Body,30/06/2021,Social Services Pooled Budgets,Jcs For People With Learning Disabilitie,Agency Payments,Home Care,568,03/06/2021,2106-00468,0.00,1977.92,R,Aegis Care Solutions Ltd,No
Http://opendatacommunities.org/id/metropolitan-district-council/leeds,Leeds City Council,30/06/2021,Adults and Health,Other Adult Services,Agency Payments,Residential,580,07/06/2021,2106-00469,0.00,2256.18,R,Aegis Care Solutions Ltd,No
Http://opendatacommunities.org/id/metropolitan-district-council/leeds,Leeds City Council,30/06/2021,Adults and Health,Services For Adults Under 65 Mental/Dis,Agency Payments,Home Care,568,10/06/2021,2106-00470,0.00,1941.42,R,Aegis Care Solutions Ltd,No
Http://opendatacommunities.org/id/metropolitan-district-council/leeds,Leeds City Council,30/06/2021,Adults and Health,Other Adult Services,Agency Payments,Residential,580,15/06/2021,2106-00471,0.00,979.29,R,Aegis Care Solutions Ltd,No
Http://opendatacommunities.org/id/metropolitan-district-council/leeds,Leeds City Council,30/06/2021,Adults and Health,Services For Older People - 65 And Over,Agency Payments,Home Care,568,16/06/2021,2106-00472,0.00,23616.50,R,Aegis Care Solutions Ltd,No
Http://opendatacommunities.org/id/metropolitan-district-council/leeds,Leeds City Council,30/06/2021,Adults and Health,Services For Older People - 65 And Over,Agency Payments,HCAIT Other,577,16/06/2021,2106-00473,0.00,136.08,R,Aegis Care Solutions Ltd,No
Http://opendatacommunities.org/id/metropolitan-district-council/leeds,Leeds City Council,30/06/2021,Adults and Health,Services For Older People Under 65 P/Dis,Agency Payments,Home Care,568,16/06/2021,2106-00474,0.00,8708.40,R,Aegis Care Solutions Ltd,No
Http://opendatacommunities.org/id/metropolitan-district-council/leeds,Leeds City Council,30/06/2021,Adults and Health,Services For Older People Under 65 P/Dis,Agency Payments,HCAIT Community Support,575,16/06/2021,2106-00475,0.00,77.76,R,Aegis Care Solutions Ltd,No
Http://opendatacommunities.org/id/metropolitan-district-council/leeds,Leeds City Council as Accountable Body,30/06/2021,Social Services Pooled Budgets,Jcs For People With Learning Disabilitie,Agency Payments,Home Care,568,16/06/2021,2106-00476,0.00,1977.92,R,Aegis Care Solutions Ltd,No
Http://opendatacommunities.org/id/metropolitan-district-council/leeds,Leeds City Council,30/06/2021,Adults and Health,Services For Adults Under 65 Mental/Dis,Agency Payments,Home Care,568,23/06/2021,2106-00477,0.00,1108.00,R,Aegis Care Solutions Ltd,No
Http://opendatacommunities.org/id/metropolitan-district-council/leeds,Leeds City Council,30/06/2021,Children and Families,Learning,Supplies and Services,Conference Meetings,253,24/06/2021,2106-00478,0.00,333.33,R,Aesculap Academia,No
Http://opendatacommunities.org/id/metropolitan-district-council/leeds,Leeds City Council,30/06/2021,Adults and Health,Services For Older People Under 65 P/Dis,Agency Payments,Day Centre,564,01/06/2021,2106-00479,0.00,537.32,R,Affinity Trust,No
Http://opendatacommunities.org/id/metropolitan-district-council/leeds,Leeds City Council as Accountable Body,30/06/2021,Social Services Pooled Budgets,Jcs For People With Learning Disabilitie,Agency Payments,Day Centre,564,02/06/2021,2106-00480,0.00,9142.77,R,Affinity Trust,No
Http://opendatacommunities.org/id/metropolitan-district-council/leeds,Leeds City Council as Accountable Body,30/06/2021,Social Services Pooled Budgets,Jcs For People With Learning Disabilitie,Agency Payments,Day Centre,564,02/06/2021,2106-00481,0.00,15207.00,R,Affinity Trust,No
Http://opendatacommunities.org/id/metropolitan-district-council/leeds,Leeds City Council as Accountable Body,30/06/2021,Social Services Pooled Budgets,Jcs For People With Learning Disabilitie,Agency Payments,Day Centre,564,03/06/2021,2106-00482,0.00,14932.44,R,Affinity Trust,No
Http://opendatacommunities.org/id/metropolitan-district-council/leeds,Leeds City Council,30/06/2021,Adults and Health,Other Adult Services,Agency Payments,Residential,580,07/06/2021,2106-00483,0.00,5749.62,R,Affinity Trust,No
Http://opendatacommunities.org/id/metropolitan-district-council/leeds,Leeds City Council,30/06/2021,Adults and Health,Services For Adults Under 65 Mental/Dis,Agency Payments,Home Care,568,08/06/2021,2106-00484,0.00,511.36,R,Affinity Trust,No
Http://opendatacommunities.org/id/metropolitan-district-council/leeds,Leeds City Council,30/06/2021,Adults and Health,Services For Older People Under 65 P/Dis,Agency Payments,Home Care,568,08/06/2021,2106-00485,0.00,807.36,R,Affinity Trust,No
Http://opendatacommunities.org/id/metropolitan-district-council/leeds,Leeds City Council,30/06/2021,Adults and Health,Services For Older People Under 65 P/Dis,Agency Payments,Home Care,568,08/06/2021,2106-00486,0.00,655.98,R,Affinity Trust,No
Http://opendatacommunities.org/id/metropolitan-district-council/leeds,Leeds City Council,30/06/2021,Adults and Health,Services For Older People Under 65 P/Dis,Agency Payments,Home Care,568,08/06/2021,2106-00487,0.00,706.44,R,Affinity Trust,No
Http://opendatacommunities.org/id/metropolitan-district-council/leeds,Leeds City Council,30/06/2021,Adults and Health,Services For Older People Under 65 P/Dis,Agency Payments,Home Care,568,16/06/2021,2106-00488,0.00,807.36,R,Affinity Trust,No
Http://opendatacommunities.org/id/metropolitan-district-council/leeds,Leeds City Council,30/06/2021,Adults and Health,Assessment And Care Management,Agency Payments,Home Care,568,16/06/2021,2106-00489,0.00,94.26,R,Affinity Trust,No
Http://opendatacommunities.org/id/metropolitan-district-council/leeds,Leeds City Council,30/06/2021,Adults and Health,Services For Adults Under 65 Mental/Dis,Agency Payments,Home Care,568,16/06/2021,2106-00490,0.00,479.40,R,Affinity Trust,No
Http://opendatacommunities.org/id/metropolitan-district-council/leeds,Leeds City Council,30/06/2021,Adults and Health,Services For Adults Under 65 Mental/Dis,Agency Payments,HCAIT Community Support,575,16/06/2021,2106-00491,0.00,336.40,R,Affinity Trust,No
Http://opendatacommunities.org/id/metropolitan-district-council/leeds,Leeds City Council,30/06/2021,Adults and Health,Services For Older People - 65 And Over,Agency Payments,HCAIT Community Support,575,16/06/2021,2106-00492,0.00,575.28,R,Affinity Trust,No
Http://opendatacommunities.org/id/metropolitan-district-council/leeds,Leeds City Council,30/06/2021,Adults and Health,Services For Older People Under 65 P/Dis,Agency Payments,Home Care,568,16/06/2021,2106-00493,0.00,807.36,R,Affinity Trust,No
Http://opendatacommunities.org/id/metropolitan-district-council/leeds,Leeds City Council,30/06/2021,Adults and Health,Services For Older People Under 65 P/Dis,Agency Payments,HCAIT Community Support,575,16/06/2021,2106-00494,0.00,740.08,R,Affinity Trust,No
Http://opendatacommunities.org/id/metropolitan-district-council/leeds,Leeds City Council as Accountable Body,30/06/2021,Social Services Pooled Budgets,Jcs For People With Learning Disabilitie,Agency Payments,Home Care,568,16/06/2021,2106-00495,0.00,319.60,R,Affinity Trust,No
Http://opendatacommunities.org/id/metropolitan-district-council/leeds,Leeds City Council,30/06/2021,Adults and Health,Services For Adults Under 65 Mental/Dis,Agency Payments,Home Care,568,18/06/2021,2106-00496,0.00,1193.96,R,Affinity Trust,No
Http://opendatacommunities.org/id/metropolitan-district-council/leeds,Leeds City Council,30/06/2021,Adults and Health,Other Adult Services,Agency Payments,Residential,580,21/06/2021,2106-00497,0.00,2495.61,R,Affinity Trust,No
Http://opendatacommunities.org/id/metropolitan-district-council/leeds,Leeds City Council,30/06/2021,Adults and Health,Services For Adults Under 65 Mental/Dis,Agency Payments,Home Care,568,22/06/2021,2106-00498,0.00,1256.80,R,Affinity Trust,No
Http://opendatacommunities.org/id/metropolitan-district-council/leeds,Leeds City Council as Accountable Body,30/06/2021,Social Services Pooled Budgets,Jcs For People With Learning Disabilitie,Agency Payments,Day Centre,564,22/06/2021,2106-00499,0.00,16325.22,R,Affinity Trust,No
Http://opendatacommunities.org/id/metropolitan-district-council/leeds,Leeds City Council,30/06/2021,Adults and Health,Assessment And Care Management,Agency Payments,Home Care,568,23/06/2021,2106-00500,0.00,125.68,R,Affinity Trust,No
Http://opendatacommunities.org/id/metropolitan-district-council/leeds,Leeds City Council,30/06/2021,Adults and Health,Services For Adults Under 65 Mental/Dis,Agency Payments,Home Care,568,23/06/2021,2106-00501,0.00,511.36,R,Affinity Trust,No
Http://opendatacommunities.org/id/metropolitan-district-council/leeds,Leeds City Council,30/06/2021,Adults and Health,Services For Adults Under 65 Mental/Dis,Agency Payments,HCAIT Community Support,575,23/06/2021,2106-00502,0.00,336.40,R,Affinity Trust,No
Http://opendatacommunities.org/id/metropolitan-district-council/leeds,Leeds City Council,30/06/2021,Adults and Health,Services For Older People - 65 And Over,Agency Payments,HCAIT Community Support,575,23/06/2021,2106-00503,0.00,575.28,R,Affinity Trust,No
Http://opendatacommunities.org/id/metropolitan-district-council/leeds,Leeds City Council,30/06/2021,Adults and Health,Services For Older People Under 65 P/Dis,Agency Payments,Home Care,568,23/06/2021,2106-00504,0.00,807.36,R,Affinity Trust,No
Http://opendatacommunities.org/id/metropolitan-district-council/leeds,Leeds City Council,30/06/2021,Adults and Health,Services For Older People Under 65 P/Dis,Agency Payments,HCAIT Community Support,575,23/06/2021,2106-00505,0.00,740.08,R,Affinity Trust,No
Http://opendatacommunities.org/id/metropolitan-district-council/leeds,Leeds City Council as Accountable Body,30/06/2021,Social Services Pooled Budgets,Jcs For People With Learning Disabilitie,Agency Payments,Home Care,568,23/06/2021,2106-00506,0.00,319.60,R,Affinity Trust,No
Http://opendatacommunities.org/id/metropolitan-district-council/leeds,Leeds City Council as Accountable Body,30/06/2021,Social Services Pooled Budgets,Jcs For People With Learning Disabilitie,Agency Payments,Day Centre,564,25/06/2021,2106-00507,0.00,29782.14,R,Affinity Trust,No
Http://opendatacommunities.org/id/metropolitan-district-council/leeds,Leeds City Council as Accountable Body,30/06/2021,Social Services Pooled Budgets,Jcs For People With Learning Disabilitie,Agency Payments,Sheltered Accommodation,569,23/06/2021,2106-00508,0.00,153758.21,R,Affinity Trust North Divisional Office,No
Http://opendatacommunities.org/id/metropolitan-district-council/leeds,Leeds City Council,30/06/2021,Communities and Environment,Parks and Countryside ,Transport,External Hire -Occasional,304,12/05/2021,2106-00509,0.00,950.00,R,Afi Uplift,Yes
Http://opendatacommunities.org/id/metropolitan-district-council/leeds,Leeds City Council,30/06/2021,Communities and Environment,Parks and Countryside ,Transport,External Hire -Occasional,304,12/05/2021,2106-00510,0.00,950.00,R,Afi Uplift,Yes
Http://opendatacommunities.org/id/metropolitan-district-council/leeds,Leeds City Council,30/06/2021,Communities and Environment,Parks and Countryside ,Transport,External Hire -Occasional,304,12/05/2021,2106-00511,0.00,950.00,R,Afi Uplift,Yes
Http://opendatacommunities.org/id/metropolitan-district-council/leeds,Leeds City Council,30/06/2021,Communities and Environment,Parks and Countryside ,Transport,External Hire -Occasional,304,12/05/2021,2106-00512,0.00,950.00,R,Afi Uplift,Yes
Http://opendatacommunities.org/id/metropolitan-district-council/leeds,Leeds City Council,30/06/2021,Communities and Environment,Parks and Countryside ,Transport,External Hire -Occasional,304,12/05/2021,2106-00513,0.00,950.00,R,Afi Uplift,Yes
Http://opendatacommunities.org/id/metropolitan-district-council/leeds,Leeds City Council,30/06/2021,City Development,Economic Development,Supplies and Services,Grant Related Expenditure,290,22/06/2021,2106-00514,0.00,10000.00,R,AFP Digital Ltd,No
Http://opendatacommunities.org/id/metropolitan-district-council/leeds,Leeds City Council,30/06/2021,Resources and Housing,Sustainable Energy & Climate Change,Capital,OTHER COSTS,7,03/06/2021,2106-00515,0.00,2100.00,C,REDACTED COMMERCIAL CONFIDENTIALITY,No
Http://opendatacommunities.org/id/metropolitan-district-council/leeds,Leeds City Council,30/06/2021,Adults and Health,Other Adult Services,Supplies and Services,Commissioned Services,264,21/06/2021,2106-00516,0.00,48265.00,R,Age Uk Leeds,No
Http://opendatacommunities.org/id/metropolitan-district-council/leeds,Leeds City Council,30/06/2021,Adults and Health,Other Adult Services,Supplies and Services,Commissioned Services,264,21/06/2021,2106-00517,0.00,11892.00,R,Age Uk Leeds,No
Http://opendatacommunities.org/id/metropolitan-district-council/leeds,Leeds City Council,30/06/2021,Insurance,Insurance,Supplies and Services,Insurance Claims,248,23/06/2021,2106-00518,0.00,56500.00,R,Ageas Insurance Limited,No
Http://opendatacommunities.org/id/metropolitan-district-council/leeds,Leeds City Council,30/06/2021,City Development,Economic Development,Supplies and Services,Grant Related Expenditure,290,04/06/2021,2106-00519,0.00,6000.00,R,Agency TK Limited,No
Http://opendatacommunities.org/id/metropolitan-district-council/leeds,Leeds City Council,30/06/2021,City Development,Economic Development,Supplies and Services,Grant Related Expenditure,290,17/06/2021,2106-00520,0.00,6000.00,R,Agency TK Limited,No
Http://opendatacommunities.org/id/metropolitan-district-council/leeds,Leeds City Council,30/06/2021,Communities and Environment,Parks and Countryside,Supplies and Services,Operational Materials,205,21/06/2021,2106-00521,0.00,322.95,R,Agrovista UK Ltd,No
Http://opendatacommunities.org/id/metropolitan-district-council/leeds,Leeds City Council,30/06/2021,City Development,Economic Development,Supplies and Services,Grant Related Expenditure,290,21/06/2021,2106-00522,0.00,250.00,R,REDACTED PERSONAL DATA,No
Http://opendatacommunities.org/id/metropolitan-district-council/leeds,Leeds City Council,30/06/2021,City Development,Economic Development,Supplies and Services,Grant Related Expenditure,290,21/06/2021,2106-00523,0.00,250.00,R,Ahmad Reza Zarei,No
Http://opendatacommunities.org/id/metropolitan-district-council/leeds,Leeds City Council,30/06/2021,City Development,Economic Development,Supplies and Services,Grant Related Expenditure,290,18/06/2021,2106-00524,0.00,250.00,R,Ahmed Ali,No
Http://opendatacommunities.org/id/metropolitan-district-council/leeds,Leeds City Council,30/06/2021,City Development,Economic Development,Supplies and Services,Grant Related Expenditure,290,25/06/2021,2106-00525,0.00,500.00,R,REDACTED PERSONAL DATA,No
Http://opendatacommunities.org/id/metropolitan-district-council/leeds,Leeds City Council,30/06/2021,Communities and Environment,Customer Access,Supplies and Services,Bought In Professional Services,277,17/06/2021,2106-00526,0.00,10.80,R,Ahmed Moustafa Moustafa Mousa,No
Http://opendatacommunities.org/id/metropolitan-district-council/leeds,Leeds City Council,30/06/2021,Communities and Environment,Customer Access,Supplies and Services,Bought In Professional Services,277,17/06/2021,2106-00527,0.00,9.00,R,Ahmed Moustafa Moustafa Mousa,No
Http://opendatacommunities.org/id/metropolitan-district-council/leeds,Leeds City Council,30/06/2021,City Development,Economic Development,Supplies and Services,Grant Related Expenditure,290,23/06/2021,2106-00528,0.00,250.00,R,REDACTED PERSONAL DATA,No
Http://opendatacommunities.org/id/metropolitan-district-council/leeds,Leeds City Council,30/06/2021,City Development,Economic Development,Supplies and Services,Grant Related Expenditure,290,29/06/2021,2106-00529,0.00,5067.00,R,AIA Solicitors,No
Http://opendatacommunities.org/id/metropolitan-district-council/leeds,Leeds City Council,30/06/2021,Communities and Environment,Benefits Welfare and Poverty ,Supplies and Services,Grant Related Expenditure,290,25/06/2021,2106-00530,0.00,500.00,R,REDACTED PERSONAL DATA,No
Http://opendatacommunities.org/id/metropolitan-district-council/leeds,Leeds City Council as Accountable Body,30/06/2021,Social Services Pooled Budgets,Leeds Community Equip Store Pooled Budgt,Supplies and Services,Other Equipment,203,07/06/2021,2106-00531,0.00,1098.29,R,AIDAPT BATHROOMS LTD,No
Http://opendatacommunities.org/id/metropolitan-district-council/leeds,Leeds City Council as Accountable Body,30/06/2021,Social Services Pooled Budgets,Leeds Community Equip Store Pooled Budgt,Supplies and Services,Other Equipment,203,07/06/2021,2106-00532,0.00,1072.50,R,AIDAPT BATHROOMS LTD,No
Http://opendatacommunities.org/id/metropolitan-district-council/leeds,Leeds City Council as Accountable Body,30/06/2021,Social Services Pooled Budgets,Leeds Community Equip Store Pooled Budgt,Supplies and Services,Other Equipment,203,07/06/2021,2106-00533,0.00,500.00,R,AIDAPT BATHROOMS LTD,No
Http://opendatacommunities.org/id/metropolitan-district-council/leeds,Leeds City Council as Accountable Body,30/06/2021,Social Services Pooled Budgets,Leeds Community Equip Store Pooled Budgt,Supplies and Services,Other Equipment,203,10/06/2021,2106-00534,0.00,-356.86,R,AIDAPT BATHROOMS LTD,No
Http://opendatacommunities.org/id/metropolitan-district-council/leeds,Leeds City Council as Accountable Body,30/06/2021,Social Services Pooled Budgets,Leeds Community Equip Store Pooled Budgt,Supplies and Services,Other Equipment,203,10/06/2021,2106-00535,0.00,-52.80,R,AIDAPT BATHROOMS LTD,No
Http://opendatacommunities.org/id/metropolitan-district-council/leeds,Leeds City Council as Accountable Body,30/06/2021,Social Services Pooled Budgets,Leeds Community Equip Store Pooled Budgt,Supplies and Services,Other Equipment,203,10/06/2021,2106-00536,0.00,792.00,R,AIDAPT BATHROOMS LTD,No
Http://opendatacommunities.org/id/metropolitan-district-council/leeds,Leeds City Council as Accountable Body,30/06/2021,Social Services Pooled Budgets,Leeds Community Equip Store Pooled Budgt,Supplies and Services,Other Equipment,203,10/06/2021,2106-00537,0.00,1287.27,R,AIDAPT BATHROOMS LTD,No
Http://opendatacommunities.org/id/metropolitan-district-council/leeds,Leeds City Council as Accountable Body,30/06/2021,Social Services Pooled Budgets,Leeds Community Equip Store Pooled Budgt,Supplies and Services,Other Equipment,203,14/06/2021,2106-00538,0.00,499.75,R,AIDAPT BATHROOMS LTD,No
Http://opendatacommunities.org/id/metropolitan-district-council/leeds,Leeds City Council as Accountable Body,30/06/2021,Social Services Pooled Budgets,Leeds Community Equip Store Pooled Budgt,Supplies and Services,Other Equipment,203,16/06/2021,2106-00539,0.00,2110.78,R,AIDAPT BATHROOMS LTD,No
Http://opendatacommunities.org/id/metropolitan-district-council/leeds,Leeds City Council as Accountable Body,30/06/2021,Social Services Pooled Budgets,Leeds Community Equip Store Pooled Budgt,Supplies and Services,Other Equipment,203,18/06/2021,2106-00540,0.00,370.00,R,AIDAPT BATHROOMS LTD,No
Http://opendatacommunities.org/id/metropolitan-district-council/leeds,Leeds City Council as Accountable Body,30/06/2021,Social Services Pooled Budgets,Leeds Community Equip Store Pooled Budgt,Supplies and Services,Other Equipment,203,23/06/2021,2106-00541,0.00,1070.10,R,AIDAPT BATHROOMS LTD,No
Http://opendatacommunities.org/id/metropolitan-district-council/leeds,Leeds City Council,30/06/2021,Children and Families,Social Care,Agency Payments,Allowances,546,28/06/2021,2106-00542,0.00,40.00,R,REDACTED PERSONAL DATA,No
Http://opendatacommunities.org/id/metropolitan-district-council/leeds,Leeds City Council,30/06/2021,Communities and Environment,Benefits Welfare and Poverty ,Supplies and Services,Grant Related Expenditure,298,28/06/2021,2106-00543,0.00,500.00,R,REDACTED PERSONAL DATA,No
Http://opendatacommunities.org/id/metropolitan-district-council/leeds,Leeds City Council,30/06/2021,Children and Families,Social Care,Agency Payments,Rent a Room Carers,558,10/06/2021,2106-00544,0.00,611.14,R,REDACTED PERSONAL DATA,No
Http://opendatacommunities.org/id/metropolitan-district-council/leeds,Leeds City Council,30/06/2021,City Development,Highways,Premises,Maint-Of Computers & CCTV,117,25/06/2021,2106-00545,0.00,9072.00,R,Aimsun Ltd,No
Http://opendatacommunities.org/id/metropolitan-district-council/leeds,Leeds City Council,30/06/2021,Communities and Environment,Environmental Health,Supplies and Services,Other Hired And Contracted Services,265,09/06/2021,2106-00546,0.00,11.25,R,AIR LIQUIDE UK,No
Http://opendatacommunities.org/id/metropolitan-district-council/leeds,Leeds City Council,30/06/2021,Communities and Environment,Environmental Health,Supplies and Services,Other Hired And Contracted Services,265,09/06/2021,2106-00547,0.00,11.25,R,AIR LIQUIDE UK,No
Http://opendatacommunities.org/id/metropolitan-district-council/leeds,Leeds City Council,30/06/2021,Communities and Environment,Environmental Health,Supplies and Services,Other Hired And Contracted Services,265,09/06/2021,2106-00548,0.00,17.38,R,AIR LIQUIDE UK,No
Http://opendatacommunities.org/id/metropolitan-district-council/leeds,Leeds City Council,30/06/2021,Communities and Environment,Environmental Health,Supplies and Services,Other Hired And Contracted Services,265,09/06/2021,2106-00549,0.00,78.75,R,AIR LIQUIDE UK,No
Http://opendatacommunities.org/id/metropolitan-district-council/leeds,Leeds City Council,30/06/2021,Communities and Environment,Environmental Health,Supplies and Services,Other Hired And Contracted Services,265,30/06/2021,2106-00550,0.00,11.25,R,AIR LIQUIDE UK,No
Http://opendatacommunities.org/id/metropolitan-district-council/leeds,Leeds City Council,30/06/2021,Communities and Environment,Environmental Health,Supplies and Services,Other Hired And Contracted Services,265,30/06/2021,2106-00551,0.00,11.25,R,AIR LIQUIDE UK,No
Http://opendatacommunities.org/id/metropolitan-district-council/leeds,Leeds City Council,30/06/2021,Communities and Environment,Environmental Health,Supplies and Services,Other Hired And Contracted Services,265,30/06/2021,2106-00552,0.00,17.38,R,AIR LIQUIDE UK,No
Http://opendatacommunities.org/id/metropolitan-district-council/leeds,Leeds City Council,30/06/2021,Communities and Environment,Environmental Health,Supplies and Services,Other Hired And Contracted Services,265,30/06/2021,2106-00553,0.00,78.75,R,AIR LIQUIDE UK,No
Http://opendatacommunities.org/id/metropolitan-district-council/leeds,Leeds City Council,30/06/2021,Children and Families,Social Care ,Agency Payments,Placement Support,550,10/05/2021,2106-00554,0.00,2040.00,R,Airbnb * Inc,Yes
Http://opendatacommunities.org/id/metropolitan-district-council/leeds,Leeds City Council,30/06/2021,Communities and Environment,Parks and Countryside,Supplies and Services,Other Hired And Contracted Services,265,04/06/2021,2106-00555,0.00,625.00,R,Aire Valley Tree Services Ltd,No
Http://opendatacommunities.org/id/metropolitan-district-council/leeds,Leeds City Council,30/06/2021,Communities and Environment,Parks and Countryside,Supplies and Services,Other Hired And Contracted Services,265,18/06/2021,2106-00556,0.00,475.00,R,Aire Valley Tree Services Ltd,No
Http://opendatacommunities.org/id/metropolitan-district-council/leeds,Leeds City Council,30/06/2021,Communities and Environment,Parks and Countryside,Supplies and Services,Other Hired And Contracted Services,265,24/06/2021,2106-00557,0.00,850.00,R,Aire Valley Tree Services Ltd,No
Http://opendatacommunities.org/id/metropolitan-district-council/leeds,Leeds City Council,30/06/2021,Communities and Environment,Parks and Countryside,Supplies and Services,Other Hired And Contracted Services,265,24/06/2021,2106-00558,0.00,733.00,R,Aire Valley Tree Services Ltd,No
Http://opendatacommunities.org/id/metropolitan-district-council/leeds,Leeds City Council,30/06/2021,Adults and Health,Services For Older People - 65 And Over,Agency Payments,Residential Care Dementia,571,23/06/2021,2106-00559,0.00,21659.59,R,Aire View Residential Home,No
Http://opendatacommunities.org/id/metropolitan-district-council/leeds,Leeds City Council,30/06/2021,Adults and Health,Services For Older People - 65 And Over,Agency Payments,Residential,580,23/06/2021,2106-00560,0.00,4879.36,R,Aire View Residential Home,No
Http://opendatacommunities.org/id/metropolitan-district-council/leeds,Leeds City Council,30/06/2021,Children and Families,Social Care ,Agency Payments,Section 17,551,13/05/2021,2106-00561,0.00,229.17,R,Aireborough Skip Hire Lim,Yes
Http://opendatacommunities.org/id/metropolitan-district-council/leeds,Leeds City Council,30/06/2021,City Development,Economic Development,Supplies and Services,Grant Related Expenditure,290,02/06/2021,2106-00562,0.00,1683.00,R,Aireborough Thai Boxing Limited,No
Http://opendatacommunities.org/id/metropolitan-district-council/leeds,Leeds City Council,30/06/2021,Adults and Health,Services For Older People - 65 And Over,Agency Payments,Residential Care Dementia,571,23/06/2021,2106-00563,0.00,1518.60,R,Airedale Care Home,No
Http://opendatacommunities.org/id/metropolitan-district-council/leeds,Leeds City Council,30/06/2021,Adults and Health,Services For Older People - 65 And Over,Agency Payments,Residential,580,23/06/2021,2106-00564,0.00,15794.12,R,Airedale Care Home,No
Http://opendatacommunities.org/id/metropolitan-district-council/leeds,Leeds City Council,30/06/2021,Resources and Housing,Commercial Services,Supplies and Services,Operational Furniture And Equipment,203,25/06/2021,2106-00565,0.00,960.00,R,AIREDALE CATERING EQUIPMENT LTD,No
Http://opendatacommunities.org/id/metropolitan-district-council/leeds,Leeds City Council,30/06/2021,Resources and Housing,Commercial Services,Supplies and Services,Operational Furniture And Equipment,203,25/06/2021,2106-00566,0.00,1740.00,R,AIREDALE CATERING EQUIPMENT LTD,No
Http://opendatacommunities.org/id/metropolitan-district-council/leeds,Leeds City Council,30/06/2021,Resources and Housing,Leeds Building Services,Supplies and Services,Other Hired And Contracted Services,265,25/06/2021,2106-00567,0.00,969.00,R,AIREDALE CATERING EQUIPMENT LTD,No
Http://opendatacommunities.org/id/metropolitan-district-council/leeds,Leeds City Council,30/06/2021,City Development,Economic Development,Supplies and Services,Grant Related Expenditure,290,24/06/2021,2106-00568,0.00,250.00,R,Airflow Solutions,No
Http://opendatacommunities.org/id/metropolitan-district-council/leeds,Leeds City Council,30/06/2021,City Development,Employment & Skills,Agency Payments,Contributions To Partnerships,544,28/06/2021,2106-00569,0.00,5700.55,R,Airnow Cybersecurity Limited,No
Http://opendatacommunities.org/id/metropolitan-district-council/leeds,Leeds City Council,30/06/2021,Adults and Health,Services For Adults Under 65 Learn/Dis ,Transport,Public Transport Expenses,310,10/05/2021,2106-00570,0.00,151.45,R,Airpay,Yes
Http://opendatacommunities.org/id/metropolitan-district-council/leeds,Leeds City Council,30/06/2021,Adults and Health,Services For Adults Under 65 Mental/Dis,Agency Payments,Fees - Level 4,520,01/06/2021,2106-00571,0.00,175.00,R,AIT Mitra Limited,No
Http://opendatacommunities.org/id/metropolitan-district-council/leeds,Leeds City Council,30/06/2021,Adults and Health,Services For Adults Under 65 Mental/Dis,Agency Payments,Fees - Level 4,520,09/06/2021,2106-00572,0.00,175.00,R,AIT Mitra Limited,No
Http://opendatacommunities.org/id/metropolitan-district-council/leeds,Leeds City Council,30/06/2021,Adults and Health,Services For Adults Under 65 Mental/Dis,Agency Payments,Fees - Level 4,520,09/06/2021,2106-00573,0.00,175.00,R,AIT Mitra Limited,No
Http://opendatacommunities.org/id/metropolitan-district-council/leeds,Leeds City Council,30/06/2021,Adults and Health,Services For Adults Under 65 Mental/Dis,Agency Payments,Fees - Level 4,520,09/06/2021,2106-00574,0.00,175.00,R,AIT Mitra Limited,No
Http://opendatacommunities.org/id/metropolitan-district-council/leeds,Leeds City Council,30/06/2021,Adults and Health,Services For Adults Under 65 Mental/Dis,Agency Payments,Fees - Level 4,520,09/06/2021,2106-00575,0.00,175.00,R,AIT Mitra Limited,No
Http://opendatacommunities.org/id/metropolitan-district-council/leeds,Leeds City Council,30/06/2021,Adults and Health,Services For Adults Under 65 Mental/Dis,Agency Payments,Fees - Level 4,520,09/06/2021,2106-00576,0.00,175.00,R,AIT Mitra Limited,No
Http://opendatacommunities.org/id/metropolitan-district-council/leeds,Leeds City Council,30/06/2021,Adults and Health,Services For Adults Under 65 Mental/Dis,Agency Payments,Fees - Level 4,520,09/06/2021,2106-00577,0.00,175.00,R,AIT Mitra Limited,No
Http://opendatacommunities.org/id/metropolitan-district-council/leeds,Leeds City Council,30/06/2021,Adults and Health,Services For Adults Under 65 Mental/Dis,Agency Payments,Fees - Level 4,520,09/06/2021,2106-00578,0.00,175.00,R,AIT Mitra Limited,No
Http://opendatacommunities.org/id/metropolitan-district-council/leeds,Leeds City Council,30/06/2021,Adults and Health,Services For Adults Under 65 Mental/Dis,Agency Payments,Fees - Level 4,520,09/06/2021,2106-00579,0.00,175.00,R,AIT Mitra Limited,No
Http://opendatacommunities.org/id/metropolitan-district-council/leeds,Leeds City Council,30/06/2021,Adults and Health,Services For Adults Under 65 Mental/Dis,Agency Payments,Fees - Level 4,520,09/06/2021,2106-00580,0.00,175.00,R,AIT Mitra Limited,No
Http://opendatacommunities.org/id/metropolitan-district-council/leeds,Leeds City Council,30/06/2021,Adults and Health,Services For Adults Under 65 Mental/Dis,Agency Payments,Fees - Level 4,520,09/06/2021,2106-00581,0.00,175.00,R,AIT Mitra Limited,No
Http://opendatacommunities.org/id/metropolitan-district-council/leeds,Leeds City Council,30/06/2021,Adults and Health,Services For Adults Under 65 Mental/Dis,Agency Payments,Fees - Level 4,520,09/06/2021,2106-00582,0.00,175.00,R,AIT Mitra Limited,No
Http://opendatacommunities.org/id/metropolitan-district-council/leeds,Leeds City Council,30/06/2021,Adults and Health,Services For Adults Under 65 Mental/Dis,Agency Payments,Fees - Level 4,520,09/06/2021,2106-00583,0.00,175.00,R,AIT Mitra Limited,No
Http://opendatacommunities.org/id/metropolitan-district-council/leeds,Leeds City Council as Accountable Body,30/06/2021,Social Services Pooled Budgets,Jcs For People With Learning Disabilitie,Agency Payments,Residential,580,23/06/2021,2106-00584,0.00,6709.72,R,AITCH care homes,No
Http://opendatacommunities.org/id/metropolitan-district-council/leeds,Leeds City Council,30/06/2021,Communities and Environment,Parks and Countryside,Supplies and Services,Operational Materials,205,02/06/2021,2106-00585,0.00,350.10,R,Aitkens Sportsturf Ltd,No
Http://opendatacommunities.org/id/metropolitan-district-council/leeds,Leeds City Council,30/06/2021,Communities and Environment,Parks and Countryside,Supplies and Services,Operational Materials,205,16/06/2021,2106-00586,0.00,1111.38,R,Aitkens Sportsturf Ltd,No
Http://opendatacommunities.org/id/metropolitan-district-council/leeds,Leeds City Council,30/06/2021,City Development,Recreation,Supplies and Services,Operational Furniture And Equipment,203,30/06/2021,2106-00587,0.00,483.35,R,Aitkens Sportsturf Ltd,No
Http://opendatacommunities.org/id/metropolitan-district-council/leeds,Leeds City Council,30/06/2021,Resources and Housing,Leeds Building Services,Supplies and Services,Operational Furniture And Equipment,203,24/06/2021,2106-00588,0.00,1580.29,R,AJM FIXINGS & POWER TOOLS LTD,No
Http://opendatacommunities.org/id/metropolitan-district-council/leeds,Leeds City Council,30/06/2021,City Development,Economic Development,Supplies and Services,Grant Related Expenditure,290,14/06/2021,2106-00589,0.00,500.00,R,Ajmal Mahmood,No
Http://opendatacommunities.org/id/metropolitan-district-council/leeds,Leeds City Council,30/06/2021,City Development,Economic Development,Supplies and Services,Grant Related Expenditure,290,30/06/2021,2106-00590,0.00,3040.00,R,Aj'S Compliance And Auditing Ltd,No
Http://opendatacommunities.org/id/metropolitan-district-council/leeds,Leeds City Council,30/06/2021,City Development,Economic Development,Supplies and Services,Grant Related Expenditure,290,28/06/2021,2106-00591,0.00,500.00,R,REDACTED PERSONAL DATA,No
Http://opendatacommunities.org/id/metropolitan-district-council/leeds,Leeds City Council,30/06/2021,Communities and Environment,Waste Management,Premises,Cleaning Maintenance & Toiletries,127,04/06/2021,2106-00592,0.00,136.00,R,Akua Uk Ltd,No
Http://opendatacommunities.org/id/metropolitan-district-council/leeds,Leeds City Council,30/06/2021,City Development,Economic Development,Supplies and Services,Grant Related Expenditure,290,29/06/2021,2106-00593,0.00,250.00,R,Alan Shires Voice Over,No
Http://opendatacommunities.org/id/metropolitan-district-council/leeds,Leeds City Council,30/06/2021,City Development,Recreation,External Income,Swimming Bath Charges,923,14/06/2021,2106-00594,0.00,22.95,R,REDACTED PERSONAL DATA,No
Http://opendatacommunities.org/id/metropolitan-district-council/leeds,Leeds City Council,30/06/2021,City Development,Economic Development,Supplies and Services,Grant Related Expenditure,290,29/06/2021,2106-00595,0.00,250.00,R,Alan Woollin,No
Http://opendatacommunities.org/id/metropolitan-district-council/leeds,Leeds City Council,30/06/2021,Children and Families,Social Care,Agency Payments,Services Rendered By Other Organisations,511,04/06/2021,2106-00596,0.00,769.35,R,REDACTED PERSONAL DATA,No
Http://opendatacommunities.org/id/metropolitan-district-council/leeds,Leeds City Council,30/06/2021,Children and Families,Social Care ,Supplies and Services,Computer Software & Equipment,214,30/04/2021,2106-00597,0.00,-44.18,R,Albelli Bonusprint,Yes
Http://opendatacommunities.org/id/metropolitan-district-council/leeds,Leeds City Council,30/06/2021,Communities and Environment,Communities,Supplies and Services,Computer Software & Equipment,214,18/06/2021,2106-00598,0.00,1228.33,R,Alcium Software Ltd,No
Http://opendatacommunities.org/id/metropolitan-district-council/leeds,Leeds City Council,30/06/2021,Children and Families,Social Care ,Supplies and Services,Food & Drink,231,27/05/2021,2106-00599,0.00,11.59,R,Aldi,Yes
Http://opendatacommunities.org/id/metropolitan-district-council/leeds,Leeds City Council,30/06/2021,Children and Families,Social Care ,Supplies and Services,Food & Drink,231,05/05/2021,2106-00600,0.00,7.24,R,Aldi 40 779,Yes
Http://opendatacommunities.org/id/metropolitan-district-council/leeds,Leeds City Council,30/06/2021,Children and Families,Social Care ,Agency Payments,Section 17,551,12/05/2021,2106-00601,0.00,36.57,R,Aldi 40 779,Yes
Http://opendatacommunities.org/id/metropolitan-district-council/leeds,Leeds City Council,30/06/2021,Communities and Environment,Communities ,Supplies and Services,Operational Materials,205,15/05/2021,2106-00602,0.00,36.50,R,Aldi 40 779,Yes
Http://opendatacommunities.org/id/metropolitan-district-council/leeds,Leeds City Council,30/06/2021,Children and Families,Social Care ,Supplies and Services,Food & Drink,231,13/05/2021,2106-00603,0.00,18.10,R,Aldi 49 779,Yes
Http://opendatacommunities.org/id/metropolitan-district-council/leeds,Leeds City Council,30/06/2021,Children and Families,Social Care ,Supplies and Services,Food & Drink,231,21/05/2021,2106-00604,0.00,22.64,R,Aldi 49 779,Yes
Http://opendatacommunities.org/id/metropolitan-district-council/leeds,Leeds City Council,30/06/2021,Children and Families,Social Care ,Supplies and Services,Teaching Materials,202,12/05/2021,2106-00605,0.00,28.67,R,Aldi 71 779,Yes
Http://opendatacommunities.org/id/metropolitan-district-council/leeds,Leeds City Council,30/06/2021,Children and Families,Social Care ,Appropriations,Leaving Care Allowances,634,18/05/2021,2106-00606,0.00,29.21,R,Aldi 71 779,Yes
Http://opendatacommunities.org/id/metropolitan-district-council/leeds,Leeds City Council,30/06/2021,Communities and Environment,Parks and Countryside ,Supplies and Services,Food & Drink,231,17/05/2021,2106-00607,0.00,2.76,R,Aldi 779 73,Yes
Http://opendatacommunities.org/id/metropolitan-district-council/leeds,Leeds City Council,30/06/2021,Children and Families,Social Care ,Supplies and Services,Food & Drink,231,11/05/2021,2106-00608,0.00,14.64,R,Aldi 85 779,Yes
Http://opendatacommunities.org/id/metropolitan-district-council/leeds,Leeds City Council,30/06/2021,Children and Families,Social Care ,Supplies and Services,Operational Materials,205,12/05/2021,2106-00609,0.00,28.42,R,Aldi 88 779,Yes
Http://opendatacommunities.org/id/metropolitan-district-council/leeds,Leeds City Council,30/06/2021,Children and Families,Social Care ,Supplies and Services,Food & Drink,231,10/05/2021,2106-00610,0.00,80.52,R,Aldi 89 779,Yes
Http://opendatacommunities.org/id/metropolitan-district-council/leeds,Leeds City Council,30/06/2021,Children and Families,Social Care ,Premises,Cleaning Maintenance & Toiletries,127,10/05/2021,2106-00611,0.00,7.18,R,Aldi 89 779,Yes
Http://opendatacommunities.org/id/metropolitan-district-council/leeds,Leeds City Council,30/06/2021,Children and Families,Social Care ,Premises,Cleaning Maintenance & Toiletries,127,18/05/2021,2106-00612,0.00,8.95,R,Aldi 89 779,Yes
Http://opendatacommunities.org/id/metropolitan-district-council/leeds,Leeds City Council,30/06/2021,Children and Families,Social Care ,Appropriations,Leaving Care Allowances,634,10/05/2021,2106-00613,0.00,6.05,R,Aldi Stores,Yes
Http://opendatacommunities.org/id/metropolitan-district-council/leeds,Leeds City Council,30/06/2021,Children and Families,Social Care ,Supplies and Services,Food & Drink,231,21/05/2021,2106-00614,0.00,43.66,R,Aldi Stores,Yes
Http://opendatacommunities.org/id/metropolitan-district-council/leeds,Leeds City Council,30/06/2021,Children and Families,Social Care,Agency Payments,Contact,548,01/06/2021,2106-00615,0.00,9.00,R,REDACTED PERSONAL DATA,No
Http://opendatacommunities.org/id/metropolitan-district-council/leeds,Leeds City Council,30/06/2021,Children and Families,Social Care,Agency Payments,Contact,548,01/06/2021,2106-00616,0.00,9.40,R,REDACTED PERSONAL DATA,No
Http://opendatacommunities.org/id/metropolitan-district-council/leeds,Leeds City Council,30/06/2021,Children and Families,Social Care,Agency Payments,Contact,548,08/06/2021,2106-00617,0.00,9.40,R,REDACTED PERSONAL DATA,No
Http://opendatacommunities.org/id/metropolitan-district-council/leeds,Leeds City Council,30/06/2021,Children and Families,Social Care,Agency Payments,Contact,548,15/06/2021,2106-00618,0.00,9.40,R,REDACTED PERSONAL DATA,No
Http://opendatacommunities.org/id/metropolitan-district-council/leeds,Leeds City Council,30/06/2021,Children and Families,Social Care,Agency Payments,Contact,548,22/06/2021,2106-00619,0.00,9.40,R,REDACTED PERSONAL DATA,No
Http://opendatacommunities.org/id/metropolitan-district-council/leeds,Leeds City Council,30/06/2021,Children and Families,Social Care,Agency Payments,Contact,548,29/06/2021,2106-00620,0.00,9.40,R,REDACTED PERSONAL DATA,No
Http://opendatacommunities.org/id/metropolitan-district-council/leeds,Leeds City Council,30/06/2021,City Development,Economic Development,Supplies and Services,Grant Related Expenditure,290,23/06/2021,2106-00621,0.00,250.00,R,Alejandro Ruiz Del Valle,No
Http://opendatacommunities.org/id/metropolitan-district-council/leeds,Leeds City Council,30/06/2021,City Development,Economic Development,Supplies and Services,Grant Related Expenditure,290,29/06/2021,2106-00622,0.00,500.00,R,REDACTED PERSONAL DATA,No
Http://opendatacommunities.org/id/metropolitan-district-council/leeds,Leeds City Council,30/06/2021,Communities and Environment,Customer Access,Supplies and Services,Bought In Professional Services,277,30/06/2021,2106-00623,0.00,25.50,R,Alena Zueva,No
Http://opendatacommunities.org/id/metropolitan-district-council/leeds,Leeds City Council,30/06/2021,City Development,Economic Development,Supplies and Services,Grant Related Expenditure,290,08/06/2021,2106-00624,0.00,3480.00,R,REDACTED PERSONAL DATA,No
Http://opendatacommunities.org/id/metropolitan-district-council/leeds,Leeds City Council,30/06/2021,Children and Families,Social Care,Supplies and Services,General Amenity For Clients/Residents,285,11/06/2021,2106-00625,0.00,20.00,R,REDACTED PERSONAL DATA,No
Http://opendatacommunities.org/id/metropolitan-district-council/leeds,Leeds City Council,30/06/2021,Children and Families,Social Care,Transport,Public Transport Expenses,310,11/06/2021,2106-00626,0.00,4.24,R,REDACTED PERSONAL DATA,No
Http://opendatacommunities.org/id/metropolitan-district-council/leeds,Leeds City Council,30/06/2021,Communities and Environment,Benefits Welfare and Poverty ,Supplies and Services,Grant Related Expenditure,290,17/06/2021,2106-00627,0.00,500.00,R,REDACTED PERSONAL DATA,No
Http://opendatacommunities.org/id/metropolitan-district-council/leeds,Leeds City Council,30/06/2021,City Development,Economic Development,Supplies and Services,Grant Related Expenditure,290,21/06/2021,2106-00628,0.00,500.00,R,REDACTED PERSONAL DATA,No
Http://opendatacommunities.org/id/metropolitan-district-council/leeds,Leeds City Council,30/06/2021,City Development,Economic Development,Supplies and Services,Grant Related Expenditure,290,21/06/2021,2106-00629,0.00,250.00,R,Alex Knight Photography,No
Http://opendatacommunities.org/id/metropolitan-district-council/leeds,Leeds City Council,30/06/2021,Communities and Environment,Benefits Welfare and Poverty ,Supplies and Services,Grant Related Expenditure,290,01/06/2021,2106-00630,0.00,15.00,R,REDACTED PERSONAL DATA,No
Http://opendatacommunities.org/id/metropolitan-district-council/leeds,Leeds City Council,30/06/2021,City Development,Economic Development,Supplies and Services,Grant Related Expenditure,290,29/06/2021,2106-00631,0.00,500.00,R,Alex Uwayezu,No
Http://opendatacommunities.org/id/metropolitan-district-council/leeds,Leeds City Council,30/06/2021,Resources and Housing,Commercial Services,Supplies and Services,Other Hired And Contracted Services,265,04/06/2021,2106-00632,0.00,347.85,R,ALEX WAGG,No
Http://opendatacommunities.org/id/metropolitan-district-council/leeds,Leeds City Council,30/06/2021,Resources and Housing,Commercial Services,Supplies and Services,Other Hired And Contracted Services,265,04/06/2021,2106-00633,0.00,150.00,R,ALEX WAGG,No
Http://opendatacommunities.org/id/metropolitan-district-council/leeds,Leeds City Council,30/06/2021,Resources and Housing,Commercial Services,Supplies and Services,Other Hired And Contracted Services,265,04/06/2021,2106-00634,0.00,277.00,R,ALEX WAGG,No
Http://opendatacommunities.org/id/metropolitan-district-council/leeds,Leeds City Council,30/06/2021,Resources and Housing,Commercial Services,Supplies and Services,Other Hired And Contracted Services,265,04/06/2021,2106-00635,0.00,60.00,R,ALEX WAGG,No
Http://opendatacommunities.org/id/metropolitan-district-council/leeds,Leeds City Council,30/06/2021,Resources and Housing,Commercial Services,Supplies and Services,Other Hired And Contracted Services,265,10/06/2021,2106-00636,0.00,300.00,R,ALEX WAGG,No
Http://opendatacommunities.org/id/metropolitan-district-council/leeds,Leeds City Council,30/06/2021,Resources and Housing,Commercial Services,Supplies and Services,Other Hired And Contracted Services,265,11/06/2021,2106-00637,0.00,360.00,R,ALEX WAGG,No
Http://opendatacommunities.org/id/metropolitan-district-council/leeds,Leeds City Council,30/06/2021,Resources and Housing,Commercial Services,Supplies and Services,Other Hired And Contracted Services,265,11/06/2021,2106-00638,0.00,180.00,R,ALEX WAGG,No
Http://opendatacommunities.org/id/metropolitan-district-council/leeds,Leeds City Council,30/06/2021,Resources and Housing,Commercial Services,Supplies and Services,Other Hired And Contracted Services,265,11/06/2021,2106-00639,0.00,70.00,R,ALEX WAGG,No
Http://opendatacommunities.org/id/metropolitan-district-council/leeds,Leeds City Council,30/06/2021,Resources and Housing,Commercial Services,Supplies and Services,Other Hired And Contracted Services,265,11/06/2021,2106-00640,0.00,70.00,R,ALEX WAGG,No
Http://opendatacommunities.org/id/metropolitan-district-council/leeds,Leeds City Council,30/06/2021,Resources and Housing,Commercial Services,Supplies and Services,Other Hired And Contracted Services,265,11/06/2021,2106-00641,0.00,70.00,R,ALEX WAGG,No
Http://opendatacommunities.org/id/metropolitan-district-council/leeds,Leeds City Council,30/06/2021,Resources and Housing,Commercial Services,Supplies and Services,Other Hired And Contracted Services,265,11/06/2021,2106-00642,0.00,100.00,R,ALEX WAGG,No
Http://opendatacommunities.org/id/metropolitan-district-council/leeds,Leeds City Council,30/06/2021,Resources and Housing,Commercial Services,Supplies and Services,Other Hired And Contracted Services,265,11/06/2021,2106-00643,0.00,100.00,R,ALEX WAGG,No
Http://opendatacommunities.org/id/metropolitan-district-council/leeds,Leeds City Council,30/06/2021,Resources and Housing,Commercial Services,Supplies and Services,Other Hired And Contracted Services,265,18/06/2021,2106-00644,0.00,320.00,R,ALEX WAGG,No
Http://opendatacommunities.org/id/metropolitan-district-council/leeds,Leeds City Council,30/06/2021,Resources and Housing,Commercial Services,Transport,Vehicle Spares,345,21/06/2021,2106-00645,0.00,220.00,R,ALEX WAGG,No
Http://opendatacommunities.org/id/metropolitan-district-council/leeds,Leeds City Council,30/06/2021,Resources and Housing,Commercial Services,Transport,Vehicle Spares,345,23/06/2021,2106-00646,0.00,40.00,R,ALEX WAGG,No
Http://opendatacommunities.org/id/metropolitan-district-council/leeds,Leeds City Council,30/06/2021,Resources and Housing,Commercial Services,Supplies and Services,Other Hired And Contracted Services,265,25/06/2021,2106-00647,0.00,185.00,R,ALEX WAGG,No
Http://opendatacommunities.org/id/metropolitan-district-council/leeds,Leeds City Council,30/06/2021,Resources and Housing,Commercial Services,Supplies and Services,Other Hired And Contracted Services,265,25/06/2021,2106-00648,0.00,70.00,R,ALEX WAGG,No
Http://opendatacommunities.org/id/metropolitan-district-council/leeds,Leeds City Council,30/06/2021,Resources and Housing,Commercial Services,Supplies and Services,Other Hired And Contracted Services,265,25/06/2021,2106-00649,0.00,120.00,R,ALEX WAGG,No
Http://opendatacommunities.org/id/metropolitan-district-council/leeds,Leeds City Council,30/06/2021,Resources and Housing,Commercial Services,Supplies and Services,Other Hired And Contracted Services,265,25/06/2021,2106-00650,0.00,80.00,R,ALEX WAGG,No
Http://opendatacommunities.org/id/metropolitan-district-council/leeds,Leeds City Council,30/06/2021,Resources and Housing,Commercial Services,Supplies and Services,Other Hired And Contracted Services,265,25/06/2021,2106-00651,0.00,70.00,R,ALEX WAGG,No
Http://opendatacommunities.org/id/metropolitan-district-council/leeds,Leeds City Council,30/06/2021,Resources and Housing,Commercial Services,Supplies and Services,Other Hired And Contracted Services,265,25/06/2021,2106-00652,0.00,180.00,R,ALEX WAGG,No
Http://opendatacommunities.org/id/metropolitan-district-council/leeds,Leeds City Council,30/06/2021,City Development,Economic Development,Supplies and Services,Grant Related Expenditure,290,24/06/2021,2106-00653,0.00,250.00,R,Alexa Healthcare Limited,No
Http://opendatacommunities.org/id/metropolitan-district-council/leeds,Leeds City Council,30/06/2021,City Development,Libraries Arts & Heritage,Supplies and Services,Non-Recurring Grants,227,07/06/2021,2106-00654,0.00,1584.00,R,REDACTED PERSONAL DATA,No
Http://opendatacommunities.org/id/metropolitan-district-council/leeds,Leeds City Council,30/06/2021,City Development,Economic Development,Supplies and Services,Grant Related Expenditure,290,24/06/2021,2106-00655,0.00,500.00,R,Alexander Jeans Ltd,No
Http://opendatacommunities.org/id/metropolitan-district-council/leeds,Leeds City Council,30/06/2021,Adults and Health,Services For Older People - 65 And Over,Agency Payments,Residential Care Dementia,571,23/06/2021,2106-00656,0.00,20000.56,R,ALEXANDER RESIDENTIAL HOME,No
Http://opendatacommunities.org/id/metropolitan-district-council/leeds,Leeds City Council,30/06/2021,Adults and Health,Services For Older People - 65 And Over,Agency Payments,Residential,580,23/06/2021,2106-00657,0.00,13322.76,R,ALEXANDER RESIDENTIAL HOME,No
Http://opendatacommunities.org/id/metropolitan-district-council/leeds,Leeds City Council,30/06/2021,Adults and Health,Services For Older People Under 65 P/Dis,Agency Payments,Residential Care Dementia,571,23/06/2021,2106-00658,0.00,2094.40,R,ALEXANDER RESIDENTIAL HOME,No
Http://opendatacommunities.org/id/metropolitan-district-council/leeds,Leeds City Council,30/06/2021,Children and Families,Social Care,Transport,Public Transport Expenses,310,10/06/2021,2106-00659,0.00,30.40,R,REDACTED PERSONAL DATA,No
Http://opendatacommunities.org/id/metropolitan-district-council/leeds,Leeds City Council,30/06/2021,Communities and Environment,Customer Access,Supplies and Services,Bought In Professional Services,277,07/06/2021,2106-00660,0.00,45.00,R,Alexandra Costenco,No
Http://opendatacommunities.org/id/metropolitan-district-council/leeds,Leeds City Council,30/06/2021,Communities and Environment,Customer Access,Supplies and Services,Bought In Professional Services,277,07/06/2021,2106-00661,0.00,36.00,R,Alexandra Costenco,No
Http://opendatacommunities.org/id/metropolitan-district-council/leeds,Leeds City Council,30/06/2021,Communities and Environment,Customer Access,Supplies and Services,Bought In Professional Services,277,09/06/2021,2106-00662,0.00,45.00,R,Alexandra Costenco,No
Http://opendatacommunities.org/id/metropolitan-district-council/leeds,Leeds City Council,30/06/2021,Communities and Environment,Customer Access,Supplies and Services,Bought In Professional Services,277,09/06/2021,2106-00663,0.00,27.00,R,Alexandra Costenco,No
Http://opendatacommunities.org/id/metropolitan-district-council/leeds,Leeds City Council,30/06/2021,Communities and Environment,Customer Access,Supplies and Services,Bought In Professional Services,277,17/06/2021,2106-00664,0.00,90.00,R,Alexandra Costenco,No
Http://opendatacommunities.org/id/metropolitan-district-council/leeds,Leeds City Council,30/06/2021,Communities and Environment,Customer Access,Supplies and Services,Bought In Professional Services,277,24/06/2021,2106-00665,0.00,45.00,R,Alexandra Costenco,No
Http://opendatacommunities.org/id/metropolitan-district-council/leeds,Leeds City Council,30/06/2021,Communities and Environment,Customer Access,Supplies and Services,Bought In Professional Services,277,24/06/2021,2106-00666,0.00,27.00,R,Alexandra Costenco,No
Http://opendatacommunities.org/id/metropolitan-district-council/leeds,Leeds City Council,30/06/2021,Communities and Environment,Customer Access,Supplies and Services,Bought In Professional Services,277,24/06/2021,2106-00667,0.00,81.00,R,Alexandra Costenco,No
Http://opendatacommunities.org/id/metropolitan-district-council/leeds,Leeds City Council,30/06/2021,Adults and Health,Services For Older People - 65 And Over,Agency Payments,Residential Care Dementia,571,23/06/2021,2106-00668,0.00,5646.96,R,ALEXANDRA COURT,No
Http://opendatacommunities.org/id/metropolitan-district-council/leeds,Leeds City Council,30/06/2021,Adults and Health,Services For Older People - 65 And Over,Agency Payments,Residential,580,23/06/2021,2106-00669,0.00,6138.04,R,ALEXANDRA COURT,No
Http://opendatacommunities.org/id/metropolitan-district-council/leeds,Leeds City Council,30/06/2021,Adults and Health,Other Adult Services,Agency Payments,Residential,580,09/06/2021,2106-00670,0.00,3282.94,R,Alexandra Court Residential Home,No
Http://opendatacommunities.org/id/metropolitan-district-council/leeds,Leeds City Council,30/06/2021,Children and Families,Social Care,Agency Payments,Services Rendered By Other Organisations,511,02/06/2021,2106-00671,0.00,783.90,R,REDACTED PERSONAL DATA,No
Http://opendatacommunities.org/id/metropolitan-district-council/leeds,Leeds City Council,30/06/2021,City Development,Economic Development,Supplies and Services,Grant Related Expenditure,290,23/06/2021,2106-00672,0.00,250.00,R,Alexandra Nicolaidis,No
Http://opendatacommunities.org/id/metropolitan-district-council/leeds,Leeds City Council,30/06/2021,City Development,Economic Development,Supplies and Services,Grant Related Expenditure,290,17/06/2021,2106-00673,0.00,250.00,R,REDACTED PERSONAL DATA,No
Http://opendatacommunities.org/id/metropolitan-district-council/leeds,Leeds City Council,30/06/2021,Adults and Health,Services For Older People - 65 And Over ,Supplies and Services,Clothing & Uniforms,241,07/05/2021,2106-00674,0.00,113.82,R,Alexandra Website,Yes
Http://opendatacommunities.org/id/metropolitan-district-council/leeds,Leeds City Council,30/06/2021,Adults and Health,Services For Older People - 65 And Over ,Supplies and Services,Clothing & Uniforms,241,13/05/2021,2106-00675,0.00,1143.17,R,Alexandra Website,Yes
Http://opendatacommunities.org/id/metropolitan-district-council/leeds,Leeds City Council,30/06/2021,Adults and Health,Services For Older People - 65 And Over ,Supplies and Services,Clothing & Uniforms,241,14/05/2021,2106-00676,0.00,53.96,R,Alexandra Website,Yes
Http://opendatacommunities.org/id/metropolitan-district-council/leeds,Leeds City Council,30/06/2021,Adults and Health,Services For Older People - 65 And Over ,Supplies and Services,Clothing & Uniforms,241,26/05/2021,2106-00677,0.00,263.87,R,Alexandra Website,Yes
Http://opendatacommunities.org/id/metropolitan-district-council/leeds,Leeds City Council,30/06/2021,Adults and Health,Services For Older People - 65 And Over ,Supplies and Services,Clothing & Uniforms,241,27/05/2021,2106-00678,0.00,11.24,R,Alexandra Website,Yes
Http://opendatacommunities.org/id/metropolitan-district-council/leeds,Leeds City Council,30/06/2021,City Development,Economic Development,Supplies and Services,Grant Related Expenditure,290,08/06/2021,2106-00679,0.00,2496.00,R,REDACTED PERSONAL DATA,No
Http://opendatacommunities.org/id/metropolitan-district-council/leeds,Leeds City Council,30/06/2021,City Development,Economic Development,Supplies and Services,Grant Related Expenditure,290,18/06/2021,2106-00680,0.00,250.00,R,Alfaz Miah,No
Http://opendatacommunities.org/id/metropolitan-district-council/leeds,Leeds City Council,30/06/2021,Resources and Housing,Corporate Property Management,Capital,CONSTRUCTION,3,01/06/2021,2106-00681,0.00,11820.00,C,Alfred Bagnall & Sons (Leeds) Ltd,No
Http://opendatacommunities.org/id/metropolitan-district-council/leeds,Leeds City Council,30/06/2021,Resources and Housing,Leeds Building Services,Supplies and Services,Other Hired And Contracted Services,265,08/06/2021,2106-00682,0.00,11110.00,R,Alfred Bagnall & Sons (Leeds) Ltd,No
Http://opendatacommunities.org/id/metropolitan-district-council/leeds,Leeds City Council,30/06/2021,Resources and Housing,Leeds Building Services,Supplies and Services,Other Hired And Contracted Services,265,11/06/2021,2106-00683,0.00,480.00,R,Alfred Bagnall & Sons (Leeds) Ltd,No
Http://opendatacommunities.org/id/metropolitan-district-council/leeds,Leeds City Council,30/06/2021,Resources and Housing,Leeds Building Services,Supplies and Services,Other Hired And Contracted Services,265,15/06/2021,2106-00684,0.00,400.00,R,Alfred Bagnall & Sons (Leeds) Ltd,No
Http://opendatacommunities.org/id/metropolitan-district-council/leeds,Leeds City Council,30/06/2021,Resources and Housing,Leeds Building Services,Supplies and Services,Other Hired And Contracted Services,265,24/06/2021,2106-00685,0.00,3230.00,R,Alfred Bagnall & Sons (Leeds) Ltd,No
Http://opendatacommunities.org/id/metropolitan-district-council/leeds,Leeds City Council,30/06/2021,City Development,Libraries Arts & Heritage,Supplies and Services,Other Hired And Contracted Services,265,25/06/2021,2106-00686,0.00,1970.00,R,Alfred Bagnall & Sons (Leeds) Ltd,No
Http://opendatacommunities.org/id/metropolitan-district-council/leeds,Leeds City Council,30/06/2021,Resources and Housing,Leeds Building Services,Supplies and Services,Other Hired And Contracted Services,265,29/06/2021,2106-00687,0.00,3940.00,R,Alfred Bagnall & Sons (Leeds) Ltd,No
Http://opendatacommunities.org/id/metropolitan-district-council/leeds,Leeds City Council,30/06/2021,City Development,Economic Development,Supplies and Services,Grant Related Expenditure,290,09/06/2021,2106-00688,0.00,500.00,R,REDACTED PERSONAL DATA,No
Http://opendatacommunities.org/id/metropolitan-district-council/leeds,Leeds City Council,30/06/2021,City Development,Economic Development,Supplies and Services,Grant Related Expenditure,290,09/06/2021,2106-00689,0.00,500.00,R,REDACTED PERSONAL DATA,No
Http://opendatacommunities.org/id/metropolitan-district-council/leeds,Leeds City Council,30/06/2021,Communities and Environment,Customer Access,Supplies and Services,Bought In Professional Services,277,07/06/2021,2106-00690,0.00,67.20,R,Ali Pourakaberian,No
Http://opendatacommunities.org/id/metropolitan-district-council/leeds,Leeds City Council,30/06/2021,Communities and Environment,Customer Access,Supplies and Services,Bought In Professional Services,277,07/06/2021,2106-00691,0.00,18.00,R,Ali Pourakaberian,No
Http://opendatacommunities.org/id/metropolitan-district-council/leeds,Leeds City Council,30/06/2021,Communities and Environment,Customer Access,Supplies and Services,Bought In Professional Services,277,07/06/2021,2106-00692,0.00,27.00,R,Ali Pourakaberian,No
Http://opendatacommunities.org/id/metropolitan-district-council/leeds,Leeds City Council,30/06/2021,Communities and Environment,Customer Access,Supplies and Services,Bought In Professional Services,277,17/06/2021,2106-00693,0.00,18.00,R,Ali Pourakaberian,No
Http://opendatacommunities.org/id/metropolitan-district-council/leeds,Leeds City Council,30/06/2021,Communities and Environment,Customer Access,Supplies and Services,Bought In Professional Services,277,17/06/2021,2106-00694,0.00,9.00,R,Ali Pourakaberian,No
Http://opendatacommunities.org/id/metropolitan-district-council/leeds,Leeds City Council,30/06/2021,Communities and Environment,Customer Access,Supplies and Services,Bought In Professional Services,277,17/06/2021,2106-00695,0.00,18.00,R,Ali Pourakaberian,No
Http://opendatacommunities.org/id/metropolitan-district-council/leeds,Leeds City Council,30/06/2021,Communities and Environment,Customer Access,Supplies and Services,Bought In Professional Services,277,24/06/2021,2106-00696,0.00,9.00,R,Ali Pourakaberian,No
Http://opendatacommunities.org/id/metropolitan-district-council/leeds,Leeds City Council,30/06/2021,Communities and Environment,Customer Access,Supplies and Services,Bought In Professional Services,277,30/06/2021,2106-00697,0.00,10.00,R,Ali Pourakaberian,No
Http://opendatacommunities.org/id/metropolitan-district-council/leeds,Leeds City Council,30/06/2021,Communities and Environment,Customer Access,Supplies and Services,Bought In Professional Services,277,30/06/2021,2106-00698,0.00,18.00,R,Ali Pourakaberian,No
Http://opendatacommunities.org/id/metropolitan-district-council/leeds,Leeds City Council,30/06/2021,Communities and Environment,Customer Access,Supplies and Services,Bought In Professional Services,277,30/06/2021,2106-00699,0.00,18.00,R,Ali Pourakaberian,No
Http://opendatacommunities.org/id/metropolitan-district-council/leeds,Leeds City Council,30/06/2021,Communities and Environment,Customer Access,Supplies and Services,Bought In Professional Services,277,30/06/2021,2106-00700,0.00,18.00,R,Ali Pourakaberian,No
Http://opendatacommunities.org/id/metropolitan-district-council/leeds,Leeds City Council,30/06/2021,Communities and Environment,Customer Access,Supplies and Services,Bought In Professional Services,277,30/06/2021,2106-00701,0.00,18.00,R,Ali Pourakaberian,No
Http://opendatacommunities.org/id/metropolitan-district-council/leeds,Leeds City Council,30/06/2021,Communities and Environment,Benefits Welfare and Poverty ,Supplies and Services,Grant Related Expenditure,290,14/06/2021,2106-00702,0.00,500.00,R,REDACTED PERSONAL DATA,No
Http://opendatacommunities.org/id/metropolitan-district-council/leeds,Leeds City Council,30/06/2021,City Development,Economic Development,Supplies and Services,Grant Related Expenditure,290,24/06/2021,2106-00703,0.00,500.00,R,REDACTED PERSONAL DATA,No
Http://opendatacommunities.org/id/metropolitan-district-council/leeds,Leeds City Council,30/06/2021,Communities and Environment,Benefits Welfare and Poverty ,Supplies and Services,Grant Related Expenditure,290,21/06/2021,2106-00704,0.00,15.00,R,REDACTED PERSONAL DATA,No
Http://opendatacommunities.org/id/metropolitan-district-council/leeds,Leeds City Council,30/06/2021,City Development,Economic Development,Supplies and Services,Grant Related Expenditure,290,23/06/2021,2106-00705,0.00,250.00,R,Alice Falkingham and Martin Atkinson,No
Http://opendatacommunities.org/id/metropolitan-district-council/leeds,Leeds City Council,30/06/2021,City Development,Libraries Arts & Heritage,External Income,Admissions Booking Fees & Ticket Sales,933,25/06/2021,2106-00706,0.00,47.16,R,REDACTED PERSONAL DATA,No
Http://opendatacommunities.org/id/metropolitan-district-council/leeds,Leeds City Council,30/06/2021,Communities and Environment,Benefits Welfare and Poverty ,Supplies and Services,Grant Related Expenditure,290,25/06/2021,2106-00707,0.00,15.00,R,REDACTED PERSONAL DATA,No
Http://opendatacommunities.org/id/metropolitan-district-council/leeds,Leeds City Council,30/06/2021,Communities and Environment,Benefits Welfare and Poverty ,Supplies and Services,Grant Related Expenditure,298,16/06/2021,2106-00708,0.00,500.00,R,REDACTED PERSONAL DATA,No
Http://opendatacommunities.org/id/metropolitan-district-council/leeds,Leeds City Council,30/06/2021,Children and Families,Social Care,Agency Payments,Services Rendered By Other Organisations,511,04/06/2021,2106-00709,0.00,739.24,R,REDACTED PERSONAL DATA,No
Http://opendatacommunities.org/id/metropolitan-district-council/leeds,Leeds City Council,30/06/2021,Children and Families,Social Care,Agency Payments,Placement Support,550,30/06/2021,2106-00710,0.00,46.96,R,REDACTED PERSONAL DATA,No
Http://opendatacommunities.org/id/metropolitan-district-council/leeds,Leeds City Council,30/06/2021,Strategic Landlord,Property and Contracts,Internal Recharges,Legal Disbursements,411,02/06/2021,2106-00711,0.00,1500.00,R,Alison Law Solicitors,No
Http://opendatacommunities.org/id/metropolitan-district-council/leeds,Leeds City Council,30/06/2021,Strategic Landlord,Property and Contracts,Supplies and Services,Insurance Claims,248,03/06/2021,2106-00712,0.00,5550.00,R,Alison Law Solicitors,No
Http://opendatacommunities.org/id/metropolitan-district-council/leeds,Leeds City Council,30/06/2021,Strategic Landlord,Property and Contracts,Supplies and Services,Insurance Claims,248,14/06/2021,2106-00713,0.00,4914.16,R,Alison Law Solicitors,No
Http://opendatacommunities.org/id/metropolitan-district-council/leeds,Leeds City Council,30/06/2021,City Development,Economic Development,Supplies and Services,Grant Related Expenditure,290,09/06/2021,2106-00714,0.00,500.00,R,Alison Walker Health & Beauty,No
Http://opendatacommunities.org/id/metropolitan-district-council/leeds,Leeds City Council,30/06/2021,Children and Families,Social Care,Supplies and Services,'Well Being' Large Grants Projects,230,16/06/2021,2106-00715,0.00,9.72,R,REDACTED PERSONAL DATA,No
Http://opendatacommunities.org/id/metropolitan-district-council/leeds,Leeds City Council,30/06/2021,Children and Families,Social Care,Transport,Car & Motorcycle Allowances,311,16/06/2021,2106-00716,0.00,5.85,R,REDACTED PERSONAL DATA,No
Http://opendatacommunities.org/id/metropolitan-district-council/leeds,Leeds City Council,30/06/2021,Children and Families,Social Care,Supplies and Services,Food & Drink,231,23/06/2021,2106-00717,0.00,2.09,R,REDACTED PERSONAL DATA,No
Http://opendatacommunities.org/id/metropolitan-district-council/leeds,Leeds City Council,30/06/2021,Children and Families,Social Care,Transport,Car & Motorcycle Allowances,311,23/06/2021,2106-00718,0.00,13.50,R,REDACTED PERSONAL DATA,No
Http://opendatacommunities.org/id/metropolitan-district-council/leeds,Leeds City Council,30/06/2021,City Development,Economic Development,Supplies and Services,Grant Related Expenditure,290,03/06/2021,2106-00719,0.00,6000.00,R,Alivini North Limited,No
Http://opendatacommunities.org/id/metropolitan-district-council/leeds,Leeds City Council,30/06/2021,City Development,Economic Development,Supplies and Services,Grant Related Expenditure,290,04/06/2021,2106-00720,0.00,4125.00,R,All Property Management,No
Http://opendatacommunities.org/id/metropolitan-district-council/leeds,Leeds City Council,30/06/2021,City Development,Economic Development,Supplies and Services,Grant Related Expenditure,290,02/06/2021,2106-00721,0.00,6000.00,R,All Rounder Cricket Ltd,No
Http://opendatacommunities.org/id/metropolitan-district-council/leeds,Leeds City Council,30/06/2021,Children and Families,Social Care,Agency Payments,Services Rendered By Other Organisations,511,02/06/2021,2106-00722,0.00,836.16,R,All Stars Childcare,No
Http://opendatacommunities.org/id/metropolitan-district-council/leeds,Leeds City Council,30/06/2021,Children and Families,Social Care,Agency Payments,Services Rendered By Other Organisations,511,04/06/2021,2106-00723,0.00,10088.52,R,All Stars Childcare,No
Http://opendatacommunities.org/id/metropolitan-district-council/leeds,Leeds City Council,30/06/2021,Communities and Environment,Parks and Countryside,Supplies and Services,Other Hired And Contracted Services,265,25/06/2021,2106-00724,0.00,800.00,R,ALLANSOUND COMMUNICATIONS,No
Http://opendatacommunities.org/id/metropolitan-district-council/leeds,Leeds City Council as Accountable Body,30/06/2021,Social Services Pooled Budgets,Jcs For People With Learning Disabilitie,Agency Payments,Sheltered Accommodation,569,23/06/2021,2106-00725,0.00,21342.00,R,Allerton Avenue,No
Http://opendatacommunities.org/id/metropolitan-district-council/leeds,Leeds City Council,30/06/2021,City Development,Economic Development,Supplies and Services,Grant Related Expenditure,290,01/06/2021,2106-00726,0.00,10000.00,R,Allerton Builders Leeds Limited,No
Http://opendatacommunities.org/id/metropolitan-district-council/leeds,Leeds City Council,30/06/2021,Strategic Accounts,Miscellaneous,Supplies and Services,Non-Recurring Grants,227,01/06/2021,2106-00727,0.00,300.00,R,Allerton Bywater Parish Council,No
Http://opendatacommunities.org/id/metropolitan-district-council/leeds,Leeds City Council,30/06/2021,Adults and Health,Services For Older People - 65 And Over,Agency Payments,Nursing Care Dementia,574,23/06/2021,2106-00728,0.00,2390.08,R,ALLERTON PARK N H,No
Http://opendatacommunities.org/id/metropolitan-district-council/leeds,Leeds City Council,30/06/2021,Resources and Housing,Finance,Supplies and Services,Bank Charges,263,04/06/2021,2106-00729,0.00,152.75,R,ALLIANCE & LEICESTER COMMERCIAL BANK,No
Http://opendatacommunities.org/id/metropolitan-district-council/leeds,Leeds City Council,30/06/2021,Resources and Housing,Finance,Supplies and Services,Bank Charges,263,04/06/2021,2106-00730,0.00,100.19,R,ALLIANCE & LEICESTER COMMERCIAL BANK,No
Http://opendatacommunities.org/id/metropolitan-district-council/leeds,Leeds City Council,30/06/2021,Communities and Environment,Parks and Countryside ,Supplies and Services,Operational Materials,205,27/05/2021,2106-00731,0.00,35.66,R,Alliance Disposables,Yes
Http://opendatacommunities.org/id/metropolitan-district-council/leeds,Leeds City Council,30/06/2021,Resources and Housing,Commercial Services,Supplies and Services,Operational Materials,205,01/06/2021,2106-00732,0.00,30.93,R,ALLIANCE DISPOSABLES LTD,No
Http://opendatacommunities.org/id/metropolitan-district-council/leeds,Leeds City Council,30/06/2021,Resources and Housing,Commercial Services,Supplies and Services,Operational Materials,205,01/06/2021,2106-00733,0.00,61.86,R,ALLIANCE DISPOSABLES LTD,No
Http://opendatacommunities.org/id/metropolitan-district-council/leeds,Leeds City Council,30/06/2021,Resources and Housing,Commercial Services,Supplies and Services,Operational Materials,205,01/06/2021,2106-00734,0.00,61.86,R,ALLIANCE DISPOSABLES LTD,No
Http://opendatacommunities.org/id/metropolitan-district-council/leeds,Leeds City Council,30/06/2021,Resources and Housing,Commercial Services,Supplies and Services,Operational Materials,205,01/06/2021,2106-00735,0.00,56.27,R,ALLIANCE DISPOSABLES LTD,No
Http://opendatacommunities.org/id/metropolitan-district-council/leeds,Leeds City Council,30/06/2021,Resources and Housing,Commercial Services,Supplies and Services,Operational Materials,205,02/06/2021,2106-00736,0.00,35.54,R,ALLIANCE DISPOSABLES LTD,No
Http://opendatacommunities.org/id/metropolitan-district-council/leeds,Leeds City Council,30/06/2021,Resources and Housing,Commercial Services,Supplies and Services,Operational Materials,205,02/06/2021,2106-00737,0.00,159.10,R,ALLIANCE DISPOSABLES LTD,No
Http://opendatacommunities.org/id/metropolitan-district-council/leeds,Leeds City Council,30/06/2021,Resources and Housing,Commercial Services,Supplies and Services,Operational Materials,205,02/06/2021,2106-00738,0.00,61.86,R,ALLIANCE DISPOSABLES LTD,No
Http://opendatacommunities.org/id/metropolitan-district-council/leeds,Leeds City Council,30/06/2021,Resources and Housing,Commercial Services,Supplies and Services,Operational Materials,205,02/06/2021,2106-00739,0.00,61.86,R,ALLIANCE DISPOSABLES LTD,No
Http://opendatacommunities.org/id/metropolitan-district-council/leeds,Leeds City Council,30/06/2021,Resources and Housing,Commercial Services,Supplies and Services,Operational Materials,205,02/06/2021,2106-00740,0.00,61.86,R,ALLIANCE DISPOSABLES LTD,No
Http://opendatacommunities.org/id/metropolitan-district-council/leeds,Leeds City Council,30/06/2021,Resources and Housing,Commercial Services,Supplies and Services,Operational Materials,205,02/06/2021,2106-00741,0.00,61.86,R,ALLIANCE DISPOSABLES LTD,No
Http://opendatacommunities.org/id/metropolitan-district-council/leeds,Leeds City Council,30/06/2021,Resources and Housing,Commercial Services,Supplies and Services,Operational Materials,205,02/06/2021,2106-00742,0.00,61.86,R,ALLIANCE DISPOSABLES LTD,No
Http://opendatacommunities.org/id/metropolitan-district-council/leeds,Leeds City Council,30/06/2021,Resources and Housing,Commercial Services,Supplies and Services,Operational Materials,205,02/06/2021,2106-00743,0.00,61.86,R,ALLIANCE DISPOSABLES LTD,No
Http://opendatacommunities.org/id/metropolitan-district-council/leeds,Leeds City Council,30/06/2021,Resources and Housing,Commercial Services,Supplies and Services,Operational Materials,205,02/06/2021,2106-00744,0.00,30.93,R,ALLIANCE DISPOSABLES LTD,No
Http://opendatacommunities.org/id/metropolitan-district-council/leeds,Leeds City Council,30/06/2021,Resources and Housing,Commercial Services,Supplies and Services,Operational Materials,205,02/06/2021,2106-00745,0.00,86.12,R,ALLIANCE DISPOSABLES LTD,No
Http://opendatacommunities.org/id/metropolitan-district-council/leeds,Leeds City Council,30/06/2021,Resources and Housing,Commercial Services,Supplies and Services,Operational Materials,205,02/06/2021,2106-00746,0.00,123.72,R,ALLIANCE DISPOSABLES LTD,No
Http://opendatacommunities.org/id/metropolitan-district-council/leeds,Leeds City Council,30/06/2021,Resources and Housing,Commercial Services,Supplies and Services,Operational Materials,205,02/06/2021,2106-00747,0.00,61.86,R,ALLIANCE DISPOSABLES LTD,No
Http://opendatacommunities.org/id/metropolitan-district-council/leeds,Leeds City Council,30/06/2021,Resources and Housing,Commercial Services,Supplies and Services,Operational Materials,205,02/06/2021,2106-00748,0.00,30.93,R,ALLIANCE DISPOSABLES LTD,No
Http://opendatacommunities.org/id/metropolitan-district-council/leeds,Leeds City Council,30/06/2021,Resources and Housing,Commercial Services,Supplies and Services,Operational Materials,205,02/06/2021,2106-00749,0.00,172.88,R,ALLIANCE DISPOSABLES LTD,No
Http://opendatacommunities.org/id/metropolitan-district-council/leeds,Leeds City Council,30/06/2021,Resources and Housing,Commercial Services,Supplies and Services,Operational Materials,205,02/06/2021,2106-00750,0.00,226.98,R,ALLIANCE DISPOSABLES LTD,No
Http://opendatacommunities.org/id/metropolitan-district-council/leeds,Leeds City Council,30/06/2021,Resources and Housing,Commercial Services,Supplies and Services,Operational Materials,205,04/06/2021,2106-00751,0.00,123.72,R,ALLIANCE DISPOSABLES LTD,No
Http://opendatacommunities.org/id/metropolitan-district-council/leeds,Leeds City Council,30/06/2021,Resources and Housing,Commercial Services,Supplies and Services,Operational Materials,205,04/06/2021,2106-00752,0.00,61.86,R,ALLIANCE DISPOSABLES LTD,No
Http://opendatacommunities.org/id/metropolitan-district-council/leeds,Leeds City Council,30/06/2021,Resources and Housing,Commercial Services,Supplies and Services,Operational Materials,205,04/06/2021,2106-00753,0.00,154.65,R,ALLIANCE DISPOSABLES LTD,No
Http://opendatacommunities.org/id/metropolitan-district-council/leeds,Leeds City Council,30/06/2021,Resources and Housing,Commercial Services,Supplies and Services,Operational Materials,205,04/06/2021,2106-00754,0.00,30.93,R,ALLIANCE DISPOSABLES LTD,No
Http://opendatacommunities.org/id/metropolitan-district-council/leeds,Leeds City Council,30/06/2021,Resources and Housing,Commercial Services,Supplies and Services,Operational Materials,205,04/06/2021,2106-00755,0.00,154.65,R,ALLIANCE DISPOSABLES LTD,No
Http://opendatacommunities.org/id/metropolitan-district-council/leeds,Leeds City Council,30/06/2021,Resources and Housing,Commercial Services,Supplies and Services,Operational Materials,205,04/06/2021,2106-00756,0.00,126.30,R,ALLIANCE DISPOSABLES LTD,No
Http://opendatacommunities.org/id/metropolitan-district-council/leeds,Leeds City Council,30/06/2021,Resources and Housing,Commercial Services,Supplies and Services,Operational Materials,205,04/06/2021,2106-00757,0.00,30.93,R,ALLIANCE DISPOSABLES LTD,No
Http://opendatacommunities.org/id/metropolitan-district-council/leeds,Leeds City Council,30/06/2021,Resources and Housing,Commercial Services,Supplies and Services,Operational Materials,205,04/06/2021,2106-00758,0.00,61.86,R,ALLIANCE DISPOSABLES LTD,No
Http://opendatacommunities.org/id/metropolitan-district-council/leeds,Leeds City Council,30/06/2021,Resources and Housing,Commercial Services,Supplies and Services,Operational Materials,205,04/06/2021,2106-00759,0.00,92.79,R,ALLIANCE DISPOSABLES LTD,No
Http://opendatacommunities.org/id/metropolitan-district-council/leeds,Leeds City Council,30/06/2021,Resources and Housing,Commercial Services,Supplies and Services,Operational Materials,205,04/06/2021,2106-00760,0.00,61.86,R,ALLIANCE DISPOSABLES LTD,No
Http://opendatacommunities.org/id/metropolitan-district-council/leeds,Leeds City Council,30/06/2021,Resources and Housing,Commercial Services,Supplies and Services,Operational Materials,205,04/06/2021,2106-00761,0.00,185.58,R,ALLIANCE DISPOSABLES LTD,No
Http://opendatacommunities.org/id/metropolitan-district-council/leeds,Leeds City Council,30/06/2021,Resources and Housing,Commercial Services,Supplies and Services,Operational Materials,205,04/06/2021,2106-00762,0.00,92.79,R,ALLIANCE DISPOSABLES LTD,No
Http://opendatacommunities.org/id/metropolitan-district-council/leeds,Leeds City Council,30/06/2021,Resources and Housing,Commercial Services,Supplies and Services,Operational Materials,205,04/06/2021,2106-00763,0.00,61.86,R,ALLIANCE DISPOSABLES LTD,No
Http://opendatacommunities.org/id/metropolitan-district-council/leeds,Leeds City Council,30/06/2021,Resources and Housing,Commercial Services,Supplies and Services,Operational Materials,205,04/06/2021,2106-00764,0.00,123.72,R,ALLIANCE DISPOSABLES LTD,No
Http://opendatacommunities.org/id/metropolitan-district-council/leeds,Leeds City Council,30/06/2021,Resources and Housing,Commercial Services,Supplies and Services,Operational Materials,205,04/06/2021,2106-00765,0.00,30.93,R,ALLIANCE DISPOSABLES LTD,No
Http://opendatacommunities.org/id/metropolitan-district-council/leeds,Leeds City Council,30/06/2021,Resources and Housing,Commercial Services,Supplies and Services,Operational Materials,205,04/06/2021,2106-00766,0.00,432.20,R,ALLIANCE DISPOSABLES LTD,No
Http://opendatacommunities.org/id/metropolitan-district-council/leeds,Leeds City Council,30/06/2021,Resources and Housing,Commercial Services,Supplies and Services,Operational Materials,205,09/06/2021,2106-00767,0.00,61.86,R,ALLIANCE DISPOSABLES LTD,No
Http://opendatacommunities.org/id/metropolitan-district-council/leeds,Leeds City Council,30/06/2021,Resources and Housing,Commercial Services,Supplies and Services,Operational Materials,205,09/06/2021,2106-00768,0.00,92.79,R,ALLIANCE DISPOSABLES LTD,No
Http://opendatacommunities.org/id/metropolitan-district-council/leeds,Leeds City Council,30/06/2021,Resources and Housing,Commercial Services,Supplies and Services,Operational Materials,205,09/06/2021,2106-00769,0.00,68.84,R,ALLIANCE DISPOSABLES LTD,No
Http://opendatacommunities.org/id/metropolitan-district-council/leeds,Leeds City Council,30/06/2021,Resources and Housing,Commercial Services,Supplies and Services,Operational Materials,205,09/06/2021,2106-00770,0.00,61.86,R,ALLIANCE DISPOSABLES LTD,No
Http://opendatacommunities.org/id/metropolitan-district-council/leeds,Leeds City Council,30/06/2021,Resources and Housing,Commercial Services,Supplies and Services,Operational Materials,205,10/06/2021,2106-00771,0.00,61.86,R,ALLIANCE DISPOSABLES LTD,No
Http://opendatacommunities.org/id/metropolitan-district-council/leeds,Leeds City Council,30/06/2021,Resources and Housing,Commercial Services,Supplies and Services,Operational Materials,205,10/06/2021,2106-00772,0.00,61.86,R,ALLIANCE DISPOSABLES LTD,No
Http://opendatacommunities.org/id/metropolitan-district-council/leeds,Leeds City Council,30/06/2021,Resources and Housing,Commercial Services,Supplies and Services,Operational Materials,205,10/06/2021,2106-00773,0.00,185.58,R,ALLIANCE DISPOSABLES LTD,No
Http://opendatacommunities.org/id/metropolitan-district-council/leeds,Leeds City Council,30/06/2021,Resources and Housing,Commercial Services,Supplies and Services,Operational Materials,205,10/06/2021,2106-00774,0.00,61.86,R,ALLIANCE DISPOSABLES LTD,No
Http://opendatacommunities.org/id/metropolitan-district-council/leeds,Leeds City Council,30/06/2021,Resources and Housing,Commercial Services,Supplies and Services,Operational Materials,205,10/06/2021,2106-00775,0.00,92.79,R,ALLIANCE DISPOSABLES LTD,No
Http://opendatacommunities.org/id/metropolitan-district-council/leeds,Leeds City Council,30/06/2021,Resources and Housing,Commercial Services,Supplies and Services,Operational Materials,205,10/06/2021,2106-00776,0.00,92.79,R,ALLIANCE DISPOSABLES LTD,No
Http://opendatacommunities.org/id/metropolitan-district-council/leeds,Leeds City Council,30/06/2021,Resources and Housing,Commercial Services,Supplies and Services,Operational Materials,205,10/06/2021,2106-00777,0.00,92.79,R,ALLIANCE DISPOSABLES LTD,No
Http://opendatacommunities.org/id/metropolitan-district-council/leeds,Leeds City Council,30/06/2021,Resources and Housing,Commercial Services,Supplies and Services,Operational Materials,205,10/06/2021,2106-00778,0.00,30.93,R,ALLIANCE DISPOSABLES LTD,No
Http://opendatacommunities.org/id/metropolitan-district-council/leeds,Leeds City Council,30/06/2021,Resources and Housing,Commercial Services,Supplies and Services,Operational Materials,205,10/06/2021,2106-00779,0.00,61.86,R,ALLIANCE DISPOSABLES LTD,No
Http://opendatacommunities.org/id/metropolitan-district-council/leeds,Leeds City Council,30/06/2021,Resources and Housing,Commercial Services,Supplies and Services,Operational Materials,205,10/06/2021,2106-00780,0.00,310.42,R,ALLIANCE DISPOSABLES LTD,No
Http://opendatacommunities.org/id/metropolitan-district-council/leeds,Leeds City Council,30/06/2021,Resources and Housing,Commercial Services,Supplies and Services,Operational Materials,205,10/06/2021,2106-00781,0.00,92.79,R,ALLIANCE DISPOSABLES LTD,No
